{"text_format":"1","workbook":"xlsx","n_sheets":13,"sheets":["Acceuil","Budget","CC","CA","CV","CP","Cadres de Concertation","Tutelle","Marchés","Services Délégués","Autres données","Récapitulatif","Indicateurs"],"not_rendered":{"charts":0,"images":2,"macros":1,"external_links":0,"defined_names":0,"comments":0,"pivot_tables":0},"unopened":[],"bounds":{"document_bytes":16777216,"sheet_cells":100000,"rows_first":2000,"rows_last":500,"rows_between":2000,"halvings":0,"cell_chars":16384,"cell_head_chars":4096},"cells_cut":0,"cells_raw":0,"read":"whole","date_system":"1900"}

{"sheet":"Acceuil","index":0,"n_rows":23,"n_cols":16,"rows_kept":23,"cut":false,"hidden":false,"merged":[[6,4,6,18],[7,4,7,18],[9,4,9,18],[16,4,16,18]]}
[]
[]
[]
[]
[]
[]
[null,null,null,null,"COMITE INTERMINISTERIEL DE PILOTAGE DE LA POLITIQUE NATIONALE DE DECENTRALISATION ET DE DECONCENTRATION \n(CIP-PONADEC)"]
[null,null,null,null,"SECRETARIAT PERMANENT"]
[]
[null,null,null,null,"Calcul de l'Indice de bonne Gouvernance Locale (IGL)"]
[]
[null,null,null,null,null,"Département ","ATLANTIQUE",null,"Commune ","ABOMEY-CALAVI",null,null,null,null,"Année : ",2019]
[]
[]
[]
[]
[null,null,null,null,"Informations à saisir par catégorie"]
[]
[null,null,null,null,null,null,"Budget",null,null,null,null,"Cadres de Concertation"]
[null,null,null,null,null,null,"Conseil Communal",null,null,null,null,"Tutelle"]
[null,null,null,null,null,null,"Conseil d'Arrondissement",null,null,null,null,"Marchés"]
[null,null,null,null,null,null,"Conseil de Village",null,null,null,null,"Services délégués"]
[null,null,null,null,null,null,"Commissions Permanentes",null,null,null,null,"Autres données"]

{"sheet":"Budget","index":1,"n_rows":5,"n_cols":14,"rows_kept":5,"cut":false,"hidden":false,"merged":[[1,0,1,2],[1,3,1,9],[1,10,1,13],[2,3,2,5],[2,0,3,0],[2,1,3,1],[2,2,3,2],[2,6,3,6],[2,7,3,7],[2,8,3,8],[2,9,3,9],[2,10,3,10],[2,11,3,11],[2,12,3,12],[2,13,3,13]]}
["Retour à l'accueil"]
["Prévision",null,null,"Réalisation",null,null,null,null,null,null,"Autres données financieres"]
["Montant du budget ","Recette fiscales","PAI","Dépenses d'investissement",null,null,"Dépenses totales de fonctionnement","Dépenses d'entretien des équipements et ouvrages","Recettes fiscales ","PAI ","Montant des ressources propres de l'année 2018","Montant des ressources propres de l'année 2019","Montant des cotisations versées à échéance (Intercommunalité et Association de communes)","Montant des cotisations dues à échéance (Intercommunalité et Association de communes)"]
[null,null,null,"Ressources propres (Auto financement)","Investissement provenant de la coopération décentralisée","Autres ressources"]
[6644821608,2023176000,8902914261,447787784,0,1173329708,2213494786,320973775,2293454478,889660927,3836648774,3894668134,3000000,5000000]

{"sheet":"CC","index":2,"n_rows":9,"n_cols":9,"rows_kept":9,"cut":false,"hidden":false,"merged":[[0,0,0,5],[1,0,1,5],[2,0,2,2],[2,4,3,5],[3,0,3,2]]}
["Retour à l'accueil"]
["Tenue des Sessions ordinaires "]
["Nombre de réunions de municipalité tenues",null,null,6]
["Nombre d'élus du Conseil Communal",null,null,37]
["Sessions","Nombre d'élus présents","Date début session","Date fin session","Date affichage relevé session","Production du rapport d'activités du Maire ",null,"dif","delai"]
["Session N°1",34,"2019-03-26","2019-03-29","2019-03-29","OUI",null,{"$f":"IF(OR(D6=\"\",E6=\"\"),-1,DATEDIF(D6,E6,\"d\"))","v":0},{"$f":"IF(OR(H6<0,H6>8),0,1)","v":1}]
["Session N°2",33,"2019-06-25","2019-06-28","2019-06-28","OUI",null,{"$f":"IF(OR(D7=\"\",E7=\"\"),-1,DATEDIF(D7,E7,\"d\"))","v":0},{"$f":"IF(OR(H7<0,H7>8),0,1)","v":1}]
["Session N°3",33,"2019-09-24","2019-09-27","2019-09-27","OUI",null,{"$f":"IF(OR(D8=\"\",E8=\"\"),-1,DATEDIF(D8,E8,\"d\"))","v":0},{"$f":"IF(OR(H8<0,H8>8),0,1)","v":1}]
["Session N°4",34,"2019-11-26","2019-11-29","2019-11-29","OUI",null,{"$f":"IF(OR(D9=\"\",E9=\"\"),-1,DATEDIF(D9,E9,\"d\"))","v":0},{"$f":"IF(OR(H9<0,H9>8),0,1)","v":1}]

{"sheet":"CA","index":3,"n_rows":11,"n_cols":2,"rows_kept":11,"cut":false,"hidden":false,"merged":[[0,0,0,1]]}
["Retour à l'accueil"]
["Arrondissements","Nombre de sessions de conseils d’arrondissement tenues"]
["AKASSATO",0]
["GODOMEY",0]
["GOLO-DJIGBE",0]
["HEVIE",0]
["KPANROUN",0]
["OUEDO",0]
["TOGBA",0]
["ZINVIE",0]
["ABOMEY-CALAVI",0]

{"sheet":"CV","index":4,"n_rows":155,"n_cols":5,"rows_kept":155,"cut":false,"hidden":false,"merged":[[0,0,0,9],[2,3,2,4],[1,3,1,4],[1,2,3,2],[1,0,3,0],[1,1,3,1],[99,0,108,0],[109,0,119,0],[120,0,134,0],[135,0,154,0],[4,0,17,0],[18,0,66,0],[67,0,80,0],[81,0,89,0],[90,0,98,0]]}
["Retour à l'accueil"]
["Arrondissements","Villages","Nombre de réunions de conseils de village tenues au cours de l’année","Section Villagoise\\urbaine de Gestion Fonctiere (SVGF et SUGF)"]
[null,null,null,"Enquetes Publiques Contradictoires (EPC)"]
[null,null,null,"Nombre de demandes effectuées","Nombre de demandes réalisées"]
["AKASSATO","ADJAGBO"]
[null,"AGASSA-GODOMEY"]
[null,"AGONME"]
[null,"AGONSOUNDJA"]
[null,"AKASSATO CENTRE"]
[null,"GBETAGBO"]
[null,"GLO-TOKPA"]
[null,"HOUEKE-GBO"]
[null,"HOUEKE-HONOU"]
[null,"KOLETIN"]
[null,"KPODJI-LES-MONTS"]
[null,"MISSESSINTO"]
[null,"ZEKANMEY-DOME"]
[null,"ZOPAH PALMERAIE"]
["GODOMEY","ABIKOUHOLI"]
[null,"AGBO-CODJI-SEDEGBE"]
[null,"AGONKANMEY"]
[null,"AIMEVO"]
[null,"ALEGLETA"]
[null,"AMANHOUN"]
[null,"ASSROSSA"]
[null,"ATROKPO-CODJI"]
[null,"COCOCODJI"]
[null,"COCOTOMEY"]
[null,"DEKOUNGBE-EGLISE"]
[null,"DEKOUNGBE-USINE"]
[null,"DENOU"]
[null,"DJEKPOTA"]
[null,"DJOUKPA-TOGOUDO"]
[null,"FANDJI"]
[null,"FIGNONHOU"]
[null,"FINAFA"]
[null,"GANGANZOUNME"]
[null,"GBEGNIGAN-MIDOKPO"]
[null,"GBODJE-WOMEY"]
[null,"GNINKINDJI"]
[null,"GODOMEY-N'GBEHO"]
[null,"GODOMEY-TOGOUDO"]
[null,"HEDOME"]
[null,"HELOUTO"]
[null,"HOUAKOMEY"]
[null,"HOUNSA-AGBODOKPA"]
[null,"LA PAIX"]
[null,"LOBOZOUNKPA"]
[null,"MARIA-GLETA"]
[null,"NINGBOTO"]
[null,"NONHOUENOU"]
[null,"OUNVENOUMEDE"]
[null,"PLATEAU"]
[null,"SALAMEY"]
[null,"SEDJANNANKO"]
[null,"SEDOMEY"]
[null,"SELOLI-FANDJI"]
[null,"SODO"]
[null,"TANKPE"]
[null,"TOGBIN-DAHO"]
[null,"TOGBIN-KPEVI"]
[null,"TOGNIN-FANDJI"]
[null,"TOKPA"]
[null,"WOMEY CENTRE"]
[null,"YENANDJRO"]
[null,"YOLOMAHOUTO"]
[null,"ZOUNGA"]
["GOLO-DJIGBE","ADJAME"]
[null,"AGONGBE"]
[null,"AGONKESSA"]
[null,"ALLADACOME"]
[null,"AZONSA"]
[null,"DJISSOUKPA"]
[null,"DOMEY-GBO"]
[null,"GOLO-DJIGBE"]
[null,"GOLO-FANTO"]
[null,"LOHOUSSA"]
[null,"MISSEBO-ESPACE SAINT"]
[null,"YEKON-AGA"]
[null,"YEKON-DO"]
[null,"ZEKANMEY"]
["HEVIE","ADOVIE"]
[null,"AKOSSAVIE"]
[null,"DOSSOUNOU"]
[null,"HEVIE CENTRE"]
[null,"HOUINME"]
[null,"HOUNYEVA"]
[null,"HOUNZEVIE"]
[null,"SOGAN"]
[null,"ZOUNGO"]
["KPANROUN","ANAGBO"]
[null,"AVAGBE"]
[null,"BOZOUN"]
[null,"DJIGBO"]
[null,"HADJANAHO"]
[null,"KPANROUN"]
[null,"KPANROUN-DODOMEY"]
[null,"KPAVIEDJA"]
[null,"KPE"]
["OUEDO","ADJAGBO"]
[null,"ADJAGBO-AIDJEDO"]
[null,"ADJAGLO-AIDJEDO"]
[null,"AHOUATO"]
[null,"ALANSANKOME"]
[null,"DASSEKOMEY"]
[null,"DESSATO"]
[null,"KPOSSIDJA"]
[null,"OUEDO CENTRE"]
[null,"OUEDO CENTRE"]
["TOGBA","AHOSSOUGBETA"]
[null,"DRABO"]
[null,"FIFONSI"]
[null,"HOUETO"]
[null,"OUEGA-AGUE"]
[null,"OUEGA-TOKPA"]
[null,"SOME"]
[null,"TANKPE"]
[null,"TOGBA MARIA-GLETA"]
[null,"TOKAN"]
[null,"TOKAN AIDEGNON"]
["ZINVIE","ADJOGANSA"]
[null,"DANGBODJI"]
[null,"DOKOMEY"]
[null,"GBODJE"]
[null,"GBODJOKO"]
[null,"HOUEGOUDO"]
[null,"KPOTOMEY"]
[null,"SOKAN"]
[null,"WAWATA"]
[null,"WAWATA-TODJA"]
[null,"YEVIE"]
[null,"YEVIE-NOUGO"]
[null,"ZINVIE-AGOLEDJI"]
[null,"ZINVIE-FANDJI"]
[null,"ZINVIE-ZOUNME"]
["ABOMEY-CALAVI","AGAMANDIN"]
[null,"AGORI"]
[null,"AIFA"]
[null,"AITCHEDJI"]
[null,"ALEDJO"]
[null,"CITE LA VICTOIRE"]
[null,"CITE LES PALMIERS"]
[null,"FANDJI"]
[null,"FINAFA"]
[null,"GBODJO"]
[null,"KANSOUNKPA"]
[null,"SEME"]
[null,"TANKPE"]
[null,"TCHINANGBEGBO"]
[null,"TOKPA-ZOUNGO"]
[null,"TOKPA-ZOUNGO NORD"]
[null,"TOKPA-ZOUNGO SUD"]
[null,"ZOGBADJE"]
[null,"ZOPAH"]
[null,"ZOUNDJA"]

{"sheet":"CP","index":5,"n_rows":19,"n_cols":42,"rows_kept":19,"cut":false,"hidden":false,"merged":[[1,0,1,2],[1,3,1,38],[2,3,2,5],[2,6,2,8],[2,9,2,11],[2,12,2,14],[2,15,2,17],[2,18,2,20],[2,21,2,23],[2,24,2,26],[2,27,2,29],[2,30,2,32],[2,33,2,35],[2,36,2,38],[2,0,3,0],[2,1,3,1],[2,2,3,2]]}
["Retour à l'accueil"]
["Tenue des sessions ordinaires des commissions permanentes"]
["Commissions permanentes (CP)","Nom de la commission","Effectif des membres ","Réunion N°1",null,null,"Réunion N°2",null,null,"Réunion N°3",null,null,"Réunion N°4",null,null,"Réunion N°5",null,null,"Réunion N°6",null,null,"Réunion N°7",null,null,"Réunion N°8",null,null,"Réunion N°9",null,null,"Réunion N°10",null,null,"Réunion N°11",null,null,"Réunion N°12"]
[null,null,null,"Nombre de membres presents ","Nombre de propositions faites ","Nombre de propositions réalisées par le Maire","Nombre de membres presents ","Nombre de propositions faites ","Nombre de propositions réalisées par le Maire","Nombre de membres presents ","Nombre de propositions faites ","Nombre de propositions réalisées par le Maire","Nombre de membres presents ","Nombre de propositions faites ","Nombre de propositions réalisées par le Maire","Nombre de membres presents ","Nombre de propositions faites ","Nombre de propositions réalisées par le Maire","Nombre de membres presents ","Nombre de propositions faites ","Nombre de propositions réalisées par le Maire","Nombre de membres presents ","Nombre de propositions faites ","Nombre de propositions réalisées par le Maire","Nombre de membres presents ","Nombre de propositions faites ","Nombre de propositions réalisées par le Maire","Nombre de membres presents ","Nombre de propositions faites ","Nombre de propositions réalisées par le Maire","Nombre de membres presents ","Nombre de propositions faites ","Nombre de propositions réalisées par le Maire","Nombre de membres presents ","Nombre de propositions faites ","Nombre de propositions réalisées par le Maire","Nombre de membres presents ","Nombre de propositions faites ","Nombre de propositions réalisées par le Maire"]
["CP N°1","Commission des Affaires Economiques et Financieres (CAEF)",2,null,null,null,null,null,null,null,null,null,null,null,null,null,null,null,null,null,null,null,null,null,null,null,null,null,null,null,null,null,null,null,null,null,null,null,null,null,null,{"$f":"C5*COUNTA(D5,G5,J5,M5,S5,V5,Y5,AB5,AE5,AH5,AK5)","v":0}]
["CP N°2","Commission des Affaires Domaniales et Environnementales (CADE)",2,null,null,null,null,null,null,null,null,null,null,null,null,null,null,null,null,null,null,null,null,null,null,null,null,null,null,null,null,null,null,null,null,null,null,null,null,null,null,0]
["CP N°3","Commission des Affaires Sociales et Culturelles (CASC)",2,null,null,null,null,null,null,null,null,null,null,null,null,null,null,null,null,null,null,null,null,null,null,null,null,null,null,null,null,null,null,null,null,null,null,null,null,null,null,0]
["CP N°4","Commission du suivi des Plans et Programme de Développement ",2]
["CP N°5","Commission de la lutte contre l'Evasion Fiscale",2]
["CP N°6","Commission des Infrastructures, des Equipements, des Travaux Publics et des Transports",2]
["CP N°7","Commission de la Promotion de l'emploi",2,null,null,null,null,null,null,null,null,null,null,null,null,null,null,null,null,null,null,null,null,null,null,null,null,null,null,null,null,null,null,null,null,null,null,null,null,null,null,0]
["CP N°8","Commission de la Coopération Décentralisée",2,null,null,null,null,null,null,null,null,null,null,null,null,null,null,null,null,null,null,null,null,null,null,null,null,null,null,null,null,null,null,null,null,null,null,null,null,null,null,0]
["CP N°9","Commission de la Micro Finance et de la Lutte contre la Pauvreté",2,null,null,null,null,null,null,null,null,null,null,null,null,null,null,null,null,null,null,null,null,null,null,null,null,null,null,null,null,null,null,null,null,null,null,null,null,null,null,0]
["CP N°10","Commission du Contentieux  et des  Affaires Juridiques",2,null,null,null,null,null,null,null,null,null,null,null,null,null,null,null,null,null,null,null,null,null,null,null,null,null,null,null,null,null,null,null,null,null,null,null,null,null,null,0]
["CP N°11","Commission chargée des relations avec la société civile",2,null,null,null,null,null,null,null,null,null,null,null,null,null,null,null,null,null,null,null,null,null,null,null,null,null,null,null,null,null,null,null,null,null,null,null,null,null,null,0]
["CP N°12","Commission de la Sécurité et de la Gestion des Calamités",2,null,null,null,null,null,null,null,null,null,null,null,null,null,null,null,null,null,null,null,null,null,null,null,null,null,null,null,null,null,null,null,null,null,null,null,null,null,null,0]
["CP N°13","Commission de la Communication et de l'information",2,null,null,null,null,null,null,null,null,null,null,null,null,null,null,null,null,null,null,null,null,null,null,null,null,null,null,null,null,null,null,null,null,null,null,null,null,null,null,0]
["Nombre",null,{"$f":"COUNT(C5:C17)","v":13},0,0,0,0,0,0,0,0,0,0,0,0,0,0,0,0,0,0,0,0,0,0,0,0,0,0,0,0,0,0,0,0,0,0,0,0,null,null,{"$f":"SUM(AP5:AP17)","v":0}]
["Effectif",null,{"$f":"SUM(C5:C17)","v":26},0,0,0,0,0,0,0,0,0,0,0,0,0,0,0,0,0,0,0,0,0,0,0,0,0,0,0,0,0,0,0,0,0,0,0,0]

{"sheet":"Cadres de Concertation","index":6,"n_rows":18,"n_cols":12,"rows_kept":18,"cut":false,"hidden":false,"merged":[[0,0,0,1],[6,3,17,11],[2,3,3,4],[1,0,1,11],[2,0,2,2],[2,5,2,11],[3,0,3,1],[4,0,4,1],[3,5,4,5],[3,6,4,6],[3,7,4,7],[3,8,4,8],[3,9,4,9],[3,10,4,10],[3,11,4,11],[5,3,5,4]]}
["Retour à l'accueil"]
["Tenue des Cadres de Concertation"]
[" Mairie-SDE",null,null,null,null,"Autres Cadres "]
["Effectif des membres du Cadre de Concertation Mairie-SDE",null,null,null,null,"Education","Eau, Hygiène et Assainissement","Agricole","Maire et OSC","Nutrition","Sport","Autres"]
["Nombre de sessions prévues",null,0]
["Sessions","Effectif présent","Date","Nombre de séances tenues"]
["Session N°1"]
["Session N°2"]
["Session N°3"]
["Session N°4"]
["Session N°5"]
["Session N°6"]
["Session N°7"]
["Session N°8"]
["Session N°9"]
["Session N°10"]
["Session N°11"]
["Session N°12"]

{"sheet":"Tutelle","index":7,"n_rows":9,"n_cols":8,"rows_kept":9,"cut":false,"hidden":false,"merged":[[5,4,8,4],[5,5,5,6],[6,5,6,6],[7,5,7,6],[8,5,8,6],[1,4,4,4],[1,5,1,6],[2,5,2,6],[3,5,3,6],[4,5,4,6],[8,0,8,2],[0,0,0,3],[1,0,1,3],[2,0,2,1],[6,0,6,3],[7,0,7,2]]}
["Retour à l'accueil"]
["Participation aux CDCC",null,null,null,"Budget communal (Budget primitif)","Le budget est transmis ou pas.",null,"TRANSMIS"]
["Effectif (Maire et ses adjoints)",null,3,null,null,"Date d'adoption du budget",null,"2018-11-29"]
["Sessions","Effectif présent","Date début session","Date fin session",null,"Date de transmission du budget à la tutelle",null,"2018-12-13"]
["CDCC N°1",3,null,null,null,"Date d'approbation du budget par la tutelle",null,"2018-12-31"]
["CDCC N°2",3,null,null,"Compte Administratif ","Le compte administratif est  transmis ou pas.",null,"TRANSMIS"]
["Conformité des actes",null,null,null,null,"Date d'adoption du compte administratif de l'année 2018",null,"2019-06-26"]
["Nombre d’actes conformes",null,null,null,null,"Date de transmission à la tutelle",null,"2019-07-10"]
["Nombre d’actes soumis pour approbation",null,null,null,null,"Date d'approbation du compte administratif par la tutelle",null,"2019-08-19"]

{"sheet":"Marchés","index":8,"n_rows":16,"n_cols":842,"rows_kept":16,"cut":false,"hidden":false,"merged":[[7,824,7,825],[7,826,7,827],[7,828,7,829],[7,830,7,831],[7,832,7,833],[6,834,6,835],[6,836,6,837],[6,838,6,839],[6,840,6,841],[7,834,7,835],[7,836,7,837],[7,838,7,839],[7,840,7,841],[7,806,7,807],[7,808,7,809],[7,810,7,811],[7,812,7,813],[7,814,7,815],[7,816,7,817],[7,818,7,819],[7,820,7,821],[7,822,7,823],[7,788,7,789],[7,790,7,791],[7,792,7,793],[7,794,7,795],[7,796,7,797],[7,798,7,799],[7,800,7,801],[7,802,7,803],[7,804,7,805],[7,770,7,771],[7,772,7,773],[7,774,7,775],[7,776,7,777],[7,778,7,779],[7,780,7,781],[7,782,7,783],[7,784,7,785],[7,786,7,787],[7,752,7,753],[7,754,7,755],[7,756,7,757],[7,758,7,759],[7,760,7,761],[7,762,7,763],[7,764,7,765],[7,766,7,767],[7,768,7,769],[7,734,7,735],[7,736,7,737],[7,738,7,739],[7,740,7,741],[7,742,7,743],[7,744,7,745],[7,746,7,747],[7,748,7,749],[7,750,7,751],[7,716,7,717],[7,718,7,719],[7,720,7,721],[7,722,7,723],[7,724,7,725],[7,726,7,727],[7,728,7,729],[7,730,7,731],[7,732,7,733],[7,698,7,699],[7,700,7,701],[7,702,7,703],[7,704,7,705],[7,706,7,707],[7,708,7,709],[7,710,7,711],[7,712,7,713],[7,714,7,715],[7,680,7,681],[7,682,7,683],[7,684,7,685],[7,686,7,687],[7,688,7,689],[7,690,7,691],[7,692,7,693],[7,694,7,695],[7,696,7,697],[6,820,6,821],[6,822,6,823],[6,824,6,825],[6,826,6,827],[6,828,6,829],[6,830,6,831],[6,832,6,833],[7,648,7,649],[7,650,7,651],[7,652,7,653],[7,654,7,655],[7,656,7,657],[7,658,7,659],[7,660,7,661],[7,662,7,663],[7,664,7,665],[7,666,7,667],[7,668,7,669],[7,670,7,671],[7,672,7,673],[7,674,7,675],[7,676,7,677],[7,678,7,679],[6,802,6,803],[6,804,6,805],[6,806,6,807],[6,808,6,809],[6,810,6,811],[6,812,6,813],[6,814,6,815],[6,816,6,817],[6,818,6,819],[6,784,6,785],[6,786,6,787],[6,788,6,789],[6,790,6,791],[6,792,6,793],[6,794,6,795],[6,796,6,797],[6,798,6,799],[6,800,6,801],[6,766,6,767],[6,768,6,769],[6,770,6,771],[6,772,6,773],[6,774,6,775],[6,776,6,777],[6,778,6,779],[6,780,6,781],[6,782,6,783],[6,748,6,749],[6,750,6,751],[6,752,6,753],[6,754,6,755],[6,756,6,757],[6,758,6,759],[6,760,6,761],[6,762,6,763],[6,764,6,765],[6,730,6,731],[6,732,6,733],[6,734,6,735],[6,736,6,737],[6,738,6,739],[6,740,6,741],[6,742,6,743],[6,744,6,745],[6,746,6,747],[6,712,6,713],[6,714,6,715],[6,716,6,717],[6,718,6,719],[6,720,6,721],[6,722,6,723],[6,724,6,725],[6,726,6,727],[6,728,6,729],[6,694,6,695],[6,696,6,697],[6,698,6,699],[6,700,6,701],[6,702,6,703],[6,704,6,705],[6,706,6,707],[6,708,6,709],[6,710,6,711],[6,676,6,677],[6,678,6,679],[6,680,6,681],[6,682,6,683],[6,684,6,685],[6,686,6,687],[6,688,6,689],[6,690,6,691],[6,692,6,693],[6,0,8,0],[6,1,8,1],[7,2,7,3],[7,4,7,5],[7,6,7,7],[0,0,0,7],[5,0,5,3],[3,0,3,3],[2,0,2,3],[1,0,1,3],[1,5,5,5],[4,0,4,3],[6,8,6,9],[7,8,7,9],[6,10,6,11],[7,10,7,11],[6,12,6,13],[7,12,7,13],[6,2,6,3],[6,4,6,5],[6,6,6,7],[6,20,6,21],[7,20,7,21],[6,22,6,23],[7,22,7,23],[6,24,6,25],[7,24,7,25],[6,14,6,15],[7,14,7,15],[6,16,6,17],[7,16,7,17],[6,18,6,19],[7,18,7,19],[6,34,6,35],[7,34,7,35],[6,36,6,37],[7,36,7,37],[6,38,6,39],[7,38,7,39],[6,26,6,27],[7,26,7,27],[6,28,6,29],[7,28,7,29],[6,30,6,31],[7,30,7,31],[6,46,6,47],[7,46,7,47],[6,48,6,49],[7,48,7,49],[6,50,6,51],[7,50,7,51],[6,40,6,41],[7,40,7,41],[6,42,6,43],[7,42,7,43],[6,44,6,45],[7,44,7,45],[6,58,6,59],[7,58,7,59],[6,60,6,61],[7,60,7,61],[6,62,6,63],[7,62,7,63],[6,52,6,53],[7,52,7,53],[6,54,6,55],[7,54,7,55],[6,56,6,57],[7,56,7,57],[6,70,6,71],[7,70,7,71],[6,72,6,73],[7,72,7,73],[6,74,6,75],[7,74,7,75],[6,64,6,65],[7,64,7,65],[6,66,6,67],[7,66,7,67],[6,68,6,69],[7,68,7,69],[6,82,6,83],[7,82,7,83],[6,84,6,85],[7,84,7,85],[6,86,6,87],[7,86,7,87],[6,76,6,77],[7,76,7,77],[6,78,6,79],[7,78,7,79],[6,80,6,81],[7,80,7,81],[6,94,6,95],[7,94,7,95],[6,96,6,97],[7,96,7,97],[6,98,6,99],[7,98,7,99],[6,88,6,89],[7,88,7,89],[6,90,6,91],[7,90,7,91],[6,92,6,93],[7,92,7,93],[6,106,6,107],[7,106,7,107],[6,108,6,109],[7,108,7,109],[6,110,6,111],[7,110,7,111],[6,100,6,101],[7,100,7,101],[6,102,6,103],[7,102,7,103],[6,104,6,105],[7,104,7,105],[6,118,6,119],[7,118,7,119],[6,120,6,121],[7,120,7,121],[6,122,6,123],[7,122,7,123],[6,112,6,113],[7,112,7,113],[6,114,6,115],[7,114,7,115],[6,116,6,117],[7,116,7,117],[6,130,6,131],[7,130,7,131],[6,132,6,133],[7,132,7,133],[6,134,6,135],[7,134,7,135],[6,124,6,125],[7,124,7,125],[6,126,6,127],[7,126,7,127],[6,128,6,129],[7,128,7,129],[6,142,6,143],[7,142,7,143],[6,144,6,145],[7,144,7,145],[6,146,6,147],[7,146,7,147],[6,136,6,137],[7,136,7,137],[6,138,6,139],[7,138,7,139],[6,140,6,141],[7,140,7,141],[6,154,6,155],[7,154,7,155],[6,156,6,157],[7,156,7,157],[6,158,6,159],[7,158,7,159],[6,148,6,149],[7,148,7,149],[6,150,6,151],[7,150,7,151],[6,152,6,153],[7,152,7,153],[6,166,6,167],[7,166,7,167],[6,168,6,169],[7,168,7,169],[6,170,6,171],[7,170,7,171],[6,160,6,161],[7,160,7,161],[6,162,6,163],[7,162,7,163],[6,164,6,165],[7,164,7,165],[6,178,6,179],[7,178,7,179],[6,180,6,181],[7,180,7,181],[6,182,6,183],[7,182,7,183],[6,172,6,173],[7,172,7,173],[6,174,6,175],[7,174,7,175],[6,176,6,177],[7,176,7,177],[6,190,6,191],[7,190,7,191],[6,192,6,193],[7,192,7,193],[6,194,6,195],[7,194,7,195],[6,184,6,185],[7,184,7,185],[6,186,6,187],[7,186,7,187],[6,188,6,189],[7,188,7,189],[6,202,6,203],[7,202,7,203],[6,204,6,205],[7,204,7,205],[6,206,6,207],[7,206,7,207],[6,196,6,197],[7,196,7,197],[6,198,6,199],[7,198,7,199],[6,200,6,201],[7,200,7,201],[6,214,6,215],[7,214,7,215],[6,216,6,217],[7,216,7,217],[6,218,6,219],[7,218,7,219],[6,208,6,209],[7,208,7,209],[6,210,6,211],[7,210,7,211],[6,212,6,213],[7,212,7,213],[6,226,6,227],[7,226,7,227],[6,228,6,229],[7,228,7,229],[6,230,6,231],[7,230,7,231],[6,220,6,221],[7,220,7,221],[6,222,6,223],[7,222,7,223],[6,224,6,225],[7,224,7,225],[6,238,6,239],[7,238,7,239],[6,240,6,241],[7,240,7,241],[6,242,6,243],[7,242,7,243],[6,232,6,233],[7,232,7,233],[6,234,6,235],[7,234,7,235],[6,236,6,237],[7,236,7,237],[6,250,6,251],[7,250,7,251],[6,252,6,253],[7,252,7,253],[6,254,6,255],[7,254,7,255],[6,244,6,245],[7,244,7,245],[6,246,6,247],[7,246,7,247],[6,248,6,249],[7,248,7,249],[6,262,6,263],[7,262,7,263],[6,264,6,265],[7,264,7,265],[6,266,6,267],[7,266,7,267],[6,256,6,257],[7,256,7,257],[6,258,6,259],[7,258,7,259],[6,260,6,261],[7,260,7,261],[6,274,6,275],[7,274,7,275],[6,276,6,277],[7,276,7,277],[6,278,6,279],[7,278,7,279],[6,268,6,269],[7,268,7,269],[6,270,6,271],[7,270,7,271],[6,272,6,273],[7,272,7,273],[6,286,6,287],[7,286,7,287],[6,288,6,289],[7,288,7,289],[6,290,6,291],[7,290,7,291],[6,280,6,281],[7,280,7,281],[6,282,6,283],[7,282,7,283],[6,284,6,285],[7,284,7,285],[6,298,6,299],[7,298,7,299],[6,300,6,301],[7,300,7,301],[6,302,6,303],[7,302,7,303],[6,292,6,293],[7,292,7,293],[6,294,6,295],[7,294,7,295],[6,296,6,297],[7,296,7,297],[6,310,6,311],[7,310,7,311],[6,312,6,313],[7,312,7,313],[6,314,6,315],[7,314,7,315],[6,304,6,305],[7,304,7,305],[6,306,6,307],[7,306,7,307],[6,308,6,309],[7,308,7,309],[6,322,6,323],[7,322,7,323],[6,324,6,325],[7,324,7,325],[6,326,6,327],[7,326,7,327],[6,316,6,317],[7,316,7,317],[6,318,6,319],[7,318,7,319],[6,320,6,321],[7,320,7,321],[6,334,6,335],[7,334,7,335],[6,336,6,337],[7,336,7,337],[6,338,6,339],[7,338,7,339],[6,328,6,329],[7,328,7,329],[6,330,6,331],[7,330,7,331],[6,332,6,333],[7,332,7,333],[6,346,6,347],[7,346,7,347],[6,348,6,349],[7,348,7,349],[6,350,6,351],[7,350,7,351],[6,340,6,341],[7,340,7,341],[6,342,6,343],[7,342,7,343],[6,344,6,345],[7,344,7,345],[6,358,6,359],[7,358,7,359],[6,360,6,361],[7,360,7,361],[6,362,6,363],[7,362,7,363],[6,352,6,353],[7,352,7,353],[6,354,6,355],[7,354,7,355],[6,356,6,357],[7,356,7,357],[6,370,6,371],[7,370,7,371],[6,372,6,373],[7,372,7,373],[6,374,6,375],[7,374,7,375],[6,364,6,365],[7,364,7,365],[6,366,6,367],[7,366,7,367],[6,368,6,369],[7,368,7,369],[6,382,6,383],[7,382,7,383],[6,384,6,385],[7,384,7,385],[6,386,6,387],[7,386,7,387],[6,376,6,377],[7,376,7,377],[6,378,6,379],[7,378,7,379],[6,380,6,381],[7,380,7,381],[6,394,6,395],[7,394,7,395],[6,396,6,397],[7,396,7,397],[6,398,6,399],[7,398,7,399],[6,388,6,389],[7,388,7,389],[6,390,6,391],[7,390,7,391],[6,392,6,393],[7,392,7,393],[6,406,6,407],[7,406,7,407],[6,408,6,409],[7,408,7,409],[6,410,6,411],[7,410,7,411],[6,400,6,401],[7,400,7,401],[6,402,6,403],[7,402,7,403],[6,404,6,405],[7,404,7,405],[6,418,6,419],[7,418,7,419],[6,420,6,421],[7,420,7,421],[6,422,6,423],[7,422,7,423],[6,412,6,413],[7,412,7,413],[6,414,6,415],[7,414,7,415],[6,416,6,417],[7,416,7,417],[6,430,6,431],[7,430,7,431],[6,432,6,433],[7,432,7,433],[6,434,6,435],[7,434,7,435],[6,424,6,425],[7,424,7,425],[6,426,6,427],[7,426,7,427],[6,428,6,429],[7,428,7,429],[6,442,6,443],[7,442,7,443],[6,444,6,445],[7,444,7,445],[6,446,6,447],[7,446,7,447],[6,436,6,437],[7,436,7,437],[6,438,6,439],[7,438,7,439],[6,440,6,441],[7,440,7,441],[6,454,6,455],[7,454,7,455],[6,456,6,457],[7,456,7,457],[6,458,6,459],[7,458,7,459],[6,448,6,449],[7,448,7,449],[6,450,6,451],[7,450,7,451],[6,452,6,453],[7,452,7,453],[6,466,6,467],[7,466,7,467],[6,468,6,469],[7,468,7,469],[6,470,6,471],[7,470,7,471],[6,460,6,461],[7,460,7,461],[6,462,6,463],[7,462,7,463],[6,464,6,465],[7,464,7,465],[6,478,6,479],[7,478,7,479],[6,480,6,481],[7,480,7,481],[6,482,6,483],[7,482,7,483],[6,472,6,473],[7,472,7,473],[6,474,6,475],[7,474,7,475],[6,476,6,477],[7,476,7,477],[6,490,6,491],[7,490,7,491],[6,492,6,493],[7,492,7,493],[6,494,6,495],[7,494,7,495],[6,484,6,485],[7,484,7,485],[6,486,6,487],[7,486,7,487],[6,488,6,489],[7,488,7,489],[6,502,6,503],[7,502,7,503],[6,504,6,505],[7,504,7,505],[6,506,6,507],[7,506,7,507],[6,496,6,497],[7,496,7,497],[6,498,6,499],[7,498,7,499],[6,500,6,501],[7,500,7,501],[6,514,6,515],[7,514,7,515],[6,516,6,517],[7,516,7,517],[6,518,6,519],[7,518,7,519],[6,508,6,509],[7,508,7,509],[6,510,6,511],[7,510,7,511],[6,512,6,513],[7,512,7,513],[6,526,6,527],[7,526,7,527],[6,528,6,529],[7,528,7,529],[6,530,6,531],[7,530,7,531],[6,520,6,521],[7,520,7,521],[6,522,6,523],[7,522,7,523],[6,524,6,525],[7,524,7,525],[6,538,6,539],[7,538,7,539],[6,540,6,541],[7,540,7,541],[6,542,6,543],[7,542,7,543],[6,532,6,533],[7,532,7,533],[6,534,6,535],[7,534,7,535],[6,536,6,537],[7,536,7,537],[6,550,6,551],[7,550,7,551],[6,552,6,553],[7,552,7,553],[6,554,6,555],[7,554,7,555],[6,544,6,545],[7,544,7,545],[6,546,6,547],[7,546,7,547],[6,548,6,549],[7,548,7,549],[6,562,6,563],[7,562,7,563],[6,564,6,565],[7,564,7,565],[6,566,6,567],[7,566,7,567],[6,556,6,557],[7,556,7,557],[6,558,6,559],[7,558,7,559],[6,560,6,561],[7,560,7,561],[6,574,6,575],[7,574,7,575],[6,576,6,577],[7,576,7,577],[6,578,6,579],[7,578,7,579],[6,568,6,569],[7,568,7,569],[6,570,6,571],[7,570,7,571],[6,572,6,573],[7,572,7,573],[6,586,6,587],[7,586,7,587],[6,588,6,589],[7,588,7,589],[6,590,6,591],[7,590,7,591],[6,580,6,581],[7,580,7,581],[6,582,6,583],[7,582,7,583],[6,584,6,585],[7,584,7,585],[6,598,6,599],[7,598,7,599],[6,600,6,601],[7,600,7,601],[6,602,6,603],[7,602,7,603],[6,592,6,593],[7,592,7,593],[6,594,6,595],[7,594,7,595],[6,596,6,597],[7,596,7,597],[6,610,6,611],[7,610,7,611],[6,612,6,613],[7,612,7,613],[6,614,6,615],[7,614,7,615],[6,604,6,605],[7,604,7,605],[6,606,6,607],[7,606,7,607],[6,608,6,609],[7,608,7,609],[6,622,6,623],[7,622,7,623],[6,624,6,625],[7,624,7,625],[6,626,6,627],[7,626,7,627],[6,616,6,617],[7,616,7,617],[6,618,6,619],[7,618,7,619],[6,620,6,621],[7,620,7,621],[6,634,6,635],[7,634,7,635],[6,636,6,637],[7,636,7,637],[6,638,6,639],[7,638,7,639],[6,628,6,629],[7,628,7,629],[6,630,6,631],[7,630,7,631],[6,632,6,633],[7,632,7,633],[6,646,6,647],[7,646,7,647],[6,640,6,641],[7,640,7,641],[6,642,6,643],[7,642,7,643],[6,644,6,645],[7,644,7,645],[6,648,6,649],[6,668,6,669],[6,670,6,671],[6,672,6,673],[6,674,6,675],[6,650,6,651],[6,652,6,653],[6,654,6,655],[6,656,6,657],[6,658,6,659],[6,660,6,661],[6,662,6,663],[6,664,6,665],[6,666,6,667]]}
["Retour à l'accueil"]
["Type de commune",null,null,null,"Commune ordinaire"]
["Plan de passation des marchés publics publiés",null,null,null,"OUI"]
["Nombre de marchés publics passés hors plan de passation des marchés ",null,null,null,0]
["Nombre de marchés conclus dans l'année",null,null,null,416]
["Nombre de marchés conclus dans l’année ayant respecté les procédures",null,null,null,416]
["Mode de passation","Délai de passation"," Marché N°1",null," Marché N°2",null," Marché N°3",null," Marché N°4",null," Marché N°5",null," Marché N°6",null," Marché N°7",null," Marché N°8",null," Marché N°9",null," Marché N°10",null," Marché N°11",null," Marché N°12",null," Marché N°13",null," Marché N°14",null," Marché N°15",null,null,null," Marché N°17",null," Marché N°18",null," Marché N°19",null," Marché N°20",null," Marché N°21",null," Marché N°22",null," Marché N°23",null," Marché N°24",null," Marché N°25",null," Marché N°26",null," Marché N°27",null," Marché N°28",null," Marché N°29",null," Marché N°30",null," Marché N°31",null," Marché N°32",null," Marché N°33",null," Marché N°34",null," Marché N°35",null," Marché N°36",null," Marché N°37",null," Marché N°38",null," Marché N°39",null," Marché N°40",null," Marché N°41",null," Marché N°42",null," Marché N°43",null," Marché N°44",null," Marché N°45",null," Marché N°46",null," Marché N°47",null," Marché N°48",null," Marché N°49",null," Marché N°50",null," Marché N°51",null," Marché N°52",null," Marché N°53",null," Marché N°54",null," Marché N°55",null," Marché N°56",null," Marché N°57",null," Marché N°58",null," Marché N°59",null," Marché N°60",null," Marché N°61",null," Marché N°62",null," Marché N°63",null," Marché N°64",null," Marché N°65",null," Marché N°66",null," Marché N°67",null," Marché N°68",null," Marché N°69",null," Marché N°70",null," Marché N°71",null," Marché N°72",null," Marché N°73",null," Marché N°74",null," Marché N°75",null," Marché N°76",null," Marché N°77",null," Marché N°78",null," Marché N°79",null," Marché N°80",null," Marché N°81",null," Marché N°82",null," Marché N°83",null," Marché N°84",null," Marché N°85",null," Marché N°86",null," Marché N°87",null," Marché N°88",null," Marché N°89",null," Marché N°90",null," Marché N°91",null," Marché N°92",null," Marché N°93",null," Marché N°94",null," Marché N°95",null," Marché N°96",null," Marché N°97",null," Marché N°98",null," Marché N°99",null," Marché N°100",null," Marché N°101",null," Marché N°102",null," Marché N°103",null," Marché N°104",null," Marché N°105",null," Marché N°106",null," Marché N°107",null," Marché N°108",null," Marché N°109",null," Marché N°110",null," Marché N°111",null," Marché N°112",null," Marché N°113",null," Marché N°114",null," Marché N°115",null," Marché N°116",null," Marché N°117",null," Marché N°118",null," Marché N°119",null," Marché N°120",null," Marché N°121",null," Marché N°122",null," Marché N°123",null," Marché N°124",null," Marché N°125",null," Marché N°126",null," Marché N°127",null," Marché N°128",null," Marché N°129",null," Marché N°130",null," Marché N°131",null," Marché N°132",null," Marché N°133",null," Marché N°134",null," Marché N°135",null," Marché N°136",null," Marché N°137",null," Marché N°138",null," Marché N°139",null," Marché N°140",null," Marché N°141",null," Marché N°142",null," Marché N°143",null," Marché N°144",null," Marché N°145",null," Marché N°146",null," Marché N°147",null," Marché N°148",null," Marché N°149",null," Marché N°150",null," Marché N°151",null," Marché N°152",null," Marché N°153",null," Marché N°154",null," Marché N°155",null," Marché N°156",null," Marché N°157",null," Marché N°158",null," Marché N°159",null," Marché N°160",null," Marché N°161",null," Marché N°162",null," Marché N°163",null," Marché N°164",null," Marché N°165",null," Marché N°166",null," Marché N°167",null," Marché N°168",null," Marché N°169",null," Marché N°170",null," Marché N°171",null," Marché N°172",null," Marché N°173",null," Marché N°174",null," Marché N°175",null," Marché N°176",null," Marché N°177",null," Marché N°178",null," Marché N°179",null," Marché N°180",null," Marché N°181",null," Marché N°182",null," Marché N°183",null," Marché N°184",null," Marché N°185",null," Marché N°186",null," Marché N°187",null," Marché N°188",null," Marché N°189",null," Marché N°190",null," Marché N°191",null," Marché N°192",null," Marché N°193",null," Marché N°194",null," Marché N°195",null," Marché N°196",null," Marché N°197",null," Marché N°198",null," Marché N°199",null," Marché N°200",null," Marché N°201",null," Marché N°202",null," Marché N°203",null," Marché N°204",null," Marché N°205",null," Marché N°206",null," Marché N°207",null," Marché N°208",null," Marché N°209",null," Marché N°210",null," Marché N°211",null," Marché N°212",null," Marché N°213",null," Marché N°214",null," Marché N°215",null," Marché N°216",null," Marché N°217",null," Marché N°218",null," Marché N°219",null," Marché N°220",null," Marché N°221",null," Marché N°222",null," Marché N°223",null," Marché N°224",null," Marché N°225",null," Marché N°226",null," Marché N°227",null," Marché N°228",null," Marché N°229",null," Marché N°230",null," Marché N°231",null," Marché N°232",null," Marché N°233",null," Marché N°234",null," Marché N°235",null," Marché N°236",null," Marché N°237",null," Marché N°238",null," Marché N°239",null," Marché N°240",null," Marché N°241",null," Marché N°242",null," Marché N°243",null," Marché N°244",null," Marché N°245",null," Marché N°246",null," Marché N°247",null," Marché N°248",null," Marché N°249",null," Marché N°250",null," Marché N°251",null," Marché N°252",null," Marché N°253",null," Marché N°254",null," Marché N°255",null," Marché N°256",null," Marché N°257",null," Marché N°258",null," Marché N°259",null," Marché N°260",null," Marché N°261",null," Marché N°262",null," Marché N°263",null," Marché N°264",null," Marché N°265",null," Marché N°266",null," Marché N°267",null," Marché N°268",null," Marché N°269",null," Marché N°270",null," Marché N°271",null," Marché N°272",null," Marché N°273",null," Marché N°274",null," Marché N°275",null," Marché N°276",null," Marché N°277",null," Marché N°278",null," Marché N°279",null," Marché N°280",null," Marché N°281",null," Marché N°282",null," Marché N°283",null," Marché N°284",null," Marché N°285",null," Marché N°286",null," Marché N°287",null," Marché N°288",null," Marché N°289",null," Marché N°290",null," Marché N°291",null," Marché N°292",null," Marché N°293",null," Marché N°294",null," Marché N°295",null," Marché N°296",null," Marché N°297",null," Marché N°298",null," Marché N°299",null," Marché N°300",null," Marché N°301",null," Marché N°302",null," Marché N°303",null," Marché N°304",null," Marché N°305",null," Marché N°306",null," Marché N°307",null," Marché N°308",null," Marché N°309",null," Marché N°310",null," Marché N°311",null," Marché N°312",null," Marché N°313",null," Marché N°314",null," Marché N°315",null," Marché N°316",null," Marché N°317",null," Marché N°318",null," Marché N°319",null," Marché N°320",null," Marché N°321",null," Marché N°322",null," Marché N°323",null," Marché N°324",null," Marché N°325",null," Marché N°326",null," Marché N°327",null," Marché N°328",null," Marché N°329",null," Marché N°330",null," Marché N°331",null," Marché N°332",null," Marché N°333",null," Marché N°334",null," Marché N°335",null," Marché N°336",null," Marché N°337",null," Marché N°338",null," Marché N°339",null," Marché N°340",null," Marché N°341",null," Marché N°342",null," Marché N°343",null," Marché N°344",null," Marché N°345",null," Marché N°346",null," Marché N°347",null," Marché N°348",null," Marché N°349",null," Marché N°350",null," Marché N°351",null," Marché N°352",null," Marché N°353",null," Marché N°354",null," Marché N°355",null," Marché N°356",null," Marché N°357",null," Marché N°358",null," Marché N°359",null," Marché N°360",null," Marché N°361",null," Marché N°362",null," Marché N°363",null," Marché N°364",null," Marché N°365",null," Marché N°366",null," Marché N°367",null," Marché N°368",null," Marché N°369",null," Marché N°370",null," Marché N°371",null," Marché N°372",null," Marché N°373",null," Marché N°374",null," Marché N°375",null," Marché N°376",null," Marché N°377",null," Marché N°378",null," Marché N°379",null," Marché N°380",null," Marché N°381",null," Marché N°382",null," Marché N°383",null," Marché N°384",null," Marché N°385",null," Marché N°386",null," Marché N°387",null," Marché N°388",null," Marché N°389",null," Marché N°390",null," Marché N°391",null," Marché N°392",null," Marché N°393",null," Marché N°394",null," Marché N°395",null," Marché N°396",null," Marché N°397",null," Marché N°398",null," Marché N°399",null," Marché N°400",null," Marché N°401",null," Marché N°402",null," Marché N°403",null," Marché N°404",null," Marché N°405",null," Marché N°406",null," Marché N°407",null," Marché N°408",null," Marché N°409",null," Marché N°410",null," Marché N°411",null," Marché N°412",null," Marché N°413",null," Marché N°414",null," Marché N°415",null," Marché N°416",null," Marché N°417",null," Marché N°418",null," Marché N°419",null," Marché N°420"]
[null,null,"Fourniture de matériels mortuaires au profit de la mairie d’Abomey-Calavi ",null,"Entretien et nettoyage des bureaux et abords immédiats du service des impôts d’Abomey-Calavi ",null,"Travaux d’ouverture des voies dans le village d’Agonsoudja dans l’arrondissement d’Akassato",null,"Décoration lumineuse de la façade de la mairie et décor de poteaux électriques ",null,"Changement de pose luminaires étoile magique lumineuse à Hêvié",null,"Changement de pose luminaires cadre à cornet à Arconville ",null,"Décoration lumineuse avec pose de boule de Père Noel devant la résidence du maire ",null,"Changement de pose luminaires et habillage monument à Tankpè ",null,"Changement de pose luminaires (the light-house) ",null,"Changement de pose luminaires (Cornet de l’échangeur et remise à niveau du jet d’eau) ",null,"Enlèvement et transport des déchets du marché de Golo-Djigbé au profit de la mairie d’Abomey-Calavi ",null,"Travaux de construction de 150 ml de clôture de l’UVS de Kpossidja/ Ouêdo",null,"Travaux de construction d’un hangar de 12 m x 5,2m et d’un petit hangar de 12m x 2,60 m dans le marché de Tokpa-Zoungo ",null,"Fourniture de mobiliers scolaires au profit de l’EPP Ouêdo-Adjagbo/Ouêdo ",null,"Gardiennage et surveillance des locaux de la recette perception de la   commune d’Abomey-Calavi ",null,null,null,"Location de bulldozer pour les travaux d’ouverture des voies dans les villages de Agassa-Godomey; Agonmey et Zèkanmey-Domè/ Akassato ",null,"Travaux de construction de 150 ml de clôture de l’EPP de Zogbadjè Alomakoun / Abomey-Calavi",null,"Fourniture de mobiliers scolaires au profit de l’EPP de Kansounkpa /Calavi",null,"Construction de 150 ml de clôture de l’EPP de Tankpè-Foret/ Calavi-centre",null,"Nettoyage et entretien du bloc administratif et de l’enceinte de la cour de la mairie d’Abomey-Calavi ",null,"Travaux d’assainissement partiel du marché de Tokpa Zoungo ",null,"Fourniture de mobiliers scolaires au profit de l’EPP Womey-Yénawa/Godomey",null,"Travaux de construction d’un module de latrine à quatre cabines à double fosses ventilées dans les   EPP de Ouêdo-Aguétokpa et de Tankpè-Foret ",null,"Construction de (03) boutiques dans le marché de OUNVENOUMEDE dans l’ARRONDISSEMENT de GODOMEY",null,"Travaux de construction d’un hangar de 12m X 5,2 m dans le marché de Tokpa- Zoungo ",null,"Travaux de construction de 150 mL de clôture de l’EPP de ADJAGBO dans l’arrondissement de Ouêdo",null,"Commande de registre de naissance au profit de la Mairie",null,"Commande de registre (registre de décès, de mariage et de naissance) au profit de la Mairie",null,"Travaux de réaménagement des pavés et coulages des dalettes dans la Commune d’Abomey - Calavi",null,"Construction de 150 ml de clôture de l’EPP de ALLANSANCOME dans l’ARRONDISSEMENT de OUEDO",null,"Construction de 150 ml de clôture de l’EPP de « LA BENINOISE » dans l’ARRONDISSEMENT de Calavi",null,"Construction de 150 ml de clôture de l’EPP de KPE dans l’ARRONDISSEMENT de KPANROUN",null,"Construction de 150 ml de clôture de l’EPP de Zoca dans l’ARRONDISSEMENT de Calavi",null,"Commande de fourniture de bureau au profit de la Mairie d’Abomey- Calavi",null,"Réalisation d’un dossier spécial sur la Mairie d’Abomey – Calavi avec la photo du Maire à la Une dans la Magazine",null,"Publication d’articles relatifs aux activités de la Mairie d’Abomey - Calavi",null,"Construction d’un module de trois (03) boutiques dans le marché de GNININ dans l’ARRONDISSEMENT d’AKASSATO",null,"Publication d’articles relatifs aux activités de la Mairie d’Abomey - Calavi",null,"Entretien du siège de l’Arrondissement de Zinvié dans la Commune d’Abomey - Calavi",null,"Elaboration d’un bulletin d’information électrique mensuelle – d’un plan de marketing territorial – couverture médiatique et publication dans  le  journal « Le Municipal » des activités de la Mairie d’Abomey - Calavi",null,"Commande de fiches : fiche « parcelle » ; fiche « Bâtiment » et fiche « Etablissement au profit de la Mairie d’Abomey – Calavi.",null,"Travaux de désensablement des voies pavées dans la Commune d’Abomey - Calavi",null,"Travaux de désensablement des voies bitumées  dans la Commune d’Abomey - Calavi",null,"Maintenance générale des installations de conditionnement d’air, des locaux administratifs du RDC, 1er étage et du service RFU de la mairie d’Abomey-Calavi ",null,"Maintenance du logiciel GBCO, suivi et assistance aux utilisateurs des communes (services financiers de la mairie) ",null,"Construction de deux (02) hangars de 12 places dans le marché de Ouêdo-Aïdjèdo /Ouêdo ",null,"Construction de deux (02) hangars de 12 places dans le marché de Ouêdo-Aïdjèdo /Ouêdo",null,"Construction de deux (02) hangars de 12 places dans le marché de Golo-Djigbé/ Golo-Djigbé ",null,"Construction de deux (02) hangars de 12 places dans le marché de Golo-Djigbé/ Golo-Djigbé ",null,"Construction de 150 ml de clôture de l’EPP de Houêkè-Honou ",null,"Commande de valeurs inactives (tickets, timbres et carnet) au profit de la commune d’Abomey-Calavi ",null,"Commande de valeurs inactives (certificats de vie et de charge et affirmations convention de vente) au profit de la commune d’Abomey-Calavi",null,"Publication mensuelle d’articles  relatifs aux activités de la mairie d’Abomey-Calavi",null,"Publication mensuelle d’articles  relatifs aux activités de la mairie d’Abomey-Calavi",null,"Construction d’un module de trois (03) boutiques dans le marché de Tokan dans l’ARRONDISSEMENT de Togba",null,"Construction de deux hangars de douze places chacun dans le marché de OUNVENOUMEDE dans l’Arrondissement de Godomey",null,"Construction d’un module de trois (03) boutiques dans le marché de GNININ dans l’ARRONDISSEMENT d’AKASSATO",null,"Construction de deux hangars de douze places chacun dans le marché de Gninin",null,"Construction d’un module de trois (03) boutiques dans le marché de GNININ dans l’ARRONDISSEMENT d’AKASSATO",null,"Construction de deux hangars de douze places chacun dans le marché de Gninin",null,"Entretien courant des pistes par la Haute Intensité de Mains d’Œuvre (HIMO)  ",null,"Entretien courant des pistes par la Haute Intensité de Mains d’Œuvre (HIMO)  ",null,"Entretien courant des pistes par la Haute Intensité de Mains d’Œuvre (HIMO)  ",null,"Travaux de réfection du bâtiment de stockage des urnes dans la maison du peuple de Godomey ",null,"Travaux confortatifs (réalisation de placard et autres installations) dans le bureau devant servir pour l’archivage des registres de déclaration des naissances au profit de l’arrondissement de Godomey ",null,"Publication mensuelle d’articles  relatifs aux activités de la mairie d’Abomey-Calavi",null,"Publication mensuelle d’articles  relatifs aux activités de la mairie d’Abomey-Calavi",null,"Réalisation d’une enquête de satisfaction auprès des usagers de la mairie d’Abomey-Calavi ",null,"Publication mensuelle d’articles  relatifs aux activités de la mairie d’Abomey-Calavi",null,"Publication mensuelle d’articles  relatifs aux activités de la mairie d’Abomey-Calavi",null,"Construction de 150 ml de clôture de l’EPP Dassècomey / Ouêdo ",null,"Travaux de construction de 150 ml de clôture de l’EPP Aitchédji ",null,"Travaux de construction de 150 ml de clôture de l’EPP de Ouêdo-Adjagbo ",null,"Travaux de construction de 150 ml de clôture de l’EPP de Sèmè-Makinsa ",null,"Travaux de construction de 150 ml de clôture de l’EPP de Lobozounkpaa /Godomey",null,"Travaux de construction de 150 ml de clôture de l’EPP Adjagbo",null,"Travaux de construction d’un module de latrines à quatre cabines de type VIP à doubles fosses ventilées à l’EPP de Kolètin / Akassato                                                      ",null,"Location d’un camion pour l’évacuation des infrastructures endommagées sur la RNIE 1 et RNIE 2 dans la commune d’Abomey-Calavi ",null,"Réalisation de tenues vestimentaires au profit de la mairie d’Abomey-Calavi ",null,"Travaux confortatifs dans la salle de conférence de la mairie d’Abomey-Calavi ",null,"Travaux de réfection de la salle d’attente, du hall d’entrée des couloirs situés en face du bureau du maire au 1er étage,  de l’escalier et du hall d’entrée au RDC du bâtiment administratif de la mairie d’Abomey-Calavi ",null,"Travaux de curage des collecteurs primaires et secondaires et d’ouverture de tranchées pour l’écoulement des eaux dans la commune d’Abomey-Calavi ",null,"Travaux de curage du réseau d’assainissement de la commune d’Abomey-Calavi ",null,"Entretien courant des pistes dans la commune d’Abomey-Calavi",null,"Travaux de construction de deux hangars à douze places chacun dans le marché de Ouêdo-Aidjèdo ",null,"Travaux de construction de deux hangars à douze places chacun dans le marché de Golo-Djigbé ",null,"Travaux de construction de deux hangars à douze places chacun dans le marché de Golo-Djigbé",null,"Travaux de construction de deux hangars à douze places chacun dans le marché de Ouêdo-Aidjèdo",null,"Commande de valeurs inactives (conventions de vente) au profit de la commune d’Abomey-Calavi ",null,"Travaux de curage des collecteurs primaires et secondaires et d’ouverture de tranchées pour l’écoulement des eaux dans la commune d’Abomey-Calavi",null,"Construction de deux hangars de douze places chacun dans le marché de Ouêdo-Aidjèdo",null,"Acquisition de consommables informatiques au profit de la mairie d’Abomey-Calavi ",null,"Publication d’articles et d’insertions publicitaires au profit de la mairie d’Abomey-Calavi ",null,"Fourniture de mobiliers scolaires au profit de l’EPP de  AKASSATO",null,"Travaux de curage des collecteurs primaires et secondaires et d’ouverture de tranchées pour l’écoulement des eaux dans la Commune d’Abomey – Calavi.",null,"Travaux de construction de 150 ml de clôture de l’EPP TOKAN dans l’ARRONDSENT de TOGBA, Commune d’Abomey-Calavi",null,"Construction d’un bloc de trois boutiques dans le marché de Ounvènoumédé dans l’Arrondissement de GODOMEY",null,"Construction d’un bloc de trois boutiques dans le marché de Ouèdo-Aïdjèdo dans l’Arrondissement de OUEDO.",null,"Travaux de construction de 150 ml de clôture de l’EPP de Ouèdo-Centre nouveau dans l’ARRONDISSEMENT de OUEDO, Commune d’Abomey-Calavi",null,"Travaux de construction de 150 ml de clôture de l’EPP Houèto dans l’ARRONDISSEMENT de TOGBA, Commune d’Abomey-Calavi",null,"Travaux de construction de deux hangars à douze places chacun dans le marché de Womey dans l’Arrondissement de GODOMEY",null,"Travaux de construction de deux hangars à douze places chacun dans le marché de Womey dans l’Arrondissement de GODOMEY",null,"Construction d’un module d’une salle de classe avec bureau et magasin à l’EM Yȇvié",null,"Travaux de construction de deux hangars à douze places chacun dans le marché de Tokan dans l’Arrondissement de TOGBA",null,"Travaux de construction de 150 ml de clôture de l’EPP Yȇvié  dans l’ARRONDSENT de ZINVIE, Commune d’Abomey-Calavi",null,"Travaux de construction de deux hangars à douze places chacun dans le marché de Womey dans l’Arrondissement de GODOMEY",null,"Travaux de construction de deux hangars à douze places chacun dans le marché de ZINVIE",null,"Travaux de construction de 150 ml de clôture de l’EPP AIDEGNON  dans l’ARRONDSENT de TOGBA, Commune d’Abomey-Calavi",null,"Construction d’un module d’une salle de classe avec bureau et magasin à l’EM  de Ouéga-Tokpa",null,"Travaux de construction de 150 ml de clôture de l’EPP SOME  dans l’ARRONDSENT de TOGBA, Commune d’Abomey-Calavi",null,"Travaux de construction de 150 ml de clôture de l’EPP AWAKE  dans l’ARRONDSENT de TOGBA, Commune d’Abomey-Calavi",null,"Travaux d’assistance informatique des CIPE1 et CIPE2 d4Abomey- Calavi.",null,"Travaux de construction de deux hangars à douze places chacun dans le marché de GNININ, Arrondissement d’AKASSATO",null,"Travaux de construction de deux hangars à douze places chacun dans le marché de Ouêdo",null,"Fourniture de 2100 sacs au profit des élèves et écoliers  de la Commune d’Abomey-Calavi",null,"Location de cabines au profit du secrétariat permanent de passation des marchés publics de la Commune d’Abomey-Calavi",null,"Réalisation de l’audit des aupérations de lotissement de la zone d’habitation de l’Arrondissement d’AKASSATO",null,"Travaux de construction de deux hangars à douze places chacun dans le marché de Tokan dans l’Arrondissement de TOGBA",null,"Travaux de construction de deux hangars à douze places chacun dans le marché de Tokan dans l’Arrondissement de TOGBA",null,"Travaux de construction de deux hangars à douze places chacun dans le marché de ZINVIE",null,"Travaux de construction de deux hangars à douze places chacun dans le marché de Tokan dans l’Arrondissement de TOGBA",null,"Travaux de construction de deux hangars à douze places chacun dans le marché de ZINVIE",null,"Travaux de construction de deux hangars à douze places chacun dans le marché de Ouêdo",null,"Travaux de construction de deux hangars à douze places chacun dans le marché de ZINVIE",null,"Travaux de construction de deux hangars à douze places chacun dans le marché de ZINVIE",null,"Travaux de construction de deux hangars à douze places chacun dans le marché de Tokan dans l’Arrondissement de TOGBA",null,"Aménagement de réserves fusionnées dans la ZOCA pour la construction du Siège national de l’Association National des Communes du Bénin(ANCB)",null,"Commande de valeurs inactives (attestations, certificats, demande de mariage) au profit de la Mairie",null,"Commande de valeurs inactives (tickets droit d’exploitation carrière, carnet mutation de nom avec sécurisation) au profit de la Mairie",null,"Construction d’un module d’une salle de classe avec bureau et magasin à l’EM AHOSSOUGBETA dans l’Arrondissement de Togba",null,"Travaux de construction de deux hangars à douze places chacun dans le marché de ZINVIE",null,"Travaux de construction de deux hangars à douze places chacun dans le marché de Tokan dans l’Arrondissement de TOGBA",null,"Construction d’un module d’une salle de classe à l’EM Ouéga-Agué dans l’Arrondissement de Togba",null,"Construction d’un module d’une salle de classe à l’EM Ouéga-Agué dans l’Arrondissement de Togba",null,"Travaux de construction de deux hangars à douze places chacun dans le marché de Tokan dans l’Arrondissement de TOGBA",null,"Travaux de construction de deux hangars à douze places chacun dans le marché de Tokan dans l’Arrondissement de TOGBA",null,"Travaux de construction de deux hangars à douze places chacun dans le marché de Tokan dans l’Arrondissement de TOGBA",null,"Construction d’un bloc de trois boutiques dans le marché de Zinvié dans l’Arrondissement de ZINVIE",null,"Travaux de construction de deux hangars à douze places chacun dans le marché de ZINVIE",null,"Construction de deux hangars de douze places chacun dans le marché de Ouêdo-Aïdjèdo",null,"Rallongement de la table de conférence, confection et pose de rideaux et la décoration de la salle  de conférence au profit de la Mairie d’Abomey-Calavi",null,"Maintenance, Assistance et dépannage des matériels informatiques des services  déconcentrés de la mairie",null,"Construction de deux hangars de douze places chacun dans le marché ST Benoît de Womey",null,"Aménagement et décoration de la salle d’attente du Maire  de la Commune d’Abomey- Calavi",null,"Travaux de construction de deux hangars à douze places chacun dans le marché de Tokan dans l’Arrondissement de TOGBA",null,"Construction d’un module de trois boutiques dans le marché de Tokan dans l’Arrondissement de TOGBA",null,"Acquisition de mobiliers de bureau au profit des bureaux du Premier Adjoint au Maire et la Directrice du cabinet de la Mairie d’Abomey-Calavi",null,"Travaux de construction de deux hangars à douze places chacun dans le marché de ZINVIE",null,"Contrat de prestation de service relatif à la visibilité des activités du Maire",null,"Travaux de construction de deux hangars à douze places chacun dans le marché de Tokan dans l’Arrondissement de TOGBA",null,"Travaux de construction de deux hangars à douze places chacun dans le marché de Tokan dans l’Arrondissement de TOGBA",null,"Travaux de construction de deux hangars à douze places chacun dans le marché de Tokan dans l’Arrondissement de TOGBA",null,"Travaux de construction d’un module de trois boutiques dans le marché de Zinvié",null,"Construction d’un module de trois boutiques dans le marché de Zinvié dans l’Arrondissement de ZINVIE",null,"Travaux de construction de deux hangars à douze places chacun dans le marché de ZINVIE",null,"Construction d’un module de trois boutiques dans le marché de GNININ dans l’Arrondissement d’AKASSATO",null,"Travaux de construction d’un module de trois boutiques dans le marché de Tokan",null,"Travaux de construction de deux hangars à douze places chacun dans le marché de Tokan dans l’Arrondissement de TOGBA",null,"Travaux de construction de deux hangars à douze places chacun dans le marché de ZINVIE",null,"Travaux de construction de deux hangars à douze places chacun dans le marché de Tokan dans l’Arrondissement de TOGBA",null,"Travaux de construction de deux hangars à douze places chacun dans le marché de Tokan dans l’Arrondissement de TOGBA",null,"Construction d’un module de trois boutiques dans le marché de Tokan dans l’Arrondissement de TOGBA",null,"Travaux de construction de deux hangars à douze places chacun dans le marché de Tokan dans l’Arrondissement de TOGBA",null,"Travaux de construction de deux hangars à douze places chacun dans le marché de ZINVIE",null,"Construction d’un module de trois boutiques dans le marché de Zinvié dans l’Arrondissement de ZINVIE",null,"Travaux de construction de deux hangars à douze places chacun dans le marché de Tokan dans l’Arrondissement de TOGBA",null,"Travaux de construction de deux hangars à douze places chacun dans le marché de Tokan dans l’Arrondissement de TOGBA",null,"Travaux de construction de deux hangars à douze places chacun dans le marché de ZINVIE",null,"Travaux de construction de deux hangars à douze places chacun dans le marché de Tokan dans l’Arrondissement de TOGBA",null,"Travaux de construction de deux hangars à douze places chacun dans le marché de GOLO - DJIGBE",null,"Travaux de construction de deux hangars à douze places chacun dans le marché de Tokan dans l’Arrondissement de TOGBA",null,"Travaux de construction de deux hangars à douze places chacun dans le marché de Tokan dans l’Arrondissement de TOGBA",null,"Travaux de construction de deux hangars à douze places chacun dans le marché de ZINVIE",null,"Construction d’un module de trois boutiques dans le marché de TOKAN dans l’Arrondissement de TOGBA",null,"Travaux de construction d’un module de trois boutiques dans le marché de Tokan",null,"Travaux de construction de deux hangars à douze places chacun dans le marché de Tokan",null,"Construction d’un module de trois boutiques dans le marché de Zinvié dans l’Arrondissement de ZINVIE",null,"Travaux de construction de deux hangars à douze places chacun dans le marché de GOLO - DJIGBE",null,"Désherbage et nettoyage des TPC  et de l’échangeur de GODOMEY",null,"Construction d’un module de trois boutiques dans le marché de Zinvié dans l’Arrondissement de ZINVIE",null,"Commande de valeurs inactives (tickets, timbres et carnets) au profit de la Mairie",null,"Travaux de construction de deux hangars à douze places chacun dans le marché de Tokan dans l’Arrondissement de TOGBA",null,"Acquisition de matériels électriques au profit de la Mairie ",null,"Commande de valeurs inactives (convention de vente, certificats de vie, demande de mariage) au profit de la Mairie",null,"Entretien de l’espace vert de la résidence du Maire de la commune d’Abomey-Calavi",null,"Confectionne douze (12) sabots bloque roue adaptable à tous types de véhicules au profit de la Mairie",null,"Partenariat entre la Mairie d’Abomey-Calavi et un quotidien  d’information pour la publication mensuelle d’articles relatifs aux activités de la Mairie",null,"Construction d’un module de latrine à quatre (04) cabines plus deux douches au centre de sante de  HEVIE",null,"construction de 150 ml de clôture du centre de santé de HEVIE",null,"Construction d’un module de latrine à deux (02) cabines au centre de sante de ZINVIE",null,"Travaux de construction de deux hangars à douze places chacun dans le marché de GOLO - DJIGBE",null,"Commande de valeurs inactives (carnets fiché de certification de la ZOPAH et carnets frais de déplacement de la commission) au profit de la  Commune d’Abomey-Calavi",null,"Publication mensuelle d’articles  relatifs aux activités de la Mairie",null,"Publication mensuelle d’articles  relatifs aux activités de la Mairie",null,"Contrôle et suivi technique des travaux de construction d’infrastructure   socio-communautaires (hangars plus boutiques) dans le marché de TOGBA",null,"Contrôle et suivi technique des travaux de construction au profit de la Commune d’Abomey-Calavi",null,"Contrôle et suivi technique des travaux de construction d’infrastructure   socio-communautaires (hangars plus boutiques) dans le marché de Ounvènoumédé à Salamey Godomey",null,"Contrôle et suivi technique des travaux de construction au profit de la Commune d’Abomey-Calavi",null,"Contrôle et suivi technique des travaux de construction  de hangars et de boutiques dans le marché de Tokan Arrondissement de TOGBA",null,"Contrôle et suivi technique des travaux de construction  de hangars et de boutiques dans le marché de Gninin Arrondissement de AKASSATO",null,"Contrôle et suivi technique des travaux de construction au profit de la Commune d’Abomey-Calavi",null,"Contrôle et suivi technique des travaux de construction au profit de la Commune d’Abomey-Calavi",null,"Contrôle et suivi technique des travaux de construction au profit de la Commune d’Abomey-Calavi",null,"Contrôle et suivi technique des travaux de construction au profit de la Commune d’Abomey-Calavi",null,"Contrôle et suivi technique des travaux de construction d’un dispensaire au centre de sante de  GOLO- DJIGBE",null,"Contrôle et suivi technique des travaux de construction d’une maternité au centre de sante de MARIA -GLETA",null,"Contrôle et suivi technique des travaux de construction au profit de la Commune d’Abomey-Calavi",null,"Contrôle et suivi technique des travaux de construction d’un dispensaire au centre de sante de  ZINVIE",null,"Travaux de réfection du bloc Administratif du siège de l’Arrondissement de Godomey",null,"Travaux de construction de deux hangars à douze places chacun dans le marché de Tokan dans l’Arrondissement de TOGBA",null,"Travaux de construction de deux hangars à douze places chacun dans le marché de Ouèdo dans l’Arrondissement de OUEDO",null,"Construction de deux hangars de douze places chacun dans le marché de Ouêdo-Aïdjèdo",null,"Fourniture de 2100 sacs au profit des écoliers et élèves de la Commune d’Abomey-Calavi",null,"Fourniture de mobiliers  scolaire au profit des écoles primaires publiques de Togoudo, de Dèkoungbé et de Cocotomey dans l’Arrondissement de Godomey",null,"Fourniture de mobiliers  scolaire au profit des écoles primaires publiques de Ouèdo –Adjagbo, Kansoukpa et Akassato dans la Commune d’Abomey-Calavi",null,"Travaux de construction de deux hangars à douze places chacun dans le marché de GOLO - DJIGBE",null,"Construction de trois boutiques dans le marché de Ouêdo-Aïdjèdo",null,"Travaux de construction de 150 ml de clôture de l’EPP Hêvié- Adovié, Commune d’Abomey-Calavi",null,"Fourniture de mobiliers  scolaire au profit des écoles de l’Arrondissement de Calavi dans la Commune d’Abomey-Calavi",null,"Fourniture de mobiliers  scolaire au profit des écoles primaires publiques de Dodja et de Ouéga-Agué dans la Commune d’Abomey-Calavi",null,"Construction de trois boutiques dans le marché de Tokan",null,"Construction de trois boutiques dans le marché de Zinvié",null,"Travaux de rechargement et de reprofilage de voies dans l’Arrondissement de OUEDO, Commune d’Abomey-Calavi ",null,"Travaux de rechargement et de reprofilage de voies dans l’Arrondissement de AKASSATO, Commune d’Abomey-Calavi ",null,"Travaux de rechargement et de reprofilage de voies dans l’Arrondissement de Calavi, Commune d’Abomey-Calavi ",null,"Travaux de rechargement et de reprofilage de voies dans l’Arrondissement de HEVIE, Commune d’Abomey-Calavi ",null,"Travaux de construction de 150 ml de clôture de l’EPP ZOUNDJA 2 dans l’Arrondissement de Calavi, Commune d’Abomey-Calavi",null,"Travaux de construction de 150 ml de clôture de l’EPP  de TANKPE- FORET dans l’Arrondissement de Calavi, Commune d’Abomey-Calavi",null,"Travaux de construction de 150 ml de clôture de l’EPP  de SOKAN dans l’Arrondissement de Zinvié, Commune d’Abomey-Calavi",null,"Travaux de rechargement et de reprofilage de voies dans l’Arrondissement de Godomey, Commune d’Abomey-Calavi ",null,"Travaux de rechargement et de reprofilage de voies dans l’Arrondissement de TOGBA, Commune d’Abomey-Calavi ",null,"Travaux de construction de 150 ml de clôture de l’EPP LA BENINOISE dans l’Arrondissement de Calavi, Commune d’Abomey-Calavi",null,"Travaux de construction de 150 ml de clôture de l’EPP  de HOUEGOUDO dans l’Arrondissement de Zinvié, Commune d’Abomey-Calavi",null,"Travaux de construction de 150 ml de clôture de l’EPP  de Zinvié - Fandji dans l’Arrondissement de Zinvié, Commune d’Abomey-Calavi",null,"Construction de trois boutiques dans le marché de Tokan",null,"Travaux de construction de deux hangars à douze places chacun dans le marché de GOLO - DJIGBE",null,"Construction de trois boutiques dans le marché de Tokan",null,"Fourniture de mobiliers  scolaire au profit de l’EM de Yèvié et de l’EPP de SOKAN dans l’Arrondissement de Zinvié",null,"Fourniture de mobiliers  scolaire au profit des EPP de l’Arrondissement de Godomey",null,"Fourniture de mobiliers  scolaire au profit de l’EM de Ouéga-Agué dans l’Arrondissement de Togba",null,"Commande de fournitures scolaires au profit des élèves et écoliers de la  Commune d’Abomey-Calavi",null,"Maintenance et entretien des copieurs de la Mairie d’Abomey-Calavi",null,"Nettoyage des cimetières de la Commune d’Abomey-Calavi",null,"Publication mensuelle d’articles  relatifs aux activités de la Mairie",null,"Commande de valeur inactive (timbres légalisations sur signature (LS) de 500francs sur papier beige avec sécurisation)",null,"Travaux de construction de deux hangars à douze places chacun dans le marché de Tokan dans l’Arrondissement de TOGBA",null,"Commande de valeur inactive (Actes de naissance vierges avec logo  de la Mairie en filigrane, Autorisations parentales)",null,"Travaux de construction de deux hangars à douze places chacun dans le marché de Gninin dans l’Arrondissement d’Akassato",null,"Travaux de construction de deux hangars à douze places chacun dans le marché de GOLO - DJIGBE",null,"Travaux de construction de deux hangars à douze places chacun dans le marché de Ouèdo-Aïdjèdo",null,"Travaux de construction de deux hangars à douze places chacun dans le marché de Ouèdo-Aïdjèdo",null,"Travaux de construction de deux hangars à douze places chacun dans le marché de Ouèdo-Aïdjèdo",null,"Travaux de construction de deux hangars à douze places chacun dans le marché de GOLO - DJIGBE",null,"Travaux de construction de deux hangars à douze places chacun dans le marché de Ouèdo-Aïdjèdo",null,"Travaux de construction de deux hangars à douze places chacun dans le marché de Ouèdo-Aïdjèdo",null,"Réalisation de travaux confortatifs sur le nouveau pavillon du centre de sante de Godomey",null,"Travaux de construction de deux hangars à douze places chacun dans le marché de Ouèdo-Aïdjèdo",null,"Travaux de construction de deux hangars à douze places chacun dans le marché de Togba",null,"Travaux de rechargement et de reprofilage de voies dans l’Arrondissement de GODOMEY, Commune d’Abomey-Calavi ",null,"Travaux de rechargement et de reprofilage de voies dans l’Arrondissement de Hêvié, Commune d’Abomey-Calavi ",null,"Travaux de Construction d’un bloc de trois boutiques dans le marché de Tokan",null,"Travaux de construction de deux hangars à douze places chacun dans le marché de Ouèdo-Aidjèdo",null,"Travaux de construction de deux hangars à douze places chacun dans le marché de GOLO - DJIGBE",null,"Acquisition de fourniture de bureau au profit des Arrondissements de la Commune d’Abomey-Calavi",null,"Achat de pneus pour le Maire et ses Adjoints au profit de la Mairie d’Abomey-Calavi",null,"Travaux de construction de deux hangars à douze places chacun dans le marché de Ouèdo-Aïdjèdo",null,"Travaux de construction de deux hangars à douze places chacun dans le marché de Tokan dans l’Arrondissement de TOGBA",null,"Travaux de construction de deux hangars à douze places chacun dans le marché de Tokan dans l’Arrondissement de TOGBA",null,"Travaux de construction de 150 ml de clôture de l’EPP  GOLO-DJIGBE dans l’Arrondissement de GOLO-DJIGBE, Commune d’Abomey-Calavi",null,"Travaux de construction de 150 ml de clôture de l’EPP  Yèvié dans l’Arrondissement de HEVIE, Commune d’Abomey-Calavi",null,"Travaux de construction de 150 ml de clôture de l’EPP  Dodja dans l’Arrondissement de Calavi, Commune d’Abomey-Calavi",null,"Travaux de construction de 150 ml de clôture de l’EPP  DJIGBO dans l’Arrondissement de KPANROUN, Commune d’Abomey-Calavi",null,"Travaux de construction de 150 ml de clôture de l’EPP  ZEKANME dans l’Arrondissement de GOLO-DJIGBE, Commune d’Abomey-Calavi",null,"Travaux de construction de 150 ml de clôture de l’EPP  ANAGBO dans l’Arrondissement de KPANROUN, Commune d’Abomey-Calavi",null,"Travaux de construction de deux hangars à douze places chacun dans le marché de GNININ dans l’Arrondissement de AKASSATO",null,"Travaux de construction de deux hangars à douze places chacun dans le marché de Tokan dans l’Arrondissement de TOGBA",null,"Travaux de construction de deux hangars à douze places chacun dans le marché de GOLO - DJIGBE",null,"Travaux de Construction d’un module de trois boutiques dans le marché de Tokan",null,"Travaux de construction de 150 ml de clôture de l’EPP  KANSOUNKPA dans l’Arrondissement de CALAVI, Commune d’Abomey-Calavi",null,"Travaux de construction de 150 ml de clôture de l’EPP  AIDEGNON dans l’Arrondissement de TOGBA, Commune d’Abomey-Calavi",null,"Travaux de Construction d’un module de trois boutiques dans le marché de GNININ",null,"Travaux de construction de deux hangars à douze places chacun dans le marché GNININ",null,"Travaux de construction de deux hangars à douze places chacun dans le marché GNININ",null,"Travaux de Construction d’un module de trois boutiques dans le marché de GNININ",null,"Travaux de construction de deux hangars à douze places chacun dans le marché de Ouèdo-Aïdjèdo",null,"Travaux de construction de deux hangars à douze places chacun dans le marché de Ouèdo-Aïdjèdo",null,"Construction de module de trois salles de classes avec bureau, magasin et équipement plus latrine à quatre cabines publiques de la commune d’Abomey- Calavi, Lot1 : EPP LOBOZOUNKPA/B dans l’Arrondissement de Godomey",null,"Construction de module de trois salles de classes avec bureau, magasin et équipement plus latrine à quatre cabines, Lot2 : EPP HOSSEVIE dans l’Arrondissement de TOGBA",null,"Construction de module de trois salles de classes avec bureau, magasin et équipement plus latrine à quatre cabines, Lot3 : EPP GOLO – MISSEBO/C dans l’Arrondissement de GOLO - DJIGBE",null,"Contrat de prestation de visibilité des activités du Maire de la Commune d’Abomey- Calavi",null,"Contrat de maintenance informatique pour l’entretien et le dépannage du réseau WIFI de la Résidence officielle du Maire et de sauvegarde de la base de données du site internet de la Mairie d’Abomey- Calavi",null,"Publication mensuelle d’articles  relatifs aux activités de la Mairie",null,"Travaux de rechargement et de reprofilage de voies dans l’Arrondissement de Calavi, Commune d’Abomey-Calavi ",null,"Travaux de construction de deux hangars à douze places chacun dans le marché de Zinvié",null,"Travaux de construction de deux hangars à douze places chacun dans le marché de Zinvié",null,"Travaux de construction de deux hangars à douze places chacun dans le marché de Zinvié",null,"Travaux de construction de deux hangars à douze places chacun dans le marché GNININ",null,"Travaux de construction de deux hangars à douze places chacun dans le marché de TOKAN",null,"Travaux de construction de deux hangars à douze places chacun dans le marché de Zinvié",null,"Travaux de construction de 150 ml de clôture de l’EPP  Hêssoenou dans l’Arrondissement de Hêvié, Commune d’Abomey-Calavi",null,"Travaux de construction de deux hangars à douze places chacun dans le marché de Zinvié",null,"Travaux de désensablement des voies bitumées dans la Commune d’Abomey-Calavi ",null,"Entretien général de la résidence officielle du Maire de la Commune d’Abomey-Calavi",null,"Travaux de décapage et de désensablement des voies bitumées dans la Commune d’Abomey-Calavi",null,"Prestation de services : Partenariat entre la Radio « La voix de Tado » et la Mairie d’Abomey-Calavi",null,"Travaux de construction de deux hangars à douze places chacun dans le marché de Ouèdo-Aïdjèdo",null,"Travaux de construction de deux hangars à douze places chacun dans le marché de Ouèdo-Aïdjèdo",null,"Travaux de construction de 150 ml de clôture de l’EPP  Hêvié - Zoungo dans l’Arrondissement de Hêvié, Commune d’Abomey-Calavi",null,"Travaux de construction de deux hangars à douze places chacun dans le marché de Ouèdo-Aïdjèdo",null,"Travaux de construction de deux hangars à douze places chacun dans le marché de GOLO - DJIGBE",null,"Travaux de construction de 150 ml de clôture de l’EPP  GLO-MISSEBO dans l’Arrondissement de GOLO - DJIGBE, Commune d’Abomey-Calavi",null,"Fourniture de mobiliers  scolaire au profit des EPP de l’Arrondissement de GOLO - DJIGBE",null,"Travaux de construction de deux hangars à douze places chacun dans le marché de GOLO - DJIGBE",null,"Fourniture de mobiliers  scolaire au profit des EPP de l’Arrondissement de CALAVI",null,"Travaux de construction de 150 ml de clôture de l’EM d’AKASSATO dans l’Arrondissement de AKASSATO, Commune d’Abomey-Calavi",null,"Travaux de construction de deux hangars à douze places chacun dans le marché de GOLO - DJIGBE",null,"Travaux de Construction d’un bloc de trois boutiques dans le marché de Zinvié",null,"Fourniture de mobiliers  scolaire au profit des EPP de l’Arrondissement de KPANROUN",null,"Travaux de construction de deux hangars à douze places chacun dans le marché de Ouèdo-Aïdjèdo",null,"Travaux de construction de deux hangars à douze places chacun dans le marché de Tokan",null,"Travaux de construction de deux hangars à douze places chacun dans le marché de Ouèdo-Aïdjèdo",null,"Travaux de construction de deux hangars à douze places chacun dans le marché de Tokan",null,"Travaux de construction de deux hangars à douze places chacun dans le marché de Tokan",null,"Fourniture de mobiliers  scolaire au profit des EPP de l’Arrondissement de HEVIE",null,"Travaux de construction de deux hangars à douze places chacun dans le marché de Tokan",null,"Travaux de construction de 150 ml de clôture de l’EPP   dans l’Arrondissement de, Commune d’Abomey-Calavi",null,"Travaux de construction de deux hangars à douze places chacun dans le marché de Tokan",null,"Travaux de construction de deux hangars à douze places chacun dans le marché de GOLO - DJIGBE",null,"Fourniture de mobiliers  scolaire au profit des EPP de l’Arrondissement de OUEDO",null,"Fourniture de mobiliers  scolaire au profit des EPP de l’Arrondissement de Zinvié",null,"Travaux de construction de deux hangars à douze places chacun dans le marché de Ouèdo-Aïdjèdo",null,"Travaux de construction de deux hangars à douze places chacun dans le marché de Zinvié",null,"Travaux de construction de deux hangars à douze places chacun dans le marché de Tokan",null,"Travaux de construction de deux hangars à douze places chacun dans le marché de Tokan",null,"Travaux de construction de deux hangars à douze places chacun dans le marché de Tokan",null,"Travaux de Construction d’un bloc de trois boutiques dans le marché de GNININ",null,"Travaux de construction de deux hangars à douze places chacun dans le marché de TOGOUDO",null,"Construction d’un dispensaire au centre de santé de Hêvié dans la Commune d’Abomey-Calavi",null,"Réalisation de l’audit des opérations de lotissement de la zone d’habitation de l’Arrondissement d’AKASSATO",null,"Commande de valeur inactive (timbres légalisations sur signature (LS) de 500francs sur papier beige avec sécurisation) au profit de la Mairie d’Abomey-Calavi",null,"Commande de valeur inactive (timbres légalisations sur signature (LS) de 500francs sur papier beige avec sécurisation) au profit de la Mairie d’Abomey-Calavi",null,"Travaux de construction de 150 ml de clôture de l’EPP  Adjavié dans l’Arrondissement de Zinvié, Commune d’Abomey-Calavi",null,"Travaux de Construction d’un module de trois boutiques dans le marché de GNININ",null,"Travaux de Construction d’un module de trois boutiques dans le marché de GNININ",null,"Travaux de construction de deux hangars à douze places chacun dans le marché de GNININ",null,"Suivit, surveillance et contrôle des travaux de construction d’un module de trois salles de classes plus bureau, magasin, équipement et clôture à l’EPP Centre / Calavi et travaux de construction de quatre hangars plus un bloc de toilette moderne à quatre cabines plus deux douches plus clôture au marché ST Benoit de WOMEY ",null,"Commande de valeur inactive (timbres) au profit de la Mairie d’ Abomey-Calavi",null,"Commande de valeur inactive (tickets et carnets) au profit de la Mairie d’ Abomey-Calavi",null,"Commande de valeur inactive (timbres légalisations sur signature (LS) de 500francs sur papier beige avec sécurisation) au profit de la Mairie d’Abomey-Calavi",null,"Commande de valeur inactive (timbres légalisations sur signature (LS) de 500francs sur papier beige avec sécurisation) au profit de la Mairie d’Abomey-Calavi",null,"Commande de valeur inactive (convention, actes, certificats et attestations) au profit de la Mairie d’ Abomey-Calavi",null,"Commande de valeur inactive (timbres légalisations sur signature (LS) de 500francs sur papier beige avec sécurisation) au profit de la Mairie d’Abomey-Calavi",null,"Commande de valeur inactive (timbres et carnets) au profit de la Mairie d’ Abomey-Calavi",null,"Acquisition de 300 kits scolaires au profit de la Mairie d’ Abomey-Calavi",null,"Acquisition de 350 kits scolaires au profit de la Mairie d’ Abomey-Calavi",null,"Maintenance prévention en cas de panne des ordinateurs de la Mairie d’ Abomey-Calavi",null,"Maintenance prévention en cas de panne des ordinateurs  des Arrondissements de la Mairie d’ Abomey-Calavi",null,"Maintenance du logiciel CRYSTAL PREST du guichet unique de la Mairie d’ Abomey-Calavi et des Arrondissements (Godomey, Abomey-Calavi et Akassato) au profit de la Mairie d’ Abomey-Calavi",null,"Acquisition de mobiliers d’équipements de bureau au profit de la Mairie d’ Abomey-Calavi",null,"Achat de vivres (Céréales) au profit du personnel et des conseillers communaux de la commune d’Abomey-Calavi",null,"Achat de vivres (huiles végétales) au profit du personnel et des conseillers communaux de la commune d’Abomey-Calavi dans le cadre de la fête du nouvel an",null,"Acquisition de jouets dans le cadre de la fête de noël agréable édition 2019 pour les enfants du personnel et des élus communaux  d’Abomey-Calavi",null,"Entretien du siège de l’Arrondissement de Godomey",null,"Gestion des corps des personnes non identifiées dans la Commune d’Abomey-Calavi",null,"Réalisation et diffusion d’un film documentaire sur les réalisations des cinq (05) années (2015- 2020) du conseil communal d’Abomey-Calavi",null,"Travaux de rechargement et de reprofilage de voies dans l’Arrondissement de Hevié",null,"Travaux de rechargement et de reprofilage de voies dans l’Arrondissement de Calavi",null,"Travaux de rechargement et de reprofilage de voies dans l’Arrondissement de Ouèdo",null,"Travaux de rechargement et de reprofilage de voies dans l’Arrondissement de Godomey",null,"Recrutement d’un cabinet pour l’organisation de l’atelier de renforcement des capacités des acteurs de  la mairie d’Abomey-Calavi sur le thème »La responsabilité financière et la gestion axée sur les résultats dans le contexte communal au Bénin ».",null,"Travaux de Construction d’un module de trois boutiques dans le marché de GNININ",null,"Travaux de construction de deux hangars à douze places chacun dans le marché de GNININ",null,"Travaux de Construction d’un module de trois boutiques dans le marché de GNININ",null,"Edition de plaquettes de gestion du foncier dans la commune d’Abomey-Calavi pour la séance publique de reddition de compte du conseil communal de la 3e mandature.",null,"Enlèvement mécanique des ordures ménagères déposées le long de la clôture de l’Arrondissement et dans le marché de Golo-Djigbé",null,"Travaux de construction de deux hangars à douze places chacun dans le marché de Golo-Djigbé",null,"Fourniture de mobiliers  scolaire au profit des EPP de l’Arrondissement de Golo-Djigbé",null,"Travaux de construction de deux hangars à douze places chacun dans le marché de Wlacomey dans l’Arrondissement de Godomey",null,"Fourniture de mobiliers  scolaire au profit des EPP de l’Arrondissement de Togba",null,"Fourniture de mobiliers  scolaire au profit des EPP de l’Arrondissement de Hevié",null,"Travaux de construction de deux hangars de douze places chacun dans le marché de Togba",null,"Fourniture de mobiliers  scolaire au profit des EPP de l’Arrondissement de Godomey",null,"Fourniture de mobiliers  scolaire au profit des EPP de l’Arrondissement d’AKASSATO",null,"Fourniture de mobiliers  scolaire au profit des EPP de l’Arrondissement d’Abomey-Calavi",null,"Fourniture et pose d’équipement de bureau pour le Deuxième Adjoint au Maire au profit de la Mairie d’Abomey-Calavi",null,"Acquisition d’équipement de bureau au profit de la Mairie d’Abomey-Calavi",null,"Acquisition de fournitures scolaires au profit des élèves et écoliers de  la commune d’Abomey-Calavi",null,"Acquisition de 350 Kits scolaires au profit de  la Mairie d’Abomey-Calavi",null,"Acquisition de fournitures de bureau au profit de la Mairie d’Abomey-Calavi",null,"Acquisition de fournitures de bureau au profit de la Mairie d’Abomey-Calavi",null,"Acquisition de mobiliers de bureau au profit de la Mairie d’Abomey-Calavi",null,"Fourniture de quatorze (14) fauteuils de bureau au profit de la Mairie d’Abomey-Calavi",null,"Fourniture de vingt-deux (22) fauteuils visiteurs au  profit de la Mairie d’Abomey-Calavi",null,"Fourniture de douze (12) bureaux directeurs de 1,80ml de long au  profit de la Mairie d’Abomey-Calavi",null,"Acquisition d’équipements de bureau au profit de la Mairie d’Abomey-Calavi",null,"Travaux de Construction d’un module de trois boutiques dans le marché de GNININ",null,"Travaux de construction de deux hangars à douze places chacun dans le marché St Benoît de Womey dans l’Arrondissement de Godomey",null,"Travaux de Construction d’un module de trois boutiques dans le marché St Benoît de Womey dans l’Arrondissement de Godomey",null,"Travaux de construction de deux hangars de douze places chacun dans le marché de Tokan Arrondissement de Togba",null,"Fourniture de dix (10) bureaux directeurs de 1,80ml de long au  profit de la Mairie d’Abomey-Calavi",null,"Fourniture de neuf  (09) fauteuils de bureau et un (01) fauteuil salon complet au profit de la Mairie d’ Abomey-Calavi",null,"Fourniture et pose de gâche électrique avec caméra de surveillance y compris toutes sujétions ",null,"Fourniture de vingt-deux (22) fauteuils visiteurs au  profit de la Mairie d’Abomey-Calavi",null,"Construction d’un bloc de trois boutiques dans le marché de Gninin",null,"Construction d’un bloc de trois boutiques dans le marché de Gninin",null,"Travaux de construction de deux hangars à douze places chacun dans le marché de Djadjo dans l’Arrondissement de Calavi",null,"Changement de pose de luminaire (Cornet de l’échangeur et remise à niveau du jet d’eau) au  profit de la Mairie d’Abomey-Calavi",null,"Changement de pose de luminaire (The light house) au  profit de la Mairie d’Abomey-Calavi",null,"Acquisition d’un bureau directeur de 2 m de long et deux fauteuils visiteurs au profit de la Mairie d’Abomey-Calavi ",null,"Entretien courant des voies dans l’Arrondissement de Togba",null,"Entretien courant des voies dans l’Arrondissement de Golo-Djigbé ",null,"Travaux de désensablement des voies pavées dans la Commune d’Abomey-Calavi",null,"Location d’engin de BTP pour les travaux à l’hôpital de zone, Hevié (chez TOHON et chez AZANDE) ; Womey Eglise, marché de Womey ; ADJAGBO et ARCONVILLE dans la Commune d’Abomey-Calavi",null,"Désherbage de l’espace en face de la résidence du jardin sous l’échangeur de Godomey ; taille et greffe des fleurs et curage du collecteur au  profit de la Mairie d’Abomey-Calavi",null,"Habillage du monument de Tanpkè, de l’Etoile magique  lumineux à ARCONVILLE et décoration de l’arbre de noël devant la résidence du Maire",null,"Recrutement d’un bureau d’études pour l’étude et le contrôle des travaux de pavage et d’assainissement de la cour intérieure de l’HOTEL DE VILLE d’Abomey-Calavi",null," Construction de deux hangars de douze places chacun dans le marché de Gninin.",null," Construction de deux hangars de douze places chacun dans le marché de Togoudo.",null," Travaux de commande pour la réalisation de 200 à 500 fosses aménagées dans la cimetière d’Adjagbo, Commune d’Abomey-Calavi"]
[null,86,"Type de marchés publics ","Nombre de jours consacrés à la passation","Type de marchés publics ","Nombre de jours consacrés à la passation","Type de marchés publics ","Nombre de jours consacrés à la passation","Type de marchés publics ","Nombre de jours consacrés à la passation","Type de marchés publics ","Nombre de jours consacrés à la passation","Type de marchés publics ","Nombre de jours consacrés à la passation","Type de marchés publics ","Nombre de jours consacrés à la passation","Type de marchés publics ","Nombre de jours consacrés à la passation","Type de marchés publics ","Nombre de jours consacrés à la passation","Type de marchés publics ","Nombre de jours consacrés à la passation","Type de marchés publics ","Nombre de jours consacrés à la passation","Type de marchés publics ","Nombre de jours consacrés à la passation","Type de marchés publics ","Nombre de jours consacrés à la passation","Type de marchés publics ","Nombre de jours consacrés à la passation","Type de marchés publics ","Nombre de jours consacrés à la passation",null,null,"Type de marchés publics ","Nombre de jours consacrés à la passation","Type de marchés publics ","Nombre de jours consacrés à la passation","Type de marchés publics ","Nombre de jours consacrés à la passation","Type de marchés publics ","Nombre de jours consacrés à la passation","Type de marchés publics ","Nombre de jours consacrés à la passation","Type de marchés publics ","Nombre de jours consacrés à la passation","Type de marchés publics ","Nombre de jours consacrés à la passation","Type de marchés publics ","Nombre de jours consacrés à la passation","Type de marchés publics ","Nombre de jours consacrés à la passation","Type de marchés publics ","Nombre de jours consacrés à la passation","Type de marchés publics ","Nombre de jours consacrés à la passation","Type de marchés publics ","Nombre de jours consacrés à la passation","Type de marchés publics ","Nombre de jours consacrés à la passation","Type de marchés publics ","Nombre de jours consacrés à la passation","Type de marchés publics ","Nombre de jours consacrés à la passation","Type de marchés publics ","Nombre de jours consacrés à la passation","Type de marchés publics ","Nombre de jours consacrés à la passation","Type de marchés publics ","Nombre de jours consacrés à la passation","Type de marchés publics ","Nombre de jours consacrés à la passation","Type de marchés publics ","Nombre de jours consacrés à la passation","Type de marchés publics ","Nombre de jours consacrés à la passation","Type de marchés publics ","Nombre de jours consacrés à la passation","Type de marchés publics ","Nombre de jours consacrés à la passation","Type de marchés publics ","Nombre de jours consacrés à la passation","Type de marchés publics ","Nombre de jours consacrés à la passation","Type de marchés publics ","Nombre de jours consacrés à la passation","Type de marchés publics ","Nombre de jours consacrés à la passation","Type de marchés publics ","Nombre de jours consacrés à la passation","Type de marchés publics ","Nombre de jours consacrés à la passation","Type de marchés publics ","Nombre de jours consacrés à la passation","Type de marchés publics ","Nombre de jours consacrés à la passation","Type de marchés publics ","Nombre de jours consacrés à la passation","Type de marchés publics ","Nombre de jours consacrés à la passation","Type de marchés publics ","Nombre de jours consacrés à la passation","Type de marchés publics ","Nombre de jours consacrés à la passation","Type de marchés publics ","Nombre de jours consacrés à la passation","Type de marchés publics ","Nombre de jours consacrés à la passation","Type de marchés publics ","Nombre de jours consacrés à la passation","Type de marchés publics ","Nombre de jours consacrés à la passation","Type de marchés publics ","Nombre de jours consacrés à la passation","Type de marchés publics ","Nombre de jours consacrés à la passation","Type de marchés publics ","Nombre de jours consacrés à la passation","Type de marchés publics ","Nombre de jours consacrés à la passation","Type de marchés publics ","Nombre de jours consacrés à la passation","Type de marchés publics ","Nombre de jours consacrés à la passation","Type de marchés publics ","Nombre de jours consacrés à la passation","Type de marchés publics ","Nombre de jours consacrés à la passation","Type de marchés publics ","Nombre de jours consacrés à la passation","Type de marchés publics ","Nombre de jours consacrés à la passation","Type de marchés publics ","Nombre de jours consacrés à la passation","Type de marchés publics ","Nombre de jours consacrés à la passation","Type de marchés publics ","Nombre de jours consacrés à la passation","Type de marchés publics ","Nombre de jours consacrés à la passation","Type de marchés publics ","Nombre de jours consacrés à la passation","Type de marchés publics ","Nombre de jours consacrés à la passation","Type de marchés publics ","Nombre de jours consacrés à la passation","Type de marchés publics ","Nombre de jours consacrés à la passation","Type de marchés publics ","Nombre de jours consacrés à la passation","Type de marchés publics ","Nombre de jours consacrés à la passation","Type de marchés publics ","Nombre de jours consacrés à la passation","Type de marchés publics ","Nombre de jours consacrés à la passation","Type de marchés publics ","Nombre de jours consacrés à la passation","Type de marchés publics ","Nombre de jours consacrés à la passation","Type de marchés publics ","Nombre de jours consacrés à la passation","Type de marchés publics ","Nombre de jours consacrés à la passation","Type de marchés publics ","Nombre de jours consacrés à la passation","Type de marchés publics ","Nombre de jours consacrés à la passation","Type de marchés publics ","Nombre de jours consacrés à la passation","Type de marchés publics ","Nombre de jours consacrés à la passation","Type de marchés publics ","Nombre de jours consacrés à la passation","Type de marchés publics ","Nombre de jours consacrés à la passation","Type de marchés publics ","Nombre de jours consacrés à la passation","Type de marchés publics ","Nombre de jours consacrés à la passation","Type de marchés publics ","Nombre de jours consacrés à la passation","Type de marchés publics ","Nombre de jours consacrés à la passation","Type de marchés publics ","Nombre de jours consacrés à la passation","Type de marchés publics ","Nombre de jours consacrés à la passation","Type de marchés publics ","Nombre de jours consacrés à la passation","Type de marchés publics ","Nombre de jours consacrés à la passation","Type de marchés publics ","Nombre de jours consacrés à la passation","Type de marchés publics ","Nombre de jours consacrés à la passation","Type de marchés publics ","Nombre de jours consacrés à la passation","Type de marchés publics ","Nombre de jours consacrés à la passation","Type de marchés publics ","Nombre de jours consacrés à la passation","Type de marchés publics ","Nombre de jours consacrés à la passation","Type de marchés publics ","Nombre de jours consacrés à la passation","Type de marchés publics ","Nombre de jours consacrés à la passation","Type de marchés publics ","Nombre de jours consacrés à la passation","Type de marchés publics ","Nombre de jours consacrés à la passation","Type de marchés publics ","Nombre de jours consacrés à la passation","Type de marchés publics ","Nombre de jours consacrés à la passation","Type de marchés publics ","Nombre de jours consacrés à la passation","Type de marchés publics ","Nombre de jours consacrés à la passation","Type de marchés publics ","Nombre de jours consacrés à la passation","Type de marchés publics ","Nombre de jours consacrés à la passation","Type de marchés publics ","Nombre de jours consacrés à la passation","Type de marchés publics ","Nombre de jours consacrés à la passation","Type de marchés publics ","Nombre de jours consacrés à la passation","Type de marchés publics ","Nombre de jours consacrés à la passation","Type de marchés publics ","Nombre de jours consacrés à la passation","Type de marchés publics ","Nombre de jours consacrés à la passation","Type de marchés publics ","Nombre de jours consacrés à la passation","Type de marchés publics ","Nombre de jours consacrés à la passation","Type de marchés publics ","Nombre de jours consacrés à la passation","Type de marchés publics ","Nombre de jours consacrés à la passation","Type de marchés publics ","Nombre de jours consacrés à la passation","Type de marchés publics ","Nombre de jours consacrés à la passation","Type de marchés publics ","Nombre de jours consacrés à la passation","Type de marchés publics ","Nombre de jours consacrés à la passation","Type de marchés publics ","Nombre de jours consacrés à la passation","Type de marchés publics ","Nombre de jours consacrés à la passation","Type de marchés publics ","Nombre de jours consacrés à la passation","Type de marchés publics ","Nombre de jours consacrés à la passation","Type de marchés publics ","Nombre de jours consacrés à la passation","Type de marchés publics ","Nombre de jours consacrés à la passation","Type de marchés publics ","Nombre de jours consacrés à la passation","Type de marchés publics ","Nombre de jours consacrés à la passation","Type de marchés publics ","Nombre de jours consacrés à la passation","Type de marchés publics ","Nombre de jours consacrés à la passation","Type de marchés publics ","Nombre de jours consacrés à la passation","Type de marchés publics ","Nombre de jours consacrés à la passation","Type de marchés publics ","Nombre de jours consacrés à la passation","Type de marchés publics ","Nombre de jours consacrés à la passation","Type de marchés publics ","Nombre de jours consacrés à la passation","Type de marchés publics ","Nombre de jours consacrés à la passation","Type de marchés publics ","Nombre de jours consacrés à la passation","Type de marchés publics ","Nombre de jours consacrés à la passation","Type de marchés publics ","Nombre de jours consacrés à la passation","Type de marchés publics ","Nombre de jours consacrés à la passation","Type de marchés publics ","Nombre de jours consacrés à la passation","Type de marchés publics ","Nombre de jours consacrés à la passation","Type de marchés publics ","Nombre de jours consacrés à la passation","Type de marchés publics ","Nombre de jours consacrés à la passation","Type de marchés publics ","Nombre de jours consacrés à la passation","Type de marchés publics ","Nombre de jours consacrés à la passation","Type de marchés publics ","Nombre de jours consacrés à la passation","Type de marchés publics ","Nombre de jours consacrés à la passation","Type de marchés publics ","Nombre de jours consacrés à la passation","Type de marchés publics ","Nombre de jours consacrés à la passation","Type de marchés publics ","Nombre de jours consacrés à la passation","Type de marchés publics ","Nombre de jours consacrés à la passation","Type de marchés publics ","Nombre de jours consacrés à la passation","Type de marchés publics ","Nombre de jours consacrés à la passation","Type de marchés publics ","Nombre de jours consacrés à la passation","Type de marchés publics ","Nombre de jours consacrés à la passation","Type de marchés publics ","Nombre de jours consacrés à la passation","Type de marchés publics ","Nombre de jours consacrés à la passation","Type de marchés publics ","Nombre de jours consacrés à la passation","Type de marchés publics ","Nombre de jours consacrés à la passation","Type de marchés publics ","Nombre de jours consacrés à la passation","Type de marchés publics ","Nombre de jours consacrés à la passation","Type de marchés publics ","Nombre de jours consacrés à la passation","Type de marchés publics ","Nombre de jours consacrés à la passation","Type de marchés publics ","Nombre de jours consacrés à la passation","Type de marchés publics ","Nombre de jours consacrés à la passation","Type de marchés publics ","Nombre de jours consacrés à la passation","Type de marchés publics ","Nombre de jours consacrés à la passation","Type de marchés publics ","Nombre de jours consacrés à la passation","Type de marchés publics ","Nombre de jours consacrés à la passation","Type de marchés publics ","Nombre de jours consacrés à la passation","Type de marchés publics ","Nombre de jours consacrés à la passation","Type de marchés publics ","Nombre de jours consacrés à la passation","Type de marchés publics ","Nombre de jours consacrés à la passation","Type de marchés publics ","Nombre de jours consacrés à la passation","Type de marchés publics ","Nombre de jours consacrés à la passation","Type de marchés publics ","Nombre de jours consacrés à la passation","Type de marchés publics ","Nombre de jours consacrés à la passation","Type de marchés publics ","Nombre de jours consacrés à la passation","Type de marchés publics ","Nombre de jours consacrés à la passation","Type de marchés publics ","Nombre de jours consacrés à la passation","Type de marchés publics ","Nombre de jours consacrés à la passation","Type de marchés publics ","Nombre de jours consacrés à la passation","Type de marchés publics ","Nombre de jours consacrés à la passation","Type de marchés publics ","Nombre de jours consacrés à la passation","Type de marchés publics ","Nombre de jours consacrés à la passation","Type de marchés publics ","Nombre de jours consacrés à la passation","Type de marchés publics ","Nombre de jours consacrés à la passation","Type de marchés publics ","Nombre de jours consacrés à la passation","Type de marchés publics ","Nombre de jours consacrés à la passation","Type de marchés publics ","Nombre de jours consacrés à la passation","Type de marchés publics ","Nombre de jours consacrés à la passation","Type de marchés publics ","Nombre de jours consacrés à la passation","Type de marchés publics ","Nombre de jours consacrés à la passation","Type de marchés publics ","Nombre de jours consacrés à la passation","Type de marchés publics ","Nombre de jours consacrés à la passation","Type de marchés publics ","Nombre de jours consacrés à la passation","Type de marchés publics ","Nombre de jours consacrés à la passation","Type de marchés publics ","Nombre de jours consacrés à la passation","Type de marchés publics ","Nombre de jours consacrés à la passation","Type de marchés publics ","Nombre de jours consacrés à la passation","Type de marchés publics ","Nombre de jours consacrés à la passation","Type de marchés publics ","Nombre de jours consacrés à la passation","Type de marchés publics ","Nombre de jours consacrés à la passation","Type de marchés publics ","Nombre de jours consacrés à la passation","Type de marchés publics ","Nombre de jours consacrés à la passation","Type de marchés publics ","Nombre de jours consacrés à la passation","Type de marchés publics ","Nombre de jours consacrés à la passation","Type de marchés publics ","Nombre de jours consacrés à la passation","Type de marchés publics ","Nombre de jours consacrés à la passation","Type de marchés publics ","Nombre de jours consacrés à la passation","Type de marchés publics ","Nombre de jours consacrés à la passation","Type de marchés publics ","Nombre de jours consacrés à la passation","Type de marchés publics ","Nombre de jours consacrés à la passation","Type de marchés publics ","Nombre de jours consacrés à la passation","Type de marchés publics ","Nombre de jours consacrés à la passation","Type de marchés publics ","Nombre de jours consacrés à la passation","Type de marchés publics ","Nombre de jours consacrés à la passation","Type de marchés publics ","Nombre de jours consacrés à la passation","Type de marchés publics ","Nombre de jours consacrés à la passation","Type de marchés publics ","Nombre de jours consacrés à la passation","Type de marchés publics ","Nombre de jours consacrés à la passation","Type de marchés publics ","Nombre de jours consacrés à la passation","Type de marchés publics ","Nombre de jours consacrés à la passation","Type de marchés publics ","Nombre de jours consacrés à la passation","Type de marchés publics ","Nombre de jours consacrés à la passation","Type de marchés publics ","Nombre de jours consacrés à la passation","Type de marchés publics ","Nombre de jours consacrés à la passation","Type de marchés publics ","Nombre de jours consacrés à la passation","Type de marchés publics ","Nombre de jours consacrés à la passation","Type de marchés publics ","Nombre de jours consacrés à la passation","Type de marchés publics ","Nombre de jours consacrés à la passation","Type de marchés publics ","Nombre de jours consacrés à la passation","Type de marchés publics ","Nombre de jours consacrés à la passation","Type de marchés publics ","Nombre de jours consacrés à la passation","Type de marchés publics ","Nombre de jours consacrés à la passation","Type de marchés publics ","Nombre de jours consacrés à la passation","Type de marchés publics ","Nombre de jours consacrés à la passation","Type de marchés publics ","Nombre de jours consacrés à la passation","Type de marchés publics ","Nombre de jours consacrés à la passation","Type de marchés publics ","Nombre de jours consacrés à la passation","Type de marchés publics ","Nombre de jours consacrés à la passation","Type de marchés publics ","Nombre de jours consacrés à la passation","Type de marchés publics ","Nombre de jours consacrés à la passation","Type de marchés publics ","Nombre de jours consacrés à la passation","Type de marchés publics ","Nombre de jours consacrés à la passation","Type de marchés publics ","Nombre de jours consacrés à la passation","Type de marchés publics ","Nombre de jours consacrés à la passation","Type de marchés publics ","Nombre de jours consacrés à la passation","Type de marchés publics ","Nombre de jours consacrés à la passation","Type de marchés publics ","Nombre de jours consacrés à la passation","Type de marchés publics ","Nombre de jours consacrés à la passation","Type de marchés publics ","Nombre de jours consacrés à la passation","Type de marchés publics ","Nombre de jours consacrés à la passation","Type de marchés publics ","Nombre de jours consacrés à la passation","Type de marchés publics ","Nombre de jours consacrés à la passation","Type de marchés publics ","Nombre de jours consacrés à la passation","Type de marchés publics ","Nombre de jours consacrés à la passation","Type de marchés publics ","Nombre de jours consacrés à la passation","Type de marchés publics ","Nombre de jours consacrés à la passation","Type de marchés publics ","Nombre de jours consacrés à la passation","Type de marchés publics ","Nombre de jours consacrés à la passation","Type de marchés publics ","Nombre de jours consacrés à la passation","Type de marchés publics ","Nombre de jours consacrés à la passation","Type de marchés publics ","Nombre de jours consacrés à la passation","Type de marchés publics ","Nombre de jours consacrés à la passation","Type de marchés publics ","Nombre de jours consacrés à la passation","Type de marchés publics ","Nombre de jours consacrés à la passation","Type de marchés publics ","Nombre de jours consacrés à la passation","Type de marchés publics ","Nombre de jours consacrés à la passation","Type de marchés publics ","Nombre de jours consacrés à la passation","Type de marchés publics ","Nombre de jours consacrés à la passation","Type de marchés publics ","Nombre de jours consacrés à la passation","Type de marchés publics ","Nombre de jours consacrés à la passation","Type de marchés publics ","Nombre de jours consacrés à la passation","Type de marchés publics ","Nombre de jours consacrés à la passation","Type de marchés publics ","Nombre de jours consacrés à la passation","Type de marchés publics ","Nombre de jours consacrés à la passation","Type de marchés publics ","Nombre de jours consacrés à la passation","Type de marchés publics ","Nombre de jours consacrés à la passation","Type de marchés publics ","Nombre de jours consacrés à la passation","Type de marchés publics ","Nombre de jours consacrés à la passation","Type de marchés publics ","Nombre de jours consacrés à la passation","Type de marchés publics ","Nombre de jours consacrés à la passation","Type de marchés publics ","Nombre de jours consacrés à la passation","Type de marchés publics ","Nombre de jours consacrés à la passation","Type de marchés publics ","Nombre de jours consacrés à la passation","Type de marchés publics ","Nombre de jours consacrés à la passation","Type de marchés publics ","Nombre de jours consacrés à la passation","Type de marchés publics ","Nombre de jours consacrés à la passation","Type de marchés publics ","Nombre de jours consacrés à la passation","Type de marchés publics ","Nombre de jours consacrés à la passation","Type de marchés publics ","Nombre de jours consacrés à la passation","Type de marchés publics ","Nombre de jours consacrés à la passation","Type de marchés publics ","Nombre de jours consacrés à la passation","Type de marchés publics ","Nombre de jours consacrés à la passation","Type de marchés publics ","Nombre de jours consacrés à la passation","Type de marchés publics ","Nombre de jours consacrés à la passation","Type de marchés publics ","Nombre de jours consacrés à la passation","Type de marchés publics ","Nombre de jours consacrés à la passation","Type de marchés publics ","Nombre de jours consacrés à la passation","Type de marchés publics ","Nombre de jours consacrés à la passation","Type de marchés publics ","Nombre de jours consacrés à la passation","Type de marchés publics ","Nombre de jours consacrés à la passation","Type de marchés publics ","Nombre de jours consacrés à la passation","Type de marchés publics ","Nombre de jours consacrés à la passation","Type de marchés publics ","Nombre de jours consacrés à la passation","Type de marchés publics ","Nombre de jours consacrés à la passation","Type de marchés publics ","Nombre de jours consacrés à la passation","Type de marchés publics ","Nombre de jours consacrés à la passation","Type de marchés publics ","Nombre de jours consacrés à la passation","Type de marchés publics ","Nombre de jours consacrés à la passation","Type de marchés publics ","Nombre de jours consacrés à la passation","Type de marchés publics ","Nombre de jours consacrés à la passation","Type de marchés publics ","Nombre de jours consacrés à la passation","Type de marchés publics ","Nombre de jours consacrés à la passation","Type de marchés publics ","Nombre de jours consacrés à la passation","Type de marchés publics ","Nombre de jours consacrés à la passation","Type de marchés publics ","Nombre de jours consacrés à la passation","Type de marchés publics ","Nombre de jours consacrés à la passation","Type de marchés publics ","Nombre de jours consacrés à la passation","Type de marchés publics ","Nombre de jours consacrés à la passation","Type de marchés publics ","Nombre de jours consacrés à la passation","Type de marchés publics ","Nombre de jours consacrés à la passation","Type de marchés publics ","Nombre de jours consacrés à la passation","Type de marchés publics ","Nombre de jours consacrés à la passation","Type de marchés publics ","Nombre de jours consacrés à la passation","Type de marchés publics ","Nombre de jours consacrés à la passation","Type de marchés publics ","Nombre de jours consacrés à la passation","Type de marchés publics ","Nombre de jours consacrés à la passation","Type de marchés publics ","Nombre de jours consacrés à la passation","Type de marchés publics ","Nombre de jours consacrés à la passation","Type de marchés publics ","Nombre de jours consacrés à la passation","Type de marchés publics ","Nombre de jours consacrés à la passation","Type de marchés publics ","Nombre de jours consacrés à la passation","Type de marchés publics ","Nombre de jours consacrés à la passation","Type de marchés publics ","Nombre de jours consacrés à la passation","Type de marchés publics ","Nombre de jours consacrés à la passation","Type de marchés publics ","Nombre de jours consacrés à la passation","Type de marchés publics ","Nombre de jours consacrés à la passation","Type de marchés publics ","Nombre de jours consacrés à la passation","Type de marchés publics ","Nombre de jours consacrés à la passation","Type de marchés publics ","Nombre de jours consacrés à la passation","Type de marchés publics ","Nombre de jours consacrés à la passation","Type de marchés publics ","Nombre de jours consacrés à la passation","Type de marchés publics ","Nombre de jours consacrés à la passation","Type de marchés publics ","Nombre de jours consacrés à la passation","Type de marchés publics ","Nombre de jours consacrés à la passation","Type de marchés publics ","Nombre de jours consacrés à la passation","Type de marchés publics ","Nombre de jours consacrés à la passation","Type de marchés publics ","Nombre de jours consacrés à la passation","Type de marchés publics ","Nombre de jours consacrés à la passation","Type de marchés publics ","Nombre de jours consacrés à la passation","Type de marchés publics ","Nombre de jours consacrés à la passation","Type de marchés publics ","Nombre de jours consacrés à la passation","Type de marchés publics ","Nombre de jours consacrés à la passation","Type de marchés publics ","Nombre de jours consacrés à la passation","Type de marchés publics ","Nombre de jours consacrés à la passation","Type de marchés publics ","Nombre de jours consacrés à la passation","Type de marchés publics ","Nombre de jours consacrés à la passation","Type de marchés publics ","Nombre de jours consacrés à la passation","Type de marchés publics ","Nombre de jours consacrés à la passation","Type de marchés publics ","Nombre de jours consacrés à la passation","Type de marchés publics ","Nombre de jours consacrés à la passation","Type de marchés publics ","Nombre de jours consacrés à la passation","Type de marchés publics ","Nombre de jours consacrés à la passation","Type de marchés publics ","Nombre de jours consacrés à la passation","Type de marchés publics ","Nombre de jours consacrés à la passation","Type de marchés publics ","Nombre de jours consacrés à la passation","Type de marchés publics ","Nombre de jours consacrés à la passation","Type de marchés publics ","Nombre de jours consacrés à la passation","Type de marchés publics ","Nombre de jours consacrés à la passation","Type de marchés publics ","Nombre de jours consacrés à la passation","Type de marchés publics ","Nombre de jours consacrés à la passation","Type de marchés publics ","Nombre de jours consacrés à la passation","Type de marchés publics ","Nombre de jours consacrés à la passation","Type de marchés publics ","Nombre de jours consacrés à la passation","Type de marchés publics ","Nombre de jours consacrés à la passation","Type de marchés publics ","Nombre de jours consacrés à la passation","Type de marchés publics ","Nombre de jours consacrés à la passation","Type de marchés publics ","Nombre de jours consacrés à la passation","Type de marchés publics ","Nombre de jours consacrés à la passation","Type de marchés publics ","Nombre de jours consacrés à la passation","Type de marchés publics ","Nombre de jours consacrés à la passation","Type de marchés publics ","Nombre de jours consacrés à la passation","Type de marchés publics ","Nombre de jours consacrés à la passation","Type de marchés publics ","Nombre de jours consacrés à la passation","Type de marchés publics ","Nombre de jours consacrés à la passation","Type de marchés publics ","Nombre de jours consacrés à la passation","Type de marchés publics ","Nombre de jours consacrés à la passation","Type de marchés publics ","Nombre de jours consacrés à la passation","Type de marchés publics ","Nombre de jours consacrés à la passation","Type de marchés publics ","Nombre de jours consacrés à la passation","Type de marchés publics ","Nombre de jours consacrés à la passation","Type de marchés publics ","Nombre de jours consacrés à la passation","Type de marchés publics ","Nombre de jours consacrés à la passation","Type de marchés publics ","Nombre de jours consacrés à la passation","Type de marchés publics ","Nombre de jours consacrés à la passation","Type de marchés publics ","Nombre de jours consacrés à la passation","Type de marchés publics ","Nombre de jours consacrés à la passation","Type de marchés publics ","Nombre de jours consacrés à la passation","Type de marchés publics ","Nombre de jours consacrés à la passation","Type de marchés publics ","Nombre de jours consacrés à la passation","Type de marchés publics ","Nombre de jours consacrés à la passation","Type de marchés publics ","Nombre de jours consacrés à la passation","Type de marchés publics ","Nombre de jours consacrés à la passation","Type de marchés publics ","Nombre de jours consacrés à la passation","Type de marchés publics ","Nombre de jours consacrés à la passation","Type de marchés publics ","Nombre de jours consacrés à la passation","Type de marchés publics ","Nombre de jours consacrés à la passation","Type de marchés publics ","Nombre de jours consacrés à la passation","Type de marchés publics ","Nombre de jours consacrés à la passation","Type de marchés publics ","Nombre de jours consacrés à la passation","Type de marchés publics ","Nombre de jours consacrés à la passation","Type de marchés publics ","Nombre de jours consacrés à la passation"]
["Appel Offre Ouvert",46,null,30,null,30,null,30,null,28,null,28,null,28,null,28,null,28,null,28,null,28,null,28,null,32,null,28,null,28,null,35,null,null,null,35,null,38,null,38,null,54,null,50,null,50,null,null,null,16,null,16,null,16,null,16,null,16,null,16,null,24,null,24,null,13,null,27,null,27,null,29,null,29,null,29,null,29,null,29,null,30,null,32,null,32,null,null,null,null,null,13,null,13,null,13,null,13,null,13,null,13,null,13,null,13,null,13,null,21,null,21,null,null,null,null,null,19,null,15,null,19,null,15,null,19,null,19,null,19,null,19,"Travaux",19,null,19,null,21,null,33,null,33,null,33,null,33,null,33,null,33,null,33,null,33,null,33,null,12,null,null,null,null,null,null,null,null,null,null,null,null,null,null,null,null,null,null,null,null,null,null,null,null,null,null,null,null,null,null,null,null,null,null,null,null,null,null,null,null,null,null,null,null,null,null,null,null,null,null,null,null,null,null,null,null,null,null,null,null,null,null,null,null,null,null,null,null,null,null,null,null,null,null,null,null,null,null,null,null,null,null,null,null,null,null,null,null,null,null,null,null,null,null,null,null,null,null,null,null,null,null,null,null,null,null,null,null,null,null,null,null,null,null,null,null,null,null,null,null,null,null,null,null,null,null,null,null,null,null,null,null,null,null,null,null,null,null,null,null,null,null,null,null,null,null,null,null,null,null,null,null,null,null,null,null,null,null,null,null,null,null,null,null,null,null,null,null,null,null,null,null,null,null,null,null,null,null,null,null,null,null,null,null,null,null,null,null,null,7,null,null,null,null,null,null,null,null,null,null,null,null,null,null,null,null,null,null,null,null,null,null,null,null,null,null,null,null,null,null,null,null,null,null,null,null,null,null,null,null,null,null,null,null,null,null,null,null,null,null,null,null,null,null,null,null,null,null,null,null,null,null,null,null,null,null,null,null,null,null,null,null,null,null,null,null,null,null,null,null,null,null,null,null,null,null,null,null,null,null,null,null,null,null,null,null,null,null,null,null,null,null,null,null,null,null,null,null,null,null,null,null,null,null,null,null,null,null,null,null,null,null,null,null,null,null,null,null,null,null,null,null,null,null,null,null,null,null,null,null,null,null,null,null,null,null,null,null,null,null,null,null,null,null,null,null,null,null,null,null,null,null,null,null,null,null,null,null,null,null,null,null,null,null,null,null,null,null,null,null,null,null,null,null,null,null,null,null,null,null,null,null,null,null,null,null,null,null,null,null,null,null,null,null,null,null,null,null,null,null,null,null,null,null,null,null,null,null,null,null,null,null,null,null,null,null,null,null,"Travaux",28,"Travaux",29,"Travaux",29,null,null,null,null,null,null,null,null,null,null,null,null,null,null,null,null,null,null,null,null,null,null,null,null,null,null,null,null,null,null,null,null,null,null,null,null,null,null,null,null,null,null,null,null,null,null,null,null,null,null,null,null,null,null,null,null,null,null,null,null,null,null,null,null,null,null,null,null,null,null,null,null,null,null,null,null,null,null,null,null,null,null,null,null,null,null,null,null,null,null,null,null,null,null,null,null,"Travaux",null,"Prestation intellectuelle réalisée par un cabinet",null,null,null,null,null,null,null,null,null,null,null,null,null,null,null,null,null,null,null,null,null,null,null,null,null,null,null,null,null,null,null,null,null,null,null,null,null,null,null,null,null,null,null,null,null,null,null,null,null,null,null,null,null,null,null,null,null,null,null,null,null,null,null,null,null,null,null,null,null,null,null,null,null,null,null,null,null,null,null,null,null,null,null,null,null,null,null,null,null,null,null,null,null,null,null,null,null,null,null,null,null,null,null,null,null,null,null,null,null,null,null,null,null,null,null,null,null,null,null,null,null,null,null,null,null,null,null,null,null,null,null,null,null,null,null,null,null,null,null,null,null,null,null,null,null,null,null,null,null,null,null,null,null,null,null,null,null,null,null,"Travaux",28]
["Demande de renseignement",27]
["Demande de cotation",65,"Fournitures et Services",null,"Fournitures et Services",null,"Travaux",null,"Fournitures et Services",null,"Fournitures et Services",null,"Fournitures et Services",null,"Fournitures et Services",null,"Fournitures et Services",null,"Fournitures et Services",null,"Fournitures et Services",null,"Fournitures et Services",null,"Travaux",null,"Travaux",null,"Fournitures et Services",null,"Fournitures et Services",null,null,null,"Fournitures et Services",null,"Travaux",null,"Fournitures et Services",null,"Travaux",null,"Fournitures et Services",null,"Travaux",null,"Fournitures et Services",null,"Travaux",null,"Travaux",null,"Travaux",null,"Travaux",null,"Fournitures et Services",null,"Fournitures et Services",null,"Travaux",null,"Travaux",null,"Travaux",null,"Travaux",null,"Travaux",null,"Fournitures et Services",null,"Prestation intellectuelle réalisée par un consultant",null,"Prestation intellectuelle réalisée par un cabinet",null,"Travaux",null,"Prestation intellectuelle réalisée par un cabinet",null,"Fournitures et Services",null,"Prestation intellectuelle réalisée par un consultant",null,"Fournitures et Services",null,"Travaux",null,"Travaux",null,"Fournitures et Services",null,"Fournitures et Services",null,"Travaux",null,"Travaux",null,"Travaux",null,"Travaux",null,"Travaux",null,"Fournitures et Services",null,"Fournitures et Services",null,"Prestation intellectuelle réalisée par un cabinet",null,"Prestation intellectuelle réalisée par un consultant",null,"Travaux",null,"Travaux",null,"Travaux",null,"Travaux",null,"Travaux",null,"Travaux",null,"Travaux",null,"Travaux",null,"Travaux",null,"Travaux",null,"Travaux",null,"Prestation intellectuelle réalisée par un cabinet",null,"Prestation intellectuelle réalisée par un cabinet",null,"Prestation intellectuelle réalisée par un cabinet",null,"Prestation intellectuelle réalisée par un cabinet",null,"Prestation intellectuelle réalisée par un cabinet",null,"Travaux",null,"Travaux",null,"Travaux",null,"Travaux",null,"Travaux",null,"Travaux",null,"Travaux",null,"Fournitures et Services",12,"Fournitures et Services",12,"Travaux",12,"Travaux",12,"Travaux",12,"Travaux",12,"Travaux",12,"Travaux",12,"Travaux",11,"Travaux",11,"Travaux",11,"Fournitures et Services",null,"Travaux",29,"Travaux",11,"Fournitures et Services",19,"Fournitures et Services",19,"Fournitures et Services",23,"Travaux",29,"Travaux",29,"Travaux",29,"Travaux",29,"Travaux",30,"Travaux",30,"Travaux",26,"Travaux",26,"Travaux",26,"Travaux",26,"Travaux",26,"Travaux",26,"Travaux",26,"Travaux",26,"Travaux",26,"Travaux",26,"Travaux",26,"Prestation intellectuelle réalisée par un cabinet",13,"Travaux",10,"Travaux",10,"Fournitures et Services",2,"Fournitures et Services",2,"Prestation intellectuelle réalisée par un cabinet",null,"Travaux",1,"Travaux",1,"Travaux",2,"Travaux",2,"Travaux",2,"Travaux",10,"Travaux",2,"Travaux",2,"Travaux",2,"Travaux",4,"Fournitures et Services",4,"Fournitures et Services",4,"Travaux",null,"Travaux",8,"Travaux",12,"Travaux",null,"Travaux",null,"Travaux",12,"Travaux",13,"Travaux",13,"Travaux",13,"Travaux",13,"Travaux",13,"Fournitures et Services",null,"Prestation intellectuelle réalisée par un cabinet",null,"Travaux",10,"Fournitures et Services",null,"Travaux",8,"Travaux",8,"Fournitures et Services",null,"Travaux",8,"Fournitures et Services",12,"Travaux",12,"Travaux",12,"Travaux",12,"Travaux",12,"Travaux",12,"Travaux",12,"Travaux",12,"Travaux",12,"Travaux",12,"Travaux",12,"Travaux",12,"Travaux",12,"Travaux",12,"Travaux",13,"Travaux",13,"Travaux",13,"Travaux",12,"Travaux",12,"Travaux",13,"Travaux",13,"Travaux",7,"Travaux",7,"Travaux",7,"Travaux",9,"Travaux",7,"Travaux",10,"Travaux",10,"Travaux",8,"Travaux",8,"Travaux",null,"Travaux",8,"Fournitures et Services",9,"Travaux",9,"Fournitures et Services",7,"Fournitures et Services",7,"Travaux",7,"Fournitures et Services",4,"Fournitures et Services",null,"Travaux",14,"Travaux",14,"Travaux",14,"Travaux",9,"Fournitures et Services",9,"Fournitures et Services",9,"Fournitures et Services",9,"Prestation intellectuelle réalisée par un cabinet",9,"Prestation intellectuelle réalisée par un cabinet",9,"Prestation intellectuelle réalisée par un cabinet",9,"Prestation intellectuelle réalisée par un cabinet",9,"Prestation intellectuelle réalisée par un cabinet",9,"Prestation intellectuelle réalisée par un cabinet",9,"Prestation intellectuelle réalisée par un cabinet",9,"Prestation intellectuelle réalisée par un cabinet",9,"Prestation intellectuelle réalisée par un cabinet",9,"Prestation intellectuelle réalisée par un cabinet",9,"Prestation intellectuelle réalisée par un cabinet",9,"Prestation intellectuelle réalisée par un cabinet",9,"Prestation intellectuelle réalisée par un cabinet",9,"Prestation intellectuelle réalisée par un cabinet",9,"Travaux",9,"Travaux",9,"Travaux",9,"Travaux",24,"Fournitures et Services",3,"Fournitures et Services",6,"Fournitures et Services",6,"Fournitures et Services",6,"Travaux",6,"Travaux",6,"Fournitures et Services",6,"Fournitures et Services",6,"Travaux",4,"Travaux",4,"Travaux",null,"Travaux",5,"Travaux",8,"Travaux",8,"Travaux",12,"Travaux",null,"Travaux",null,"Travaux",null,"Travaux",null,"Travaux",null,"Travaux",null,"Travaux",12,"Travaux",11,"Travaux",11,"Travaux",11,"Fournitures et Services",12,"Fournitures et Services",14,"Fournitures et Services",9,"Fournitures et Services",9,"Prestation intellectuelle réalisée par un cabinet",null,"Fournitures et Services",null,"Fournitures et Services",10,"Fournitures et Services",11,"Travaux",9,"Fournitures et Services",9,"Travaux",11,"Travaux",11,"Travaux",12,"Travaux",9,"Travaux",9,"Travaux",9,"Travaux",9,"Travaux",10,"Travaux",13,"Travaux",10,"Travaux",9,"Travaux",5,"Travaux",5,"Travaux",11,"Travaux",12,"Travaux",9,"Fournitures et Services",9,"Fournitures et Services",5,"Travaux",8,"Travaux",9,"Travaux",9,"Travaux",9,"Travaux",9,"Travaux",9,"Travaux",9,"Travaux",9,"Travaux",8,"Travaux",9,"Travaux",9,"Travaux",9,"Travaux",9,"Travaux",9,"Travaux",10,"Travaux",9,"Travaux",9,"Travaux",9,"Travaux",9,"Travaux",9,"Travaux",8,null,null,null,null,null,null,"Fournitures et Services",12,"Fournitures et Services",11,"Prestation intellectuelle réalisée par un cabinet",8,"Travaux",9,"Travaux",11,"Travaux",11,"Travaux",8,"Travaux",9,"Travaux",9,"Travaux",9,"Travaux",9,"Travaux",8,"Travaux",9,"Fournitures et Services",9,"Travaux",9,"Fournitures et Services",9,"Travaux",9,"Travaux",9,"Travaux",9,"Travaux",9,"Travaux",8,"Travaux",9,"Fournitures et Services",8,"Travaux",10,"Fournitures et Services",9,"Travaux",9,"Travaux",9,"Travaux",12,"Fournitures et Services",9,"Travaux",11,"Travaux",9,"Travaux",11,"Travaux",9,"Travaux",9,"Fournitures et Services",9,"Travaux",9,"Travaux",11,"Travaux",11,"Travaux",11,"Fournitures et Services",11,"Fournitures et Services",11,"Travaux",11,"Travaux",11,"Travaux",11,"Travaux",11,"Travaux",11,"Travaux",12,"Travaux",11,null,null,null,null,"Fournitures et Services",11,"Fournitures et Services",11,"Travaux",11,"Travaux",11,"Travaux",12,"Travaux",11,"Prestation intellectuelle réalisée par un cabinet",9,"Prestation intellectuelle réalisée par un cabinet",9,"Fournitures et Services",9,"Fournitures et Services",9,"Fournitures et Services",9,"Fournitures et Services",9,"Fournitures et Services",9,"Fournitures et Services",10,"Fournitures et Services",10,"Fournitures et Services",11,"Fournitures et Services",9,"Prestation intellectuelle réalisée par un cabinet",9,"Prestation intellectuelle réalisée par un cabinet",9,"Fournitures et Services",9,"Fournitures et Services",9,"Fournitures et Services",9,"Fournitures et Services",9,"Fournitures et Services",10,"Fournitures et Services",4,"Fournitures et Services",5,"Travaux",6,"Travaux",6,"Travaux",8,"Travaux",9,"Prestation intellectuelle réalisée par un cabinet",9,"Travaux",9,"Travaux",8,"Travaux",9,"Fournitures et Services",7,"Travaux",9,"Travaux",9,"Fournitures et Services",8,"Travaux",9,"Fournitures et Services",9,"Fournitures et Services",9,"Travaux",9,"Fournitures et Services",8,"Fournitures et Services",8,"Fournitures et Services",9,"Fournitures et Services",9,"Fournitures et Services",9,"Fournitures et Services",11,"Fournitures et Services",11,"Fournitures et Services",10,"Fournitures et Services",10,"Fournitures et Services",11,"Fournitures et Services",12,"Fournitures et Services",12,"Fournitures et Services",13,"Fournitures et Services",10,"Travaux",12,"Travaux",11,"Travaux",19,"Travaux",12,"Fournitures et Services",11,"Fournitures et Services",11,"Fournitures et Services",11,"Fournitures et Services",11,"Travaux",15,"Travaux",11,"Travaux",11,"Fournitures et Services",12,"Fournitures et Services",11,"Fournitures et Services",11,"Travaux",5,"Travaux",5,"Travaux",6,"Fournitures et Services",9,"Travaux",8,"Fournitures et Services",8,"Prestation intellectuelle réalisée par un cabinet",15,"Travaux",15,"Travaux",15]
[null,null,null,{"$f":"IF(C10=\"\",0,IF(D10<=$B10,1,0))","v":0},null,{"$f":"IF(E10=\"\",0,IF(F10<=$B10,1,0))","v":0},null,{"$f":"IF(G10=\"\",0,IF(H10<=$B10,1,0))","v":0},null,{"$f":"IF(I10=\"\",0,IF(J10<=$B10,1,0))","v":0},null,{"$f":"IF(K10=\"\",0,IF(L10<=$B10,1,0))","v":0},null,{"$f":"IF(M10=\"\",0,IF(N10<=$B10,1,0))","v":0},null,{"$f":"IF(O10=\"\",0,IF(P10<=$B10,1,0))","v":0},null,{"$f":"IF(Q10=\"\",0,IF(R10<=$B10,1,0))","v":0},null,{"$f":"IF(S10=\"\",0,IF(T10<=$B10,1,0))","v":0},null,{"$f":"IF(U10=\"\",0,IF(V10<=$B10,1,0))","v":0},null,{"$f":"IF(W10=\"\",0,IF(X10<=$B10,1,0))","v":0},null,{"$f":"IF(Y10=\"\",0,IF(Z10<=$B10,1,0))","v":0},null,{"$f":"IF(AA10=\"\",0,IF(AB10<=$B10,1,0))","v":0},null,{"$f":"IF(AC10=\"\",0,IF(AD10<=$B10,1,0))","v":0},null,{"$f":"IF(AE10=\"\",0,IF(AF10<=$B10,1,0))","v":0},null,null,null,{"$f":"IF(AI10=\"\",0,IF(AJ10<=$B10,1,0))","v":0},null,{"$f":"IF(AK10=\"\",0,IF(AL10<=$B10,1,0))","v":0},null,{"$f":"IF(AM10=\"\",0,IF(AN10<=$B10,1,0))","v":0},null,{"$f":"IF(AO10=\"\",0,IF(AP10<=$B10,1,0))","v":0},null,{"$f":"IF(AQ10=\"\",0,IF(AR10<=$B10,1,0))","v":0},null,{"$f":"IF(AS10=\"\",0,IF(AT10<=$B10,1,0))","v":0},null,{"$f":"IF(AU10=\"\",0,IF(AV10<=$B10,1,0))","v":0},null,{"$f":"IF(AW10=\"\",0,IF(AX10<=$B10,1,0))","v":0},null,{"$f":"IF(AY10=\"\",0,IF(AZ10<=$B10,1,0))","v":0},null,{"$f":"IF(BA10=\"\",0,IF(BB10<=$B10,1,0))","v":0},null,{"$f":"IF(BC10=\"\",0,IF(BD10<=$B10,1,0))","v":0},null,{"$f":"IF(BE10=\"\",0,IF(BF10<=$B10,1,0))","v":0},null,{"$f":"IF(BG10=\"\",0,IF(BH10<=$B10,1,0))","v":0},null,{"$f":"IF(BI10=\"\",0,IF(BJ10<=$B10,1,0))","v":0},null,{"$f":"IF(BK10=\"\",0,IF(BL10<=$B10,1,0))","v":0},null,{"$f":"IF(BM10=\"\",0,IF(BN10<=$B10,1,0))","v":0},null,{"$f":"IF(BO10=\"\",0,IF(BP10<=$B10,1,0))","v":0},null,{"$f":"IF(BQ10=\"\",0,IF(BR10<=$B10,1,0))","v":0},null,{"$f":"IF(BS10=\"\",0,IF(BT10<=$B10,1,0))","v":0},null,{"$f":"IF(BU10=\"\",0,IF(BV10<=$B10,1,0))","v":0},null,{"$f":"IF(BW10=\"\",0,IF(BX10<=$B10,1,0))","v":0},null,{"$f":"IF(BY10=\"\",0,IF(BZ10<=$B10,1,0))","v":0},null,{"$f":"IF(CA10=\"\",0,IF(CB10<=$B10,1,0))","v":0},null,{"$f":"IF(CC10=\"\",0,IF(CD10<=$B10,1,0))","v":0},null,{"$f":"IF(CE10=\"\",0,IF(CF10<=$B10,1,0))","v":0},null,{"$f":"IF(CG10=\"\",0,IF(CH10<=$B10,1,0))","v":0},null,{"$f":"IF(CI10=\"\",0,IF(CJ10<=$B10,1,0))","v":0},null,{"$f":"IF(CK10=\"\",0,IF(CL10<=$B10,1,0))","v":0},null,{"$f":"IF(CM10=\"\",0,IF(CN10<=$B10,1,0))","v":0},null,{"$f":"IF(CO10=\"\",0,IF(CP10<=$B10,1,0))","v":0},null,{"$f":"IF(CQ10=\"\",0,IF(CR10<=$B10,1,0))","v":0},null,{"$f":"IF(CS10=\"\",0,IF(CT10<=$B10,1,0))","v":0},null,{"$f":"IF(CU10=\"\",0,IF(CV10<=$B10,1,0))","v":0},null,{"$f":"IF(CW10=\"\",0,IF(CX10<=$B10,1,0))","v":0},null,{"$f":"IF(CY10=\"\",0,IF(CZ10<=$B10,1,0))","v":0},null,{"$f":"IF(DA10=\"\",0,IF(DB10<=$B10,1,0))","v":0},null,{"$f":"IF(DC10=\"\",0,IF(DD10<=$B10,1,0))","v":0},null,{"$f":"IF(DE10=\"\",0,IF(DF10<=$B10,1,0))","v":0},null,{"$f":"IF(DG10=\"\",0,IF(DH10<=$B10,1,0))","v":0},null,{"$f":"IF(DI10=\"\",0,IF(DJ10<=$B10,1,0))","v":0},null,{"$f":"IF(DK10=\"\",0,IF(DL10<=$B10,1,0))","v":0},null,{"$f":"IF(DM10=\"\",0,IF(DN10<=$B10,1,0))","v":0},null,{"$f":"IF(DO10=\"\",0,IF(DP10<=$B10,1,0))","v":0},null,{"$f":"IF(DQ10=\"\",0,IF(DR10<=$B10,1,0))","v":0},null,{"$f":"IF(DS10=\"\",0,IF(DT10<=$B10,1,0))","v":0},null,{"$f":"IF(DU10=\"\",0,IF(DV10<=$B10,1,0))","v":0},null,{"$f":"IF(DW10=\"\",0,IF(DX10<=$B10,1,0))","v":0},null,{"$f":"IF(DY10=\"\",0,IF(DZ10<=$B10,1,0))","v":0},null,{"$f":"IF(EA10=\"\",0,IF(EB10<=$B10,1,0))","v":0},null,{"$f":"IF(EC10=\"\",0,IF(ED10<=$B10,1,0))","v":1},null,{"$f":"IF(EE10=\"\",0,IF(EF10<=$B10,1,0))","v":0},null,{"$f":"IF(EG10=\"\",0,IF(EH10<=$B10,1,0))","v":0},null,{"$f":"IF(EI10=\"\",0,IF(EJ10<=$B10,1,0))","v":0},null,{"$f":"IF(EK10=\"\",0,IF(EL10<=$B10,1,0))","v":0},null,{"$f":"IF(EM10=\"\",0,IF(EN10<=$B10,1,0))","v":0},null,{"$f":"IF(EO10=\"\",0,IF(EP10<=$B10,1,0))","v":0},null,{"$f":"IF(EQ10=\"\",0,IF(ER10<=$B10,1,0))","v":0},null,{"$f":"IF(ES10=\"\",0,IF(ET10<=$B10,1,0))","v":0},null,{"$f":"IF(EU10=\"\",0,IF(EV10<=$B10,1,0))","v":0},null,{"$f":"IF(EW10=\"\",0,IF(EX10<=$B10,1,0))","v":0},null,{"$f":"IF(EY10=\"\",0,IF(EZ10<=$B10,1,0))","v":0},null,{"$f":"IF(FA10=\"\",0,IF(FB10<=$B10,1,0))","v":0},null,{"$f":"IF(FC10=\"\",0,IF(FD10<=$B10,1,0))","v":0},null,{"$f":"IF(FE10=\"\",0,IF(FF10<=$B10,1,0))","v":0},null,{"$f":"IF(FG10=\"\",0,IF(FH10<=$B10,1,0))","v":0},null,{"$f":"IF(FI10=\"\",0,IF(FJ10<=$B10,1,0))","v":0},null,{"$f":"IF(FK10=\"\",0,IF(FL10<=$B10,1,0))","v":0},null,{"$f":"IF(FM10=\"\",0,IF(FN10<=$B10,1,0))","v":0},null,{"$f":"IF(FO10=\"\",0,IF(FP10<=$B10,1,0))","v":0},null,{"$f":"IF(FQ10=\"\",0,IF(FR10<=$B10,1,0))","v":0},null,{"$f":"IF(FS10=\"\",0,IF(FT10<=$B10,1,0))","v":0},null,{"$f":"IF(FU10=\"\",0,IF(FV10<=$B10,1,0))","v":0},null,{"$f":"IF(FW10=\"\",0,IF(FX10<=$B10,1,0))","v":0},null,{"$f":"IF(FY10=\"\",0,IF(FZ10<=$B10,1,0))","v":0},null,{"$f":"IF(GA10=\"\",0,IF(GB10<=$B10,1,0))","v":0},null,{"$f":"IF(GC10=\"\",0,IF(GD10<=$B10,1,0))","v":0},null,{"$f":"IF(GE10=\"\",0,IF(GF10<=$B10,1,0))","v":0},null,{"$f":"IF(GG10=\"\",0,IF(GH10<=$B10,1,0))","v":0},null,{"$f":"IF(GI10=\"\",0,IF(GJ10<=$B10,1,0))","v":0},null,{"$f":"IF(GK10=\"\",0,IF(GL10<=$B10,1,0))","v":0},null,{"$f":"IF(GM10=\"\",0,IF(GN10<=$B10,1,0))","v":0},null,{"$f":"IF(GO10=\"\",0,IF(GP10<=$B10,1,0))","v":0},null,{"$f":"IF(GQ10=\"\",0,IF(GR10<=$B10,1,0))","v":0},null,{"$f":"IF(GS10=\"\",0,IF(GT10<=$B10,1,0))","v":0},null,{"$f":"IF(GU10=\"\",0,IF(GV10<=$B10,1,0))","v":0},null,{"$f":"IF(GW10=\"\",0,IF(GX10<=$B10,1,0))","v":0},null,{"$f":"IF(GY10=\"\",0,IF(GZ10<=$B10,1,0))","v":0},null,{"$f":"IF(HA10=\"\",0,IF(HB10<=$B10,1,0))","v":0},null,{"$f":"IF(HC10=\"\",0,IF(HD10<=$B10,1,0))","v":0},null,{"$f":"IF(HE10=\"\",0,IF(HF10<=$B10,1,0))","v":0},null,{"$f":"IF(HG10=\"\",0,IF(HH10<=$B10,1,0))","v":0},null,{"$f":"IF(HI10=\"\",0,IF(HJ10<=$B10,1,0))","v":0},null,{"$f":"IF(HK10=\"\",0,IF(HL10<=$B10,1,0))","v":0},null,{"$f":"IF(HM10=\"\",0,IF(HN10<=$B10,1,0))","v":0},null,{"$f":"IF(HO10=\"\",0,IF(HP10<=$B10,1,0))","v":0},null,{"$f":"IF(HQ10=\"\",0,IF(HR10<=$B10,1,0))","v":0},null,{"$f":"IF(HS10=\"\",0,IF(HT10<=$B10,1,0))","v":0},null,{"$f":"IF(HU10=\"\",0,IF(HV10<=$B10,1,0))","v":0},null,{"$f":"IF(HW10=\"\",0,IF(HX10<=$B10,1,0))","v":0},null,{"$f":"IF(HY10=\"\",0,IF(HZ10<=$B10,1,0))","v":0},null,{"$f":"IF(IA10=\"\",0,IF(IB10<=$B10,1,0))","v":0},null,{"$f":"IF(IC10=\"\",0,IF(ID10<=$B10,1,0))","v":0},null,{"$f":"IF(IE10=\"\",0,IF(IF10<=$B10,1,0))","v":0},null,{"$f":"IF(IG10=\"\",0,IF(IH10<=$B10,1,0))","v":0},null,{"$f":"IF(II10=\"\",0,IF(IJ10<=$B10,1,0))","v":0},null,{"$f":"IF(IK10=\"\",0,IF(IL10<=$B10,1,0))","v":0},null,{"$f":"IF(IM10=\"\",0,IF(IN10<=$B10,1,0))","v":0},null,{"$f":"IF(IO10=\"\",0,IF(IP10<=$B10,1,0))","v":0},null,{"$f":"IF(IQ10=\"\",0,IF(IR10<=$B10,1,0))","v":0},null,{"$f":"IF(IS10=\"\",0,IF(IT10<=$B10,1,0))","v":0},null,{"$f":"IF(IU10=\"\",0,IF(IV10<=$B10,1,0))","v":0},null,{"$f":"IF(IW10=\"\",0,IF(IX10<=$B10,1,0))","v":0},null,{"$f":"IF(IY10=\"\",0,IF(IZ10<=$B10,1,0))","v":0},null,{"$f":"IF(JA10=\"\",0,IF(JB10<=$B10,1,0))","v":0},null,{"$f":"IF(JC10=\"\",0,IF(JD10<=$B10,1,0))","v":0},null,{"$f":"IF(JE10=\"\",0,IF(JF10<=$B10,1,0))","v":0},null,{"$f":"IF(JG10=\"\",0,IF(JH10<=$B10,1,0))","v":0},null,{"$f":"IF(JI10=\"\",0,IF(JJ10<=$B10,1,0))","v":0},null,{"$f":"IF(JK10=\"\",0,IF(JL10<=$B10,1,0))","v":0},null,{"$f":"IF(JM10=\"\",0,IF(JN10<=$B10,1,0))","v":0},null,{"$f":"IF(JO10=\"\",0,IF(JP10<=$B10,1,0))","v":0},null,{"$f":"IF(JQ10=\"\",0,IF(JR10<=$B10,1,0))","v":0},null,{"$f":"IF(JS10=\"\",0,IF(JT10<=$B10,1,0))","v":0},null,{"$f":"IF(JU10=\"\",0,IF(JV10<=$B10,1,0))","v":0},null,{"$f":"IF(JW10=\"\",0,IF(JX10<=$B10,1,0))","v":0},null,{"$f":"IF(JY10=\"\",0,IF(JZ10<=$B10,1,0))","v":0},null,{"$f":"IF(KA10=\"\",0,IF(KB10<=$B10,1,0))","v":0},null,{"$f":"IF(KC10=\"\",0,IF(KD10<=$B10,1,0))","v":0},null,{"$f":"IF(KE10=\"\",0,IF(KF10<=$B10,1,0))","v":0},null,{"$f":"IF(KG10=\"\",0,IF(KH10<=$B10,1,0))","v":0},null,{"$f":"IF(KI10=\"\",0,IF(KJ10<=$B10,1,0))","v":0},null,{"$f":"IF(KK10=\"\",0,IF(KL10<=$B10,1,0))","v":0},null,{"$f":"IF(KM10=\"\",0,IF(KN10<=$B10,1,0))","v":0},null,{"$f":"IF(KO10=\"\",0,IF(KP10<=$B10,1,0))","v":0},null,{"$f":"IF(KQ10=\"\",0,IF(KR10<=$B10,1,0))","v":0},null,{"$f":"IF(KS10=\"\",0,IF(KT10<=$B10,1,0))","v":0},null,{"$f":"IF(KU10=\"\",0,IF(KV10<=$B10,1,0))","v":0},null,{"$f":"IF(KW10=\"\",0,IF(KX10<=$B10,1,0))","v":0},null,{"$f":"IF(KY10=\"\",0,IF(KZ10<=$B10,1,0))","v":0},null,{"$f":"IF(LA10=\"\",0,IF(LB10<=$B10,1,0))","v":0},null,{"$f":"IF(LC10=\"\",0,IF(LD10<=$B10,1,0))","v":0},null,{"$f":"IF(LE10=\"\",0,IF(LF10<=$B10,1,0))","v":0},null,{"$f":"IF(LG10=\"\",0,IF(LH10<=$B10,1,0))","v":0},null,{"$f":"IF(LI10=\"\",0,IF(LJ10<=$B10,1,0))","v":0},null,{"$f":"IF(LK10=\"\",0,IF(LL10<=$B10,1,0))","v":0},null,{"$f":"IF(LM10=\"\",0,IF(LN10<=$B10,1,0))","v":0},null,{"$f":"IF(LO10=\"\",0,IF(LP10<=$B10,1,0))","v":0},null,{"$f":"IF(LQ10=\"\",0,IF(LR10<=$B10,1,0))","v":0},null,{"$f":"IF(LS10=\"\",0,IF(LT10<=$B10,1,0))","v":0},null,{"$f":"IF(LU10=\"\",0,IF(LV10<=$B10,1,0))","v":0},null,{"$f":"IF(LW10=\"\",0,IF(LX10<=$B10,1,0))","v":0},null,{"$f":"IF(LY10=\"\",0,IF(LZ10<=$B10,1,0))","v":0},null,{"$f":"IF(MA10=\"\",0,IF(MB10<=$B10,1,0))","v":0},null,{"$f":"IF(MC10=\"\",0,IF(MD10<=$B10,1,0))","v":0},null,{"$f":"IF(ME10=\"\",0,IF(MF10<=$B10,1,0))","v":0},null,{"$f":"IF(MG10=\"\",0,IF(MH10<=$B10,1,0))","v":0},null,{"$f":"IF(MI10=\"\",0,IF(MJ10<=$B10,1,0))","v":0},null,{"$f":"IF(MK10=\"\",0,IF(ML10<=$B10,1,0))","v":0},null,{"$f":"IF(MM10=\"\",0,IF(MN10<=$B10,1,0))","v":0},null,{"$f":"IF(MO10=\"\",0,IF(MP10<=$B10,1,0))","v":0},null,{"$f":"IF(MQ10=\"\",0,IF(MR10<=$B10,1,0))","v":0},null,{"$f":"IF(MS10=\"\",0,IF(MT10<=$B10,1,0))","v":0},null,{"$f":"IF(MU10=\"\",0,IF(MV10<=$B10,1,0))","v":0},null,{"$f":"IF(MW10=\"\",0,IF(MX10<=$B10,1,0))","v":0},null,{"$f":"IF(MY10=\"\",0,IF(MZ10<=$B10,1,0))","v":0},null,{"$f":"IF(NA10=\"\",0,IF(NB10<=$B10,1,0))","v":0},null,{"$f":"IF(NC10=\"\",0,IF(ND10<=$B10,1,0))","v":0},null,{"$f":"IF(NE10=\"\",0,IF(NF10<=$B10,1,0))","v":0},null,{"$f":"IF(NG10=\"\",0,IF(NH10<=$B10,1,0))","v":0},null,{"$f":"IF(NI10=\"\",0,IF(NJ10<=$B10,1,0))","v":0},null,{"$f":"IF(NK10=\"\",0,IF(NL10<=$B10,1,0))","v":0},null,{"$f":"IF(NM10=\"\",0,IF(NN10<=$B10,1,0))","v":0},null,{"$f":"IF(NO10=\"\",0,IF(NP10<=$B10,1,0))","v":0},null,{"$f":"IF(NQ10=\"\",0,IF(NR10<=$B10,1,0))","v":0},null,{"$f":"IF(NS10=\"\",0,IF(NT10<=$B10,1,0))","v":0},null,{"$f":"IF(NU10=\"\",0,IF(NV10<=$B10,1,0))","v":0},null,{"$f":"IF(NW10=\"\",0,IF(NX10<=$B10,1,0))","v":0},null,{"$f":"IF(NY10=\"\",0,IF(NZ10<=$B10,1,0))","v":0},null,{"$f":"IF(OA10=\"\",0,IF(OB10<=$B10,1,0))","v":0},null,{"$f":"IF(OC10=\"\",0,IF(OD10<=$B10,1,0))","v":0},null,{"$f":"IF(OE10=\"\",0,IF(OF10<=$B10,1,0))","v":0},null,{"$f":"IF(OG10=\"\",0,IF(OH10<=$B10,1,0))","v":0},null,{"$f":"IF(OI10=\"\",0,IF(OJ10<=$B10,1,0))","v":0},null,{"$f":"IF(OK10=\"\",0,IF(OL10<=$B10,1,0))","v":0},null,{"$f":"IF(OM10=\"\",0,IF(ON10<=$B10,1,0))","v":0},null,{"$f":"IF(OO10=\"\",0,IF(OP10<=$B10,1,0))","v":0},null,{"$f":"IF(OQ10=\"\",0,IF(OR10<=$B10,1,0))","v":0},null,{"$f":"IF(OS10=\"\",0,IF(OT10<=$B10,1,0))","v":0},null,{"$f":"IF(OU10=\"\",0,IF(OV10<=$B10,1,0))","v":0},null,{"$f":"IF(OW10=\"\",0,IF(OX10<=$B10,1,0))","v":0},null,{"$f":"IF(OY10=\"\",0,IF(OZ10<=$B10,1,0))","v":0},null,{"$f":"IF(PA10=\"\",0,IF(PB10<=$B10,1,0))","v":0},null,{"$f":"IF(PC10=\"\",0,IF(PD10<=$B10,1,0))","v":0},null,{"$f":"IF(PE10=\"\",0,IF(PF10<=$B10,1,0))","v":0},null,{"$f":"IF(PG10=\"\",0,IF(PH10<=$B10,1,0))","v":0},null,{"$f":"IF(PI10=\"\",0,IF(PJ10<=$B10,1,0))","v":0},null,{"$f":"IF(PK10=\"\",0,IF(PL10<=$B10,1,0))","v":0},null,{"$f":"IF(PM10=\"\",0,IF(PN10<=$B10,1,0))","v":0},null,{"$f":"IF(PO10=\"\",0,IF(PP10<=$B10,1,0))","v":0},null,{"$f":"IF(PQ10=\"\",0,IF(PR10<=$B10,1,0))","v":0},null,{"$f":"IF(PS10=\"\",0,IF(PT10<=$B10,1,0))","v":0},null,{"$f":"IF(PU10=\"\",0,IF(PV10<=$B10,1,0))","v":0},null,{"$f":"IF(PW10=\"\",0,IF(PX10<=$B10,1,0))","v":0},null,{"$f":"IF(PY10=\"\",0,IF(PZ10<=$B10,1,0))","v":0},null,{"$f":"IF(QA10=\"\",0,IF(QB10<=$B10,1,0))","v":0},null,{"$f":"IF(QC10=\"\",0,IF(QD10<=$B10,1,0))","v":0},null,{"$f":"IF(QE10=\"\",0,IF(QF10<=$B10,1,0))","v":0},null,{"$f":"IF(QG10=\"\",0,IF(QH10<=$B10,1,0))","v":0},null,{"$f":"IF(QI10=\"\",0,IF(QJ10<=$B10,1,0))","v":0},null,{"$f":"IF(QK10=\"\",0,IF(QL10<=$B10,1,0))","v":0},null,{"$f":"IF(QM10=\"\",0,IF(QN10<=$B10,1,0))","v":0},null,{"$f":"IF(QO10=\"\",0,IF(QP10<=$B10,1,0))","v":0},null,{"$f":"IF(QQ10=\"\",0,IF(QR10<=$B10,1,0))","v":0},null,{"$f":"IF(QS10=\"\",0,IF(QT10<=$B10,1,0))","v":0},null,{"$f":"IF(QU10=\"\",0,IF(QV10<=$B10,1,0))","v":0},null,{"$f":"IF(QW10=\"\",0,IF(QX10<=$B10,1,0))","v":0},null,{"$f":"IF(QY10=\"\",0,IF(QZ10<=$B10,1,0))","v":0},null,{"$f":"IF(RA10=\"\",0,IF(RB10<=$B10,1,0))","v":0},null,{"$f":"IF(RC10=\"\",0,IF(RD10<=$B10,1,0))","v":0},null,{"$f":"IF(RE10=\"\",0,IF(RF10<=$B10,1,0))","v":0},null,{"$f":"IF(RG10=\"\",0,IF(RH10<=$B10,1,0))","v":0},null,{"$f":"IF(RI10=\"\",0,IF(RJ10<=$B10,1,0))","v":0},null,{"$f":"IF(RK10=\"\",0,IF(RL10<=$B10,1,0))","v":0},null,{"$f":"IF(RM10=\"\",0,IF(RN10<=$B10,1,0))","v":0},null,{"$f":"IF(RO10=\"\",0,IF(RP10<=$B10,1,0))","v":0},null,{"$f":"IF(RQ10=\"\",0,IF(RR10<=$B10,1,0))","v":0},null,{"$f":"IF(RS10=\"\",0,IF(RT10<=$B10,1,0))","v":0},null,{"$f":"IF(RU10=\"\",0,IF(RV10<=$B10,1,0))","v":0},null,{"$f":"IF(RW10=\"\",0,IF(RX10<=$B10,1,0))","v":0},null,{"$f":"IF(RY10=\"\",0,IF(RZ10<=$B10,1,0))","v":0},null,{"$f":"IF(SA10=\"\",0,IF(SB10<=$B10,1,0))","v":0},null,{"$f":"IF(SC10=\"\",0,IF(SD10<=$B10,1,0))","v":0},null,{"$f":"IF(SE10=\"\",0,IF(SF10<=$B10,1,0))","v":0},null,{"$f":"IF(SG10=\"\",0,IF(SH10<=$B10,1,0))","v":0},null,{"$f":"IF(SI10=\"\",0,IF(SJ10<=$B10,1,0))","v":0},null,{"$f":"IF(SK10=\"\",0,IF(SL10<=$B10,1,0))","v":0},null,{"$f":"IF(SM10=\"\",0,IF(SN10<=$B10,1,0))","v":0},null,{"$f":"IF(SO10=\"\",0,IF(SP10<=$B10,1,0))","v":0},null,{"$f":"IF(SQ10=\"\",0,IF(SR10<=$B10,1,0))","v":0},null,{"$f":"IF(SS10=\"\",0,IF(ST10<=$B10,1,0))","v":0},null,{"$f":"IF(SU10=\"\",0,IF(SV10<=$B10,1,0))","v":0},null,{"$f":"IF(SW10=\"\",0,IF(SX10<=$B10,1,0))","v":0},null,{"$f":"IF(SY10=\"\",0,IF(SZ10<=$B10,1,0))","v":0},null,{"$f":"IF(TA10=\"\",0,IF(TB10<=$B10,1,0))","v":0},null,{"$f":"IF(TC10=\"\",0,IF(TD10<=$B10,1,0))","v":0},null,{"$f":"IF(TE10=\"\",0,IF(TF10<=$B10,1,0))","v":0},null,{"$f":"IF(TG10=\"\",0,IF(TH10<=$B10,1,0))","v":0},null,{"$f":"IF(TI10=\"\",0,IF(TJ10<=$B10,1,0))","v":0},null,{"$f":"IF(TK10=\"\",0,IF(TL10<=$B10,1,0))","v":0},null,{"$f":"IF(TM10=\"\",0,IF(TN10<=$B10,1,0))","v":0},null,{"$f":"IF(TO10=\"\",0,IF(TP10<=$B10,1,0))","v":0},null,{"$f":"IF(TQ10=\"\",0,IF(TR10<=$B10,1,0))","v":0},null,{"$f":"IF(TS10=\"\",0,IF(TT10<=$B10,1,0))","v":0},null,{"$f":"IF(TU10=\"\",0,IF(TV10<=$B10,1,0))","v":0},null,{"$f":"IF(TW10=\"\",0,IF(TX10<=$B10,1,0))","v":0},null,{"$f":"IF(TY10=\"\",0,IF(TZ10<=$B10,1,0))","v":0},null,{"$f":"IF(UA10=\"\",0,IF(UB10<=$B10,1,0))","v":0},null,{"$f":"IF(UC10=\"\",0,IF(UD10<=$B10,1,0))","v":0},null,{"$f":"IF(UE10=\"\",0,IF(UF10<=$B10,1,0))","v":0},null,{"$f":"IF(UG10=\"\",0,IF(UH10<=$B10,1,0))","v":0},null,{"$f":"IF(UI10=\"\",0,IF(UJ10<=$B10,1,0))","v":0},null,{"$f":"IF(UK10=\"\",0,IF(UL10<=$B10,1,0))","v":0},null,{"$f":"IF(UM10=\"\",0,IF(UN10<=$B10,1,0))","v":0},null,{"$f":"IF(UO10=\"\",0,IF(UP10<=$B10,1,0))","v":0},null,{"$f":"IF(UQ10=\"\",0,IF(UR10<=$B10,1,0))","v":0},null,{"$f":"IF(US10=\"\",0,IF(UT10<=$B10,1,0))","v":0},null,{"$f":"IF(UU10=\"\",0,IF(UV10<=$B10,1,0))","v":0},null,{"$f":"IF(UW10=\"\",0,IF(UX10<=$B10,1,0))","v":0},null,{"$f":"IF(UY10=\"\",0,IF(UZ10<=$B10,1,0))","v":0},null,{"$f":"IF(VA10=\"\",0,IF(VB10<=$B10,1,0))","v":0},null,{"$f":"IF(VC10=\"\",0,IF(VD10<=$B10,1,0))","v":0},null,{"$f":"IF(VE10=\"\",0,IF(VF10<=$B10,1,0))","v":1},null,{"$f":"IF(VG10=\"\",0,IF(VH10<=$B10,1,0))","v":1},null,{"$f":"IF(VI10=\"\",0,IF(VJ10<=$B10,1,0))","v":1},null,{"$f":"IF(VK10=\"\",0,IF(VL10<=$B10,1,0))","v":0},null,{"$f":"IF(VM10=\"\",0,IF(VN10<=$B10,1,0))","v":0},null,{"$f":"IF(VO10=\"\",0,IF(VP10<=$B10,1,0))","v":0},null,{"$f":"IF(VQ10=\"\",0,IF(VR10<=$B10,1,0))","v":0},null,{"$f":"IF(VS10=\"\",0,IF(VT10<=$B10,1,0))","v":0},null,{"$f":"IF(VU10=\"\",0,IF(VV10<=$B10,1,0))","v":0},null,{"$f":"IF(VW10=\"\",0,IF(VX10<=$B10,1,0))","v":0},null,{"$f":"IF(VY10=\"\",0,IF(VZ10<=$B10,1,0))","v":0},null,{"$f":"IF(WA10=\"\",0,IF(WB10<=$B10,1,0))","v":0},null,{"$f":"IF(WC10=\"\",0,IF(WD10<=$B10,1,0))","v":0},null,{"$f":"IF(WE10=\"\",0,IF(WF10<=$B10,1,0))","v":0},null,{"$f":"IF(WG10=\"\",0,IF(WH10<=$B10,1,0))","v":0},null,{"$f":"IF(WI10=\"\",0,IF(WJ10<=$B10,1,0))","v":0},null,{"$f":"IF(WK10=\"\",0,IF(WL10<=$B10,1,0))","v":0},null,{"$f":"IF(WM10=\"\",0,IF(WN10<=$B10,1,0))","v":0},null,{"$f":"IF(WO10=\"\",0,IF(WP10<=$B10,1,0))","v":0},null,{"$f":"IF(WQ10=\"\",0,IF(WR10<=$B10,1,0))","v":0},null,{"$f":"IF(WS10=\"\",0,IF(WT10<=$B10,1,0))","v":0},null,{"$f":"IF(WU10=\"\",0,IF(WV10<=$B10,1,0))","v":0},null,{"$f":"IF(WW10=\"\",0,IF(WX10<=$B10,1,0))","v":0},null,{"$f":"IF(WY10=\"\",0,IF(WZ10<=$B10,1,0))","v":0},null,{"$f":"IF(XA10=\"\",0,IF(XB10<=$B10,1,0))","v":0},null,{"$f":"IF(XC10=\"\",0,IF(XD10<=$B10,1,0))","v":0},null,{"$f":"IF(XE10=\"\",0,IF(XF10<=$B10,1,0))","v":0},null,{"$f":"IF(XG10=\"\",0,IF(XH10<=$B10,1,0))","v":0},null,{"$f":"IF(XI10=\"\",0,IF(XJ10<=$B10,1,0))","v":0},null,{"$f":"IF(XK10=\"\",0,IF(XL10<=$B10,1,0))","v":0},null,{"$f":"IF(XM10=\"\",0,IF(XN10<=$B10,1,0))","v":0},null,{"$f":"IF(XO10=\"\",0,IF(XP10<=$B10,1,0))","v":0},null,{"$f":"IF(XQ10=\"\",0,IF(XR10<=$B10,1,0))","v":0},null,{"$f":"IF(XS10=\"\",0,IF(XT10<=$B10,1,0))","v":0},null,{"$f":"IF(XU10=\"\",0,IF(XV10<=$B10,1,0))","v":0},null,{"$f":"IF(XW10=\"\",0,IF(XX10<=$B10,1,0))","v":0}]
[null,null,null,{"$f":"IF(C11=\"\",0,IF(D11<=$B11,1,0))","v":0},null,{"$f":"IF(E11=\"\",0,IF(F11<=$B11,1,0))","v":0},null,{"$f":"IF(G11=\"\",0,IF(H11<=$B11,1,0))","v":0},null,{"$f":"IF(I11=\"\",0,IF(J11<=$B11,1,0))","v":0},null,{"$f":"IF(K11=\"\",0,IF(L11<=$B11,1,0))","v":0},null,{"$f":"IF(M11=\"\",0,IF(N11<=$B11,1,0))","v":0},null,{"$f":"IF(O11=\"\",0,IF(P11<=$B11,1,0))","v":0},null,{"$f":"IF(Q11=\"\",0,IF(R11<=$B11,1,0))","v":0},null,{"$f":"IF(S11=\"\",0,IF(T11<=$B11,1,0))","v":0},null,{"$f":"IF(U11=\"\",0,IF(V11<=$B11,1,0))","v":0},null,{"$f":"IF(W11=\"\",0,IF(X11<=$B11,1,0))","v":0},null,{"$f":"IF(Y11=\"\",0,IF(Z11<=$B11,1,0))","v":0},null,{"$f":"IF(AA11=\"\",0,IF(AB11<=$B11,1,0))","v":0},null,{"$f":"IF(AC11=\"\",0,IF(AD11<=$B11,1,0))","v":0},null,{"$f":"IF(AE11=\"\",0,IF(AF11<=$B11,1,0))","v":0},null,null,null,{"$f":"IF(AI11=\"\",0,IF(AJ11<=$B11,1,0))","v":0},null,{"$f":"IF(AK11=\"\",0,IF(AL11<=$B11,1,0))","v":0},null,{"$f":"IF(AM11=\"\",0,IF(AN11<=$B11,1,0))","v":0},null,{"$f":"IF(AO11=\"\",0,IF(AP11<=$B11,1,0))","v":0},null,{"$f":"IF(AQ11=\"\",0,IF(AR11<=$B11,1,0))","v":0},null,{"$f":"IF(AS11=\"\",0,IF(AT11<=$B11,1,0))","v":0},null,{"$f":"IF(AU11=\"\",0,IF(AV11<=$B11,1,0))","v":0},null,{"$f":"IF(AW11=\"\",0,IF(AX11<=$B11,1,0))","v":0},null,{"$f":"IF(AY11=\"\",0,IF(AZ11<=$B11,1,0))","v":0},null,{"$f":"IF(BA11=\"\",0,IF(BB11<=$B11,1,0))","v":0},null,{"$f":"IF(BC11=\"\",0,IF(BD11<=$B11,1,0))","v":0},null,{"$f":"IF(BE11=\"\",0,IF(BF11<=$B11,1,0))","v":0},null,{"$f":"IF(BG11=\"\",0,IF(BH11<=$B11,1,0))","v":0},null,{"$f":"IF(BI11=\"\",0,IF(BJ11<=$B11,1,0))","v":0},null,{"$f":"IF(BK11=\"\",0,IF(BL11<=$B11,1,0))","v":0},null,{"$f":"IF(BM11=\"\",0,IF(BN11<=$B11,1,0))","v":0},null,{"$f":"IF(BO11=\"\",0,IF(BP11<=$B11,1,0))","v":0},null,{"$f":"IF(BQ11=\"\",0,IF(BR11<=$B11,1,0))","v":0},null,{"$f":"IF(BS11=\"\",0,IF(BT11<=$B11,1,0))","v":0},null,{"$f":"IF(BU11=\"\",0,IF(BV11<=$B11,1,0))","v":0},null,{"$f":"IF(BW11=\"\",0,IF(BX11<=$B11,1,0))","v":0},null,{"$f":"IF(BY11=\"\",0,IF(BZ11<=$B11,1,0))","v":0},null,{"$f":"IF(CA11=\"\",0,IF(CB11<=$B11,1,0))","v":0},null,{"$f":"IF(CC11=\"\",0,IF(CD11<=$B11,1,0))","v":0},null,{"$f":"IF(CE11=\"\",0,IF(CF11<=$B11,1,0))","v":0},null,{"$f":"IF(CG11=\"\",0,IF(CH11<=$B11,1,0))","v":0},null,{"$f":"IF(CI11=\"\",0,IF(CJ11<=$B11,1,0))","v":0},null,{"$f":"IF(CK11=\"\",0,IF(CL11<=$B11,1,0))","v":0},null,{"$f":"IF(CM11=\"\",0,IF(CN11<=$B11,1,0))","v":0},null,{"$f":"IF(CO11=\"\",0,IF(CP11<=$B11,1,0))","v":0},null,{"$f":"IF(CQ11=\"\",0,IF(CR11<=$B11,1,0))","v":0},null,{"$f":"IF(CS11=\"\",0,IF(CT11<=$B11,1,0))","v":0},null,{"$f":"IF(CU11=\"\",0,IF(CV11<=$B11,1,0))","v":0},null,{"$f":"IF(CW11=\"\",0,IF(CX11<=$B11,1,0))","v":0},null,{"$f":"IF(CY11=\"\",0,IF(CZ11<=$B11,1,0))","v":0},null,{"$f":"IF(DA11=\"\",0,IF(DB11<=$B11,1,0))","v":0},null,{"$f":"IF(DC11=\"\",0,IF(DD11<=$B11,1,0))","v":0},null,{"$f":"IF(DE11=\"\",0,IF(DF11<=$B11,1,0))","v":0},null,{"$f":"IF(DG11=\"\",0,IF(DH11<=$B11,1,0))","v":0},null,{"$f":"IF(DI11=\"\",0,IF(DJ11<=$B11,1,0))","v":0},null,{"$f":"IF(DK11=\"\",0,IF(DL11<=$B11,1,0))","v":0},null,{"$f":"IF(DM11=\"\",0,IF(DN11<=$B11,1,0))","v":0},null,{"$f":"IF(DO11=\"\",0,IF(DP11<=$B11,1,0))","v":0},null,{"$f":"IF(DQ11=\"\",0,IF(DR11<=$B11,1,0))","v":0},null,{"$f":"IF(DS11=\"\",0,IF(DT11<=$B11,1,0))","v":0},null,{"$f":"IF(DU11=\"\",0,IF(DV11<=$B11,1,0))","v":0},null,{"$f":"IF(DW11=\"\",0,IF(DX11<=$B11,1,0))","v":0},null,{"$f":"IF(DY11=\"\",0,IF(DZ11<=$B11,1,0))","v":0},null,{"$f":"IF(EA11=\"\",0,IF(EB11<=$B11,1,0))","v":0},null,{"$f":"IF(EC11=\"\",0,IF(ED11<=$B11,1,0))","v":0},null,{"$f":"IF(EE11=\"\",0,IF(EF11<=$B11,1,0))","v":0},null,{"$f":"IF(EG11=\"\",0,IF(EH11<=$B11,1,0))","v":0},null,{"$f":"IF(EI11=\"\",0,IF(EJ11<=$B11,1,0))","v":0},null,{"$f":"IF(EK11=\"\",0,IF(EL11<=$B11,1,0))","v":0},null,{"$f":"IF(EM11=\"\",0,IF(EN11<=$B11,1,0))","v":0},null,{"$f":"IF(EO11=\"\",0,IF(EP11<=$B11,1,0))","v":0},null,{"$f":"IF(EQ11=\"\",0,IF(ER11<=$B11,1,0))","v":0},null,{"$f":"IF(ES11=\"\",0,IF(ET11<=$B11,1,0))","v":0},null,{"$f":"IF(EU11=\"\",0,IF(EV11<=$B11,1,0))","v":0},null,{"$f":"IF(EW11=\"\",0,IF(EX11<=$B11,1,0))","v":0},null,{"$f":"IF(EY11=\"\",0,IF(EZ11<=$B11,1,0))","v":0},null,{"$f":"IF(FA11=\"\",0,IF(FB11<=$B11,1,0))","v":0},null,{"$f":"IF(FC11=\"\",0,IF(FD11<=$B11,1,0))","v":0},null,{"$f":"IF(FE11=\"\",0,IF(FF11<=$B11,1,0))","v":0},null,{"$f":"IF(FG11=\"\",0,IF(FH11<=$B11,1,0))","v":0},null,{"$f":"IF(FI11=\"\",0,IF(FJ11<=$B11,1,0))","v":0},null,{"$f":"IF(FK11=\"\",0,IF(FL11<=$B11,1,0))","v":0},null,{"$f":"IF(FM11=\"\",0,IF(FN11<=$B11,1,0))","v":0},null,{"$f":"IF(FO11=\"\",0,IF(FP11<=$B11,1,0))","v":0},null,{"$f":"IF(FQ11=\"\",0,IF(FR11<=$B11,1,0))","v":0},null,{"$f":"IF(FS11=\"\",0,IF(FT11<=$B11,1,0))","v":0},null,{"$f":"IF(FU11=\"\",0,IF(FV11<=$B11,1,0))","v":0},null,{"$f":"IF(FW11=\"\",0,IF(FX11<=$B11,1,0))","v":0},null,{"$f":"IF(FY11=\"\",0,IF(FZ11<=$B11,1,0))","v":0},null,{"$f":"IF(GA11=\"\",0,IF(GB11<=$B11,1,0))","v":0},null,{"$f":"IF(GC11=\"\",0,IF(GD11<=$B11,1,0))","v":0},null,{"$f":"IF(GE11=\"\",0,IF(GF11<=$B11,1,0))","v":0},null,{"$f":"IF(GG11=\"\",0,IF(GH11<=$B11,1,0))","v":0},null,{"$f":"IF(GI11=\"\",0,IF(GJ11<=$B11,1,0))","v":0},null,{"$f":"IF(GK11=\"\",0,IF(GL11<=$B11,1,0))","v":0},null,{"$f":"IF(GM11=\"\",0,IF(GN11<=$B11,1,0))","v":0},null,{"$f":"IF(GO11=\"\",0,IF(GP11<=$B11,1,0))","v":0},null,{"$f":"IF(GQ11=\"\",0,IF(GR11<=$B11,1,0))","v":0},null,{"$f":"IF(GS11=\"\",0,IF(GT11<=$B11,1,0))","v":0},null,{"$f":"IF(GU11=\"\",0,IF(GV11<=$B11,1,0))","v":0},null,{"$f":"IF(GW11=\"\",0,IF(GX11<=$B11,1,0))","v":0},null,{"$f":"IF(GY11=\"\",0,IF(GZ11<=$B11,1,0))","v":0},null,{"$f":"IF(HA11=\"\",0,IF(HB11<=$B11,1,0))","v":0},null,{"$f":"IF(HC11=\"\",0,IF(HD11<=$B11,1,0))","v":0},null,{"$f":"IF(HE11=\"\",0,IF(HF11<=$B11,1,0))","v":0},null,{"$f":"IF(HG11=\"\",0,IF(HH11<=$B11,1,0))","v":0},null,{"$f":"IF(HI11=\"\",0,IF(HJ11<=$B11,1,0))","v":0},null,{"$f":"IF(HK11=\"\",0,IF(HL11<=$B11,1,0))","v":0},null,{"$f":"IF(HM11=\"\",0,IF(HN11<=$B11,1,0))","v":0},null,{"$f":"IF(HO11=\"\",0,IF(HP11<=$B11,1,0))","v":0},null,{"$f":"IF(HQ11=\"\",0,IF(HR11<=$B11,1,0))","v":0},null,{"$f":"IF(HS11=\"\",0,IF(HT11<=$B11,1,0))","v":0},null,{"$f":"IF(HU11=\"\",0,IF(HV11<=$B11,1,0))","v":0},null,{"$f":"IF(HW11=\"\",0,IF(HX11<=$B11,1,0))","v":0},null,{"$f":"IF(HY11=\"\",0,IF(HZ11<=$B11,1,0))","v":0},null,{"$f":"IF(IA11=\"\",0,IF(IB11<=$B11,1,0))","v":0},null,{"$f":"IF(IC11=\"\",0,IF(ID11<=$B11,1,0))","v":0},null,{"$f":"IF(IE11=\"\",0,IF(IF11<=$B11,1,0))","v":0},null,{"$f":"IF(IG11=\"\",0,IF(IH11<=$B11,1,0))","v":0},null,{"$f":"IF(II11=\"\",0,IF(IJ11<=$B11,1,0))","v":0},null,{"$f":"IF(IK11=\"\",0,IF(IL11<=$B11,1,0))","v":0},null,{"$f":"IF(IM11=\"\",0,IF(IN11<=$B11,1,0))","v":0},null,{"$f":"IF(IO11=\"\",0,IF(IP11<=$B11,1,0))","v":0},null,{"$f":"IF(IQ11=\"\",0,IF(IR11<=$B11,1,0))","v":0},null,{"$f":"IF(IS11=\"\",0,IF(IT11<=$B11,1,0))","v":0},null,{"$f":"IF(IU11=\"\",0,IF(IV11<=$B11,1,0))","v":0},null,{"$f":"IF(IW11=\"\",0,IF(IX11<=$B11,1,0))","v":0},null,{"$f":"IF(IY11=\"\",0,IF(IZ11<=$B11,1,0))","v":0},null,{"$f":"IF(JA11=\"\",0,IF(JB11<=$B11,1,0))","v":0},null,{"$f":"IF(JC11=\"\",0,IF(JD11<=$B11,1,0))","v":0},null,{"$f":"IF(JE11=\"\",0,IF(JF11<=$B11,1,0))","v":0},null,{"$f":"IF(JG11=\"\",0,IF(JH11<=$B11,1,0))","v":0},null,{"$f":"IF(JI11=\"\",0,IF(JJ11<=$B11,1,0))","v":0},null,{"$f":"IF(JK11=\"\",0,IF(JL11<=$B11,1,0))","v":0},null,{"$f":"IF(JM11=\"\",0,IF(JN11<=$B11,1,0))","v":0},null,{"$f":"IF(JO11=\"\",0,IF(JP11<=$B11,1,0))","v":0},null,{"$f":"IF(JQ11=\"\",0,IF(JR11<=$B11,1,0))","v":0},null,{"$f":"IF(JS11=\"\",0,IF(JT11<=$B11,1,0))","v":0},null,{"$f":"IF(JU11=\"\",0,IF(JV11<=$B11,1,0))","v":0},null,{"$f":"IF(JW11=\"\",0,IF(JX11<=$B11,1,0))","v":0},null,{"$f":"IF(JY11=\"\",0,IF(JZ11<=$B11,1,0))","v":0},null,{"$f":"IF(KA11=\"\",0,IF(KB11<=$B11,1,0))","v":0},null,{"$f":"IF(KC11=\"\",0,IF(KD11<=$B11,1,0))","v":0},null,{"$f":"IF(KE11=\"\",0,IF(KF11<=$B11,1,0))","v":0},null,{"$f":"IF(KG11=\"\",0,IF(KH11<=$B11,1,0))","v":0},null,{"$f":"IF(KI11=\"\",0,IF(KJ11<=$B11,1,0))","v":0},null,{"$f":"IF(KK11=\"\",0,IF(KL11<=$B11,1,0))","v":0},null,{"$f":"IF(KM11=\"\",0,IF(KN11<=$B11,1,0))","v":0},null,{"$f":"IF(KO11=\"\",0,IF(KP11<=$B11,1,0))","v":0},null,{"$f":"IF(KQ11=\"\",0,IF(KR11<=$B11,1,0))","v":0},null,{"$f":"IF(KS11=\"\",0,IF(KT11<=$B11,1,0))","v":0},null,{"$f":"IF(KU11=\"\",0,IF(KV11<=$B11,1,0))","v":0},null,{"$f":"IF(KW11=\"\",0,IF(KX11<=$B11,1,0))","v":0},null,{"$f":"IF(KY11=\"\",0,IF(KZ11<=$B11,1,0))","v":0},null,{"$f":"IF(LA11=\"\",0,IF(LB11<=$B11,1,0))","v":0},null,{"$f":"IF(LC11=\"\",0,IF(LD11<=$B11,1,0))","v":0},null,{"$f":"IF(LE11=\"\",0,IF(LF11<=$B11,1,0))","v":0},null,{"$f":"IF(LG11=\"\",0,IF(LH11<=$B11,1,0))","v":0},null,{"$f":"IF(LI11=\"\",0,IF(LJ11<=$B11,1,0))","v":0},null,{"$f":"IF(LK11=\"\",0,IF(LL11<=$B11,1,0))","v":0},null,{"$f":"IF(LM11=\"\",0,IF(LN11<=$B11,1,0))","v":0},null,{"$f":"IF(LO11=\"\",0,IF(LP11<=$B11,1,0))","v":0},null,{"$f":"IF(LQ11=\"\",0,IF(LR11<=$B11,1,0))","v":0},null,{"$f":"IF(LS11=\"\",0,IF(LT11<=$B11,1,0))","v":0},null,{"$f":"IF(LU11=\"\",0,IF(LV11<=$B11,1,0))","v":0},null,{"$f":"IF(LW11=\"\",0,IF(LX11<=$B11,1,0))","v":0},null,{"$f":"IF(LY11=\"\",0,IF(LZ11<=$B11,1,0))","v":0},null,{"$f":"IF(MA11=\"\",0,IF(MB11<=$B11,1,0))","v":0},null,{"$f":"IF(MC11=\"\",0,IF(MD11<=$B11,1,0))","v":0},null,{"$f":"IF(ME11=\"\",0,IF(MF11<=$B11,1,0))","v":0},null,{"$f":"IF(MG11=\"\",0,IF(MH11<=$B11,1,0))","v":0},null,{"$f":"IF(MI11=\"\",0,IF(MJ11<=$B11,1,0))","v":0},null,{"$f":"IF(MK11=\"\",0,IF(ML11<=$B11,1,0))","v":0},null,{"$f":"IF(MM11=\"\",0,IF(MN11<=$B11,1,0))","v":0},null,{"$f":"IF(MO11=\"\",0,IF(MP11<=$B11,1,0))","v":0},null,{"$f":"IF(MQ11=\"\",0,IF(MR11<=$B11,1,0))","v":0},null,{"$f":"IF(MS11=\"\",0,IF(MT11<=$B11,1,0))","v":0},null,{"$f":"IF(MU11=\"\",0,IF(MV11<=$B11,1,0))","v":0},null,{"$f":"IF(MW11=\"\",0,IF(MX11<=$B11,1,0))","v":0},null,{"$f":"IF(MY11=\"\",0,IF(MZ11<=$B11,1,0))","v":0},null,{"$f":"IF(NA11=\"\",0,IF(NB11<=$B11,1,0))","v":0},null,{"$f":"IF(NC11=\"\",0,IF(ND11<=$B11,1,0))","v":0},null,{"$f":"IF(NE11=\"\",0,IF(NF11<=$B11,1,0))","v":0},null,{"$f":"IF(NG11=\"\",0,IF(NH11<=$B11,1,0))","v":0},null,{"$f":"IF(NI11=\"\",0,IF(NJ11<=$B11,1,0))","v":0},null,{"$f":"IF(NK11=\"\",0,IF(NL11<=$B11,1,0))","v":0},null,{"$f":"IF(NM11=\"\",0,IF(NN11<=$B11,1,0))","v":0},null,{"$f":"IF(NO11=\"\",0,IF(NP11<=$B11,1,0))","v":0},null,{"$f":"IF(NQ11=\"\",0,IF(NR11<=$B11,1,0))","v":0},null,{"$f":"IF(NS11=\"\",0,IF(NT11<=$B11,1,0))","v":0},null,{"$f":"IF(NU11=\"\",0,IF(NV11<=$B11,1,0))","v":0},null,{"$f":"IF(NW11=\"\",0,IF(NX11<=$B11,1,0))","v":0},null,{"$f":"IF(NY11=\"\",0,IF(NZ11<=$B11,1,0))","v":0},null,{"$f":"IF(OA11=\"\",0,IF(OB11<=$B11,1,0))","v":0},null,{"$f":"IF(OC11=\"\",0,IF(OD11<=$B11,1,0))","v":0},null,{"$f":"IF(OE11=\"\",0,IF(OF11<=$B11,1,0))","v":0},null,{"$f":"IF(OG11=\"\",0,IF(OH11<=$B11,1,0))","v":0},null,{"$f":"IF(OI11=\"\",0,IF(OJ11<=$B11,1,0))","v":0},null,{"$f":"IF(OK11=\"\",0,IF(OL11<=$B11,1,0))","v":0},null,{"$f":"IF(OM11=\"\",0,IF(ON11<=$B11,1,0))","v":0},null,{"$f":"IF(OO11=\"\",0,IF(OP11<=$B11,1,0))","v":0},null,{"$f":"IF(OQ11=\"\",0,IF(OR11<=$B11,1,0))","v":0},null,{"$f":"IF(OS11=\"\",0,IF(OT11<=$B11,1,0))","v":0},null,{"$f":"IF(OU11=\"\",0,IF(OV11<=$B11,1,0))","v":0},null,{"$f":"IF(OW11=\"\",0,IF(OX11<=$B11,1,0))","v":0},null,{"$f":"IF(OY11=\"\",0,IF(OZ11<=$B11,1,0))","v":0},null,{"$f":"IF(PA11=\"\",0,IF(PB11<=$B11,1,0))","v":0},null,{"$f":"IF(PC11=\"\",0,IF(PD11<=$B11,1,0))","v":0},null,{"$f":"IF(PE11=\"\",0,IF(PF11<=$B11,1,0))","v":0},null,{"$f":"IF(PG11=\"\",0,IF(PH11<=$B11,1,0))","v":0},null,{"$f":"IF(PI11=\"\",0,IF(PJ11<=$B11,1,0))","v":0},null,{"$f":"IF(PK11=\"\",0,IF(PL11<=$B11,1,0))","v":0},null,{"$f":"IF(PM11=\"\",0,IF(PN11<=$B11,1,0))","v":0},null,{"$f":"IF(PO11=\"\",0,IF(PP11<=$B11,1,0))","v":0},null,{"$f":"IF(PQ11=\"\",0,IF(PR11<=$B11,1,0))","v":0},null,{"$f":"IF(PS11=\"\",0,IF(PT11<=$B11,1,0))","v":0},null,{"$f":"IF(PU11=\"\",0,IF(PV11<=$B11,1,0))","v":0},null,{"$f":"IF(PW11=\"\",0,IF(PX11<=$B11,1,0))","v":0},null,{"$f":"IF(PY11=\"\",0,IF(PZ11<=$B11,1,0))","v":0},null,{"$f":"IF(QA11=\"\",0,IF(QB11<=$B11,1,0))","v":0},null,{"$f":"IF(QC11=\"\",0,IF(QD11<=$B11,1,0))","v":0},null,{"$f":"IF(QE11=\"\",0,IF(QF11<=$B11,1,0))","v":0},null,{"$f":"IF(QG11=\"\",0,IF(QH11<=$B11,1,0))","v":0},null,{"$f":"IF(QI11=\"\",0,IF(QJ11<=$B11,1,0))","v":0},null,{"$f":"IF(QK11=\"\",0,IF(QL11<=$B11,1,0))","v":0},null,{"$f":"IF(QM11=\"\",0,IF(QN11<=$B11,1,0))","v":0},null,{"$f":"IF(QO11=\"\",0,IF(QP11<=$B11,1,0))","v":0},null,{"$f":"IF(QQ11=\"\",0,IF(QR11<=$B11,1,0))","v":0},null,{"$f":"IF(QS11=\"\",0,IF(QT11<=$B11,1,0))","v":0},null,{"$f":"IF(QU11=\"\",0,IF(QV11<=$B11,1,0))","v":0},null,{"$f":"IF(QW11=\"\",0,IF(QX11<=$B11,1,0))","v":0},null,{"$f":"IF(QY11=\"\",0,IF(QZ11<=$B11,1,0))","v":0},null,{"$f":"IF(RA11=\"\",0,IF(RB11<=$B11,1,0))","v":0},null,{"$f":"IF(RC11=\"\",0,IF(RD11<=$B11,1,0))","v":0},null,{"$f":"IF(RE11=\"\",0,IF(RF11<=$B11,1,0))","v":0},null,{"$f":"IF(RG11=\"\",0,IF(RH11<=$B11,1,0))","v":0},null,{"$f":"IF(RI11=\"\",0,IF(RJ11<=$B11,1,0))","v":0},null,{"$f":"IF(RK11=\"\",0,IF(RL11<=$B11,1,0))","v":0},null,{"$f":"IF(RM11=\"\",0,IF(RN11<=$B11,1,0))","v":0},null,{"$f":"IF(RO11=\"\",0,IF(RP11<=$B11,1,0))","v":0},null,{"$f":"IF(RQ11=\"\",0,IF(RR11<=$B11,1,0))","v":0},null,{"$f":"IF(RS11=\"\",0,IF(RT11<=$B11,1,0))","v":0},null,{"$f":"IF(RU11=\"\",0,IF(RV11<=$B11,1,0))","v":0},null,{"$f":"IF(RW11=\"\",0,IF(RX11<=$B11,1,0))","v":0},null,{"$f":"IF(RY11=\"\",0,IF(RZ11<=$B11,1,0))","v":0},null,{"$f":"IF(SA11=\"\",0,IF(SB11<=$B11,1,0))","v":0},null,{"$f":"IF(SC11=\"\",0,IF(SD11<=$B11,1,0))","v":0},null,{"$f":"IF(SE11=\"\",0,IF(SF11<=$B11,1,0))","v":0},null,{"$f":"IF(SG11=\"\",0,IF(SH11<=$B11,1,0))","v":0},null,{"$f":"IF(SI11=\"\",0,IF(SJ11<=$B11,1,0))","v":0},null,{"$f":"IF(SK11=\"\",0,IF(SL11<=$B11,1,0))","v":0},null,{"$f":"IF(SM11=\"\",0,IF(SN11<=$B11,1,0))","v":0},null,{"$f":"IF(SO11=\"\",0,IF(SP11<=$B11,1,0))","v":0},null,{"$f":"IF(SQ11=\"\",0,IF(SR11<=$B11,1,0))","v":0},null,{"$f":"IF(SS11=\"\",0,IF(ST11<=$B11,1,0))","v":0},null,{"$f":"IF(SU11=\"\",0,IF(SV11<=$B11,1,0))","v":0},null,{"$f":"IF(SW11=\"\",0,IF(SX11<=$B11,1,0))","v":0},null,{"$f":"IF(SY11=\"\",0,IF(SZ11<=$B11,1,0))","v":0},null,{"$f":"IF(TA11=\"\",0,IF(TB11<=$B11,1,0))","v":0},null,{"$f":"IF(TC11=\"\",0,IF(TD11<=$B11,1,0))","v":0},null,{"$f":"IF(TE11=\"\",0,IF(TF11<=$B11,1,0))","v":0},null,{"$f":"IF(TG11=\"\",0,IF(TH11<=$B11,1,0))","v":0},null,{"$f":"IF(TI11=\"\",0,IF(TJ11<=$B11,1,0))","v":0},null,{"$f":"IF(TK11=\"\",0,IF(TL11<=$B11,1,0))","v":0},null,{"$f":"IF(TM11=\"\",0,IF(TN11<=$B11,1,0))","v":0},null,{"$f":"IF(TO11=\"\",0,IF(TP11<=$B11,1,0))","v":0},null,{"$f":"IF(TQ11=\"\",0,IF(TR11<=$B11,1,0))","v":0},null,{"$f":"IF(TS11=\"\",0,IF(TT11<=$B11,1,0))","v":0},null,{"$f":"IF(TU11=\"\",0,IF(TV11<=$B11,1,0))","v":0},null,{"$f":"IF(TW11=\"\",0,IF(TX11<=$B11,1,0))","v":0},null,{"$f":"IF(TY11=\"\",0,IF(TZ11<=$B11,1,0))","v":0},null,{"$f":"IF(UA11=\"\",0,IF(UB11<=$B11,1,0))","v":0},null,{"$f":"IF(UC11=\"\",0,IF(UD11<=$B11,1,0))","v":0},null,{"$f":"IF(UE11=\"\",0,IF(UF11<=$B11,1,0))","v":0},null,{"$f":"IF(UG11=\"\",0,IF(UH11<=$B11,1,0))","v":0},null,{"$f":"IF(UI11=\"\",0,IF(UJ11<=$B11,1,0))","v":0},null,{"$f":"IF(UK11=\"\",0,IF(UL11<=$B11,1,0))","v":0},null,{"$f":"IF(UM11=\"\",0,IF(UN11<=$B11,1,0))","v":0},null,{"$f":"IF(UO11=\"\",0,IF(UP11<=$B11,1,0))","v":0},null,{"$f":"IF(UQ11=\"\",0,IF(UR11<=$B11,1,0))","v":0},null,{"$f":"IF(US11=\"\",0,IF(UT11<=$B11,1,0))","v":0},null,{"$f":"IF(UU11=\"\",0,IF(UV11<=$B11,1,0))","v":0},null,{"$f":"IF(UW11=\"\",0,IF(UX11<=$B11,1,0))","v":0},null,{"$f":"IF(UY11=\"\",0,IF(UZ11<=$B11,1,0))","v":0},null,{"$f":"IF(VA11=\"\",0,IF(VB11<=$B11,1,0))","v":0},null,{"$f":"IF(VC11=\"\",0,IF(VD11<=$B11,1,0))","v":0},null,{"$f":"IF(VE11=\"\",0,IF(VF11<=$B11,1,0))","v":0},null,{"$f":"IF(VG11=\"\",0,IF(VH11<=$B11,1,0))","v":0},null,{"$f":"IF(VI11=\"\",0,IF(VJ11<=$B11,1,0))","v":0},null,{"$f":"IF(VK11=\"\",0,IF(VL11<=$B11,1,0))","v":0},null,{"$f":"IF(VM11=\"\",0,IF(VN11<=$B11,1,0))","v":0},null,{"$f":"IF(VO11=\"\",0,IF(VP11<=$B11,1,0))","v":0},null,{"$f":"IF(VQ11=\"\",0,IF(VR11<=$B11,1,0))","v":0},null,{"$f":"IF(VS11=\"\",0,IF(VT11<=$B11,1,0))","v":0},null,{"$f":"IF(VU11=\"\",0,IF(VV11<=$B11,1,0))","v":0},null,{"$f":"IF(VW11=\"\",0,IF(VX11<=$B11,1,0))","v":0},null,{"$f":"IF(VY11=\"\",0,IF(VZ11<=$B11,1,0))","v":0},null,{"$f":"IF(WA11=\"\",0,IF(WB11<=$B11,1,0))","v":0},null,{"$f":"IF(WC11=\"\",0,IF(WD11<=$B11,1,0))","v":0},null,{"$f":"IF(WE11=\"\",0,IF(WF11<=$B11,1,0))","v":0},null,{"$f":"IF(WG11=\"\",0,IF(WH11<=$B11,1,0))","v":0},null,{"$f":"IF(WI11=\"\",0,IF(WJ11<=$B11,1,0))","v":0},null,{"$f":"IF(WK11=\"\",0,IF(WL11<=$B11,1,0))","v":0},null,{"$f":"IF(WM11=\"\",0,IF(WN11<=$B11,1,0))","v":0},null,{"$f":"IF(WO11=\"\",0,IF(WP11<=$B11,1,0))","v":0},null,{"$f":"IF(WQ11=\"\",0,IF(WR11<=$B11,1,0))","v":0},null,{"$f":"IF(WS11=\"\",0,IF(WT11<=$B11,1,0))","v":0},null,{"$f":"IF(WU11=\"\",0,IF(WV11<=$B11,1,0))","v":0},null,{"$f":"IF(WW11=\"\",0,IF(WX11<=$B11,1,0))","v":0},null,{"$f":"IF(WY11=\"\",0,IF(WZ11<=$B11,1,0))","v":0},null,{"$f":"IF(XA11=\"\",0,IF(XB11<=$B11,1,0))","v":0},null,{"$f":"IF(XC11=\"\",0,IF(XD11<=$B11,1,0))","v":0},null,{"$f":"IF(XE11=\"\",0,IF(XF11<=$B11,1,0))","v":0},null,{"$f":"IF(XG11=\"\",0,IF(XH11<=$B11,1,0))","v":0},null,{"$f":"IF(XI11=\"\",0,IF(XJ11<=$B11,1,0))","v":0},null,{"$f":"IF(XK11=\"\",0,IF(XL11<=$B11,1,0))","v":0},null,{"$f":"IF(XM11=\"\",0,IF(XN11<=$B11,1,0))","v":0},null,{"$f":"IF(XO11=\"\",0,IF(XP11<=$B11,1,0))","v":0},null,{"$f":"IF(XQ11=\"\",0,IF(XR11<=$B11,1,0))","v":0},null,{"$f":"IF(XS11=\"\",0,IF(XT11<=$B11,1,0))","v":0},null,{"$f":"IF(XU11=\"\",0,IF(XV11<=$B11,1,0))","v":0},null,{"$f":"IF(XW11=\"\",0,IF(XX11<=$B11,1,0))","v":0}]
[null,null,null,{"$f":"IF(C12=\"\",0,IF(D12<=$B12,1,0))","v":1},null,{"$f":"IF(E12=\"\",0,IF(F12<=$B12,1,0))","v":1},null,{"$f":"IF(G12=\"\",0,IF(H12<=$B12,1,0))","v":1},null,{"$f":"IF(I12=\"\",0,IF(J12<=$B12,1,0))","v":1},null,{"$f":"IF(K12=\"\",0,IF(L12<=$B12,1,0))","v":1},null,{"$f":"IF(M12=\"\",0,IF(N12<=$B12,1,0))","v":1},null,{"$f":"IF(O12=\"\",0,IF(P12<=$B12,1,0))","v":1},null,{"$f":"IF(Q12=\"\",0,IF(R12<=$B12,1,0))","v":1},null,{"$f":"IF(S12=\"\",0,IF(T12<=$B12,1,0))","v":1},null,{"$f":"IF(U12=\"\",0,IF(V12<=$B12,1,0))","v":1},null,{"$f":"IF(W12=\"\",0,IF(X12<=$B12,1,0))","v":1},null,{"$f":"IF(Y12=\"\",0,IF(Z12<=$B12,1,0))","v":1},null,{"$f":"IF(AA12=\"\",0,IF(AB12<=$B12,1,0))","v":1},null,{"$f":"IF(AC12=\"\",0,IF(AD12<=$B12,1,0))","v":1},null,{"$f":"IF(AE12=\"\",0,IF(AF12<=$B12,1,0))","v":1},null,null,null,{"$f":"IF(AI12=\"\",0,IF(AJ12<=$B12,1,0))","v":1},null,{"$f":"IF(AK12=\"\",0,IF(AL12<=$B12,1,0))","v":1},null,{"$f":"IF(AM12=\"\",0,IF(AN12<=$B12,1,0))","v":1},null,{"$f":"IF(AO12=\"\",0,IF(AP12<=$B12,1,0))","v":1},null,{"$f":"IF(AQ12=\"\",0,IF(AR12<=$B12,1,0))","v":1},null,{"$f":"IF(AS12=\"\",0,IF(AT12<=$B12,1,0))","v":1},null,{"$f":"IF(AU12=\"\",0,IF(AV12<=$B12,1,0))","v":1},null,{"$f":"IF(AW12=\"\",0,IF(AX12<=$B12,1,0))","v":1},null,{"$f":"IF(AY12=\"\",0,IF(AZ12<=$B12,1,0))","v":1},null,{"$f":"IF(BA12=\"\",0,IF(BB12<=$B12,1,0))","v":1},null,{"$f":"IF(BC12=\"\",0,IF(BD12<=$B12,1,0))","v":1},null,{"$f":"IF(BE12=\"\",0,IF(BF12<=$B12,1,0))","v":1},null,{"$f":"IF(BG12=\"\",0,IF(BH12<=$B12,1,0))","v":1},null,{"$f":"IF(BI12=\"\",0,IF(BJ12<=$B12,1,0))","v":1},null,{"$f":"IF(BK12=\"\",0,IF(BL12<=$B12,1,0))","v":1},null,{"$f":"IF(BM12=\"\",0,IF(BN12<=$B12,1,0))","v":1},null,{"$f":"IF(BO12=\"\",0,IF(BP12<=$B12,1,0))","v":1},null,{"$f":"IF(BQ12=\"\",0,IF(BR12<=$B12,1,0))","v":1},null,{"$f":"IF(BS12=\"\",0,IF(BT12<=$B12,1,0))","v":1},null,{"$f":"IF(BU12=\"\",0,IF(BV12<=$B12,1,0))","v":1},null,{"$f":"IF(BW12=\"\",0,IF(BX12<=$B12,1,0))","v":1},null,{"$f":"IF(BY12=\"\",0,IF(BZ12<=$B12,1,0))","v":1},null,{"$f":"IF(CA12=\"\",0,IF(CB12<=$B12,1,0))","v":1},null,{"$f":"IF(CC12=\"\",0,IF(CD12<=$B12,1,0))","v":1},null,{"$f":"IF(CE12=\"\",0,IF(CF12<=$B12,1,0))","v":1},null,{"$f":"IF(CG12=\"\",0,IF(CH12<=$B12,1,0))","v":1},null,{"$f":"IF(CI12=\"\",0,IF(CJ12<=$B12,1,0))","v":1},null,{"$f":"IF(CK12=\"\",0,IF(CL12<=$B12,1,0))","v":1},null,{"$f":"IF(CM12=\"\",0,IF(CN12<=$B12,1,0))","v":1},null,{"$f":"IF(CO12=\"\",0,IF(CP12<=$B12,1,0))","v":1},null,{"$f":"IF(CQ12=\"\",0,IF(CR12<=$B12,1,0))","v":1},null,{"$f":"IF(CS12=\"\",0,IF(CT12<=$B12,1,0))","v":1},null,{"$f":"IF(CU12=\"\",0,IF(CV12<=$B12,1,0))","v":1},null,{"$f":"IF(CW12=\"\",0,IF(CX12<=$B12,1,0))","v":1},null,{"$f":"IF(CY12=\"\",0,IF(CZ12<=$B12,1,0))","v":1},null,{"$f":"IF(DA12=\"\",0,IF(DB12<=$B12,1,0))","v":1},null,{"$f":"IF(DC12=\"\",0,IF(DD12<=$B12,1,0))","v":1},null,{"$f":"IF(DE12=\"\",0,IF(DF12<=$B12,1,0))","v":1},null,{"$f":"IF(DG12=\"\",0,IF(DH12<=$B12,1,0))","v":1},null,{"$f":"IF(DI12=\"\",0,IF(DJ12<=$B12,1,0))","v":1},null,{"$f":"IF(DK12=\"\",0,IF(DL12<=$B12,1,0))","v":1},null,{"$f":"IF(DM12=\"\",0,IF(DN12<=$B12,1,0))","v":1},null,{"$f":"IF(DO12=\"\",0,IF(DP12<=$B12,1,0))","v":1},null,{"$f":"IF(DQ12=\"\",0,IF(DR12<=$B12,1,0))","v":1},null,{"$f":"IF(DS12=\"\",0,IF(DT12<=$B12,1,0))","v":1},null,{"$f":"IF(DU12=\"\",0,IF(DV12<=$B12,1,0))","v":1},null,{"$f":"IF(DW12=\"\",0,IF(DX12<=$B12,1,0))","v":1},null,{"$f":"IF(DY12=\"\",0,IF(DZ12<=$B12,1,0))","v":1},null,{"$f":"IF(EA12=\"\",0,IF(EB12<=$B12,1,0))","v":1},null,{"$f":"IF(EC12=\"\",0,IF(ED12<=$B12,1,0))","v":1},null,{"$f":"IF(EE12=\"\",0,IF(EF12<=$B12,1,0))","v":1},null,{"$f":"IF(EG12=\"\",0,IF(EH12<=$B12,1,0))","v":1},null,{"$f":"IF(EI12=\"\",0,IF(EJ12<=$B12,1,0))","v":1},null,{"$f":"IF(EK12=\"\",0,IF(EL12<=$B12,1,0))","v":1},null,{"$f":"IF(EM12=\"\",0,IF(EN12<=$B12,1,0))","v":1},null,{"$f":"IF(EO12=\"\",0,IF(EP12<=$B12,1,0))","v":1},null,{"$f":"IF(EQ12=\"\",0,IF(ER12<=$B12,1,0))","v":1},null,{"$f":"IF(ES12=\"\",0,IF(ET12<=$B12,1,0))","v":1},null,{"$f":"IF(EU12=\"\",0,IF(EV12<=$B12,1,0))","v":1},null,{"$f":"IF(EW12=\"\",0,IF(EX12<=$B12,1,0))","v":1},null,{"$f":"IF(EY12=\"\",0,IF(EZ12<=$B12,1,0))","v":1},null,{"$f":"IF(FA12=\"\",0,IF(FB12<=$B12,1,0))","v":1},null,{"$f":"IF(FC12=\"\",0,IF(FD12<=$B12,1,0))","v":1},null,{"$f":"IF(FE12=\"\",0,IF(FF12<=$B12,1,0))","v":1},null,{"$f":"IF(FG12=\"\",0,IF(FH12<=$B12,1,0))","v":1},null,{"$f":"IF(FI12=\"\",0,IF(FJ12<=$B12,1,0))","v":1},null,{"$f":"IF(FK12=\"\",0,IF(FL12<=$B12,1,0))","v":1},null,{"$f":"IF(FM12=\"\",0,IF(FN12<=$B12,1,0))","v":1},null,{"$f":"IF(FO12=\"\",0,IF(FP12<=$B12,1,0))","v":1},null,{"$f":"IF(FQ12=\"\",0,IF(FR12<=$B12,1,0))","v":1},null,{"$f":"IF(FS12=\"\",0,IF(FT12<=$B12,1,0))","v":1},null,{"$f":"IF(FU12=\"\",0,IF(FV12<=$B12,1,0))","v":1},null,{"$f":"IF(FW12=\"\",0,IF(FX12<=$B12,1,0))","v":1},null,{"$f":"IF(FY12=\"\",0,IF(FZ12<=$B12,1,0))","v":1},null,{"$f":"IF(GA12=\"\",0,IF(GB12<=$B12,1,0))","v":1},null,{"$f":"IF(GC12=\"\",0,IF(GD12<=$B12,1,0))","v":1},null,{"$f":"IF(GE12=\"\",0,IF(GF12<=$B12,1,0))","v":1},null,{"$f":"IF(GG12=\"\",0,IF(GH12<=$B12,1,0))","v":1},null,{"$f":"IF(GI12=\"\",0,IF(GJ12<=$B12,1,0))","v":1},null,{"$f":"IF(GK12=\"\",0,IF(GL12<=$B12,1,0))","v":1},null,{"$f":"IF(GM12=\"\",0,IF(GN12<=$B12,1,0))","v":1},null,{"$f":"IF(GO12=\"\",0,IF(GP12<=$B12,1,0))","v":1},null,{"$f":"IF(GQ12=\"\",0,IF(GR12<=$B12,1,0))","v":1},null,{"$f":"IF(GS12=\"\",0,IF(GT12<=$B12,1,0))","v":1},null,{"$f":"IF(GU12=\"\",0,IF(GV12<=$B12,1,0))","v":1},null,{"$f":"IF(GW12=\"\",0,IF(GX12<=$B12,1,0))","v":1},null,{"$f":"IF(GY12=\"\",0,IF(GZ12<=$B12,1,0))","v":1},null,{"$f":"IF(HA12=\"\",0,IF(HB12<=$B12,1,0))","v":1},null,{"$f":"IF(HC12=\"\",0,IF(HD12<=$B12,1,0))","v":1},null,{"$f":"IF(HE12=\"\",0,IF(HF12<=$B12,1,0))","v":1},null,{"$f":"IF(HG12=\"\",0,IF(HH12<=$B12,1,0))","v":1},null,{"$f":"IF(HI12=\"\",0,IF(HJ12<=$B12,1,0))","v":1},null,{"$f":"IF(HK12=\"\",0,IF(HL12<=$B12,1,0))","v":1},null,{"$f":"IF(HM12=\"\",0,IF(HN12<=$B12,1,0))","v":1},null,{"$f":"IF(HO12=\"\",0,IF(HP12<=$B12,1,0))","v":1},null,{"$f":"IF(HQ12=\"\",0,IF(HR12<=$B12,1,0))","v":1},null,{"$f":"IF(HS12=\"\",0,IF(HT12<=$B12,1,0))","v":1},null,{"$f":"IF(HU12=\"\",0,IF(HV12<=$B12,1,0))","v":1},null,{"$f":"IF(HW12=\"\",0,IF(HX12<=$B12,1,0))","v":1},null,{"$f":"IF(HY12=\"\",0,IF(HZ12<=$B12,1,0))","v":1},null,{"$f":"IF(IA12=\"\",0,IF(IB12<=$B12,1,0))","v":1},null,{"$f":"IF(IC12=\"\",0,IF(ID12<=$B12,1,0))","v":1},null,{"$f":"IF(IE12=\"\",0,IF(IF12<=$B12,1,0))","v":1},null,{"$f":"IF(IG12=\"\",0,IF(IH12<=$B12,1,0))","v":1},null,{"$f":"IF(II12=\"\",0,IF(IJ12<=$B12,1,0))","v":1},null,{"$f":"IF(IK12=\"\",0,IF(IL12<=$B12,1,0))","v":1},null,{"$f":"IF(IM12=\"\",0,IF(IN12<=$B12,1,0))","v":1},null,{"$f":"IF(IO12=\"\",0,IF(IP12<=$B12,1,0))","v":1},null,{"$f":"IF(IQ12=\"\",0,IF(IR12<=$B12,1,0))","v":1},null,{"$f":"IF(IS12=\"\",0,IF(IT12<=$B12,1,0))","v":1},null,{"$f":"IF(IU12=\"\",0,IF(IV12<=$B12,1,0))","v":1},null,{"$f":"IF(IW12=\"\",0,IF(IX12<=$B12,1,0))","v":1},null,{"$f":"IF(IY12=\"\",0,IF(IZ12<=$B12,1,0))","v":1},null,{"$f":"IF(JA12=\"\",0,IF(JB12<=$B12,1,0))","v":1},null,{"$f":"IF(JC12=\"\",0,IF(JD12<=$B12,1,0))","v":1},null,{"$f":"IF(JE12=\"\",0,IF(JF12<=$B12,1,0))","v":1},null,{"$f":"IF(JG12=\"\",0,IF(JH12<=$B12,1,0))","v":1},null,{"$f":"IF(JI12=\"\",0,IF(JJ12<=$B12,1,0))","v":1},null,{"$f":"IF(JK12=\"\",0,IF(JL12<=$B12,1,0))","v":1},null,{"$f":"IF(JM12=\"\",0,IF(JN12<=$B12,1,0))","v":1},null,{"$f":"IF(JO12=\"\",0,IF(JP12<=$B12,1,0))","v":1},null,{"$f":"IF(JQ12=\"\",0,IF(JR12<=$B12,1,0))","v":1},null,{"$f":"IF(JS12=\"\",0,IF(JT12<=$B12,1,0))","v":1},null,{"$f":"IF(JU12=\"\",0,IF(JV12<=$B12,1,0))","v":1},null,{"$f":"IF(JW12=\"\",0,IF(JX12<=$B12,1,0))","v":1},null,{"$f":"IF(JY12=\"\",0,IF(JZ12<=$B12,1,0))","v":1},null,{"$f":"IF(KA12=\"\",0,IF(KB12<=$B12,1,0))","v":1},null,{"$f":"IF(KC12=\"\",0,IF(KD12<=$B12,1,0))","v":1},null,{"$f":"IF(KE12=\"\",0,IF(KF12<=$B12,1,0))","v":1},null,{"$f":"IF(KG12=\"\",0,IF(KH12<=$B12,1,0))","v":1},null,{"$f":"IF(KI12=\"\",0,IF(KJ12<=$B12,1,0))","v":1},null,{"$f":"IF(KK12=\"\",0,IF(KL12<=$B12,1,0))","v":1},null,{"$f":"IF(KM12=\"\",0,IF(KN12<=$B12,1,0))","v":1},null,{"$f":"IF(KO12=\"\",0,IF(KP12<=$B12,1,0))","v":1},null,{"$f":"IF(KQ12=\"\",0,IF(KR12<=$B12,1,0))","v":1},null,{"$f":"IF(KS12=\"\",0,IF(KT12<=$B12,1,0))","v":1},null,{"$f":"IF(KU12=\"\",0,IF(KV12<=$B12,1,0))","v":1},null,{"$f":"IF(KW12=\"\",0,IF(KX12<=$B12,1,0))","v":1},null,{"$f":"IF(KY12=\"\",0,IF(KZ12<=$B12,1,0))","v":1},null,{"$f":"IF(LA12=\"\",0,IF(LB12<=$B12,1,0))","v":1},null,{"$f":"IF(LC12=\"\",0,IF(LD12<=$B12,1,0))","v":1},null,{"$f":"IF(LE12=\"\",0,IF(LF12<=$B12,1,0))","v":1},null,{"$f":"IF(LG12=\"\",0,IF(LH12<=$B12,1,0))","v":1},null,{"$f":"IF(LI12=\"\",0,IF(LJ12<=$B12,1,0))","v":1},null,{"$f":"IF(LK12=\"\",0,IF(LL12<=$B12,1,0))","v":1},null,{"$f":"IF(LM12=\"\",0,IF(LN12<=$B12,1,0))","v":1},null,{"$f":"IF(LO12=\"\",0,IF(LP12<=$B12,1,0))","v":1},null,{"$f":"IF(LQ12=\"\",0,IF(LR12<=$B12,1,0))","v":1},null,{"$f":"IF(LS12=\"\",0,IF(LT12<=$B12,1,0))","v":1},null,{"$f":"IF(LU12=\"\",0,IF(LV12<=$B12,1,0))","v":1},null,{"$f":"IF(LW12=\"\",0,IF(LX12<=$B12,1,0))","v":1},null,{"$f":"IF(LY12=\"\",0,IF(LZ12<=$B12,1,0))","v":1},null,{"$f":"IF(MA12=\"\",0,IF(MB12<=$B12,1,0))","v":1},null,{"$f":"IF(MC12=\"\",0,IF(MD12<=$B12,1,0))","v":1},null,{"$f":"IF(ME12=\"\",0,IF(MF12<=$B12,1,0))","v":1},null,{"$f":"IF(MG12=\"\",0,IF(MH12<=$B12,1,0))","v":1},null,{"$f":"IF(MI12=\"\",0,IF(MJ12<=$B12,1,0))","v":1},null,{"$f":"IF(MK12=\"\",0,IF(ML12<=$B12,1,0))","v":1},null,{"$f":"IF(MM12=\"\",0,IF(MN12<=$B12,1,0))","v":1},null,{"$f":"IF(MO12=\"\",0,IF(MP12<=$B12,1,0))","v":1},null,{"$f":"IF(MQ12=\"\",0,IF(MR12<=$B12,1,0))","v":1},null,{"$f":"IF(MS12=\"\",0,IF(MT12<=$B12,1,0))","v":1},null,{"$f":"IF(MU12=\"\",0,IF(MV12<=$B12,1,0))","v":1},null,{"$f":"IF(MW12=\"\",0,IF(MX12<=$B12,1,0))","v":1},null,{"$f":"IF(MY12=\"\",0,IF(MZ12<=$B12,1,0))","v":1},null,{"$f":"IF(NA12=\"\",0,IF(NB12<=$B12,1,0))","v":1},null,{"$f":"IF(NC12=\"\",0,IF(ND12<=$B12,1,0))","v":1},null,{"$f":"IF(NE12=\"\",0,IF(NF12<=$B12,1,0))","v":1},null,{"$f":"IF(NG12=\"\",0,IF(NH12<=$B12,1,0))","v":1},null,{"$f":"IF(NI12=\"\",0,IF(NJ12<=$B12,1,0))","v":1},null,{"$f":"IF(NK12=\"\",0,IF(NL12<=$B12,1,0))","v":1},null,{"$f":"IF(NM12=\"\",0,IF(NN12<=$B12,1,0))","v":1},null,{"$f":"IF(NO12=\"\",0,IF(NP12<=$B12,1,0))","v":1},null,{"$f":"IF(NQ12=\"\",0,IF(NR12<=$B12,1,0))","v":1},null,{"$f":"IF(NS12=\"\",0,IF(NT12<=$B12,1,0))","v":1},null,{"$f":"IF(NU12=\"\",0,IF(NV12<=$B12,1,0))","v":1},null,{"$f":"IF(NW12=\"\",0,IF(NX12<=$B12,1,0))","v":1},null,{"$f":"IF(NY12=\"\",0,IF(NZ12<=$B12,1,0))","v":1},null,{"$f":"IF(OA12=\"\",0,IF(OB12<=$B12,1,0))","v":1},null,{"$f":"IF(OC12=\"\",0,IF(OD12<=$B12,1,0))","v":1},null,{"$f":"IF(OE12=\"\",0,IF(OF12<=$B12,1,0))","v":1},null,{"$f":"IF(OG12=\"\",0,IF(OH12<=$B12,1,0))","v":1},null,{"$f":"IF(OI12=\"\",0,IF(OJ12<=$B12,1,0))","v":1},null,{"$f":"IF(OK12=\"\",0,IF(OL12<=$B12,1,0))","v":1},null,{"$f":"IF(OM12=\"\",0,IF(ON12<=$B12,1,0))","v":1},null,{"$f":"IF(OO12=\"\",0,IF(OP12<=$B12,1,0))","v":1},null,{"$f":"IF(OQ12=\"\",0,IF(OR12<=$B12,1,0))","v":1},null,{"$f":"IF(OS12=\"\",0,IF(OT12<=$B12,1,0))","v":1},null,{"$f":"IF(OU12=\"\",0,IF(OV12<=$B12,1,0))","v":1},null,{"$f":"IF(OW12=\"\",0,IF(OX12<=$B12,1,0))","v":1},null,{"$f":"IF(OY12=\"\",0,IF(OZ12<=$B12,1,0))","v":1},null,{"$f":"IF(PA12=\"\",0,IF(PB12<=$B12,1,0))","v":1},null,{"$f":"IF(PC12=\"\",0,IF(PD12<=$B12,1,0))","v":1},null,{"$f":"IF(PE12=\"\",0,IF(PF12<=$B12,1,0))","v":1},null,{"$f":"IF(PG12=\"\",0,IF(PH12<=$B12,1,0))","v":1},null,{"$f":"IF(PI12=\"\",0,IF(PJ12<=$B12,1,0))","v":1},null,{"$f":"IF(PK12=\"\",0,IF(PL12<=$B12,1,0))","v":1},null,{"$f":"IF(PM12=\"\",0,IF(PN12<=$B12,1,0))","v":1},null,{"$f":"IF(PO12=\"\",0,IF(PP12<=$B12,1,0))","v":1},null,{"$f":"IF(PQ12=\"\",0,IF(PR12<=$B12,1,0))","v":1},null,{"$f":"IF(PS12=\"\",0,IF(PT12<=$B12,1,0))","v":1},null,{"$f":"IF(PU12=\"\",0,IF(PV12<=$B12,1,0))","v":1},null,{"$f":"IF(PW12=\"\",0,IF(PX12<=$B12,1,0))","v":1},null,{"$f":"IF(PY12=\"\",0,IF(PZ12<=$B12,1,0))","v":1},null,{"$f":"IF(QA12=\"\",0,IF(QB12<=$B12,1,0))","v":1},null,{"$f":"IF(QC12=\"\",0,IF(QD12<=$B12,1,0))","v":1},null,{"$f":"IF(QE12=\"\",0,IF(QF12<=$B12,1,0))","v":1},null,{"$f":"IF(QG12=\"\",0,IF(QH12<=$B12,1,0))","v":1},null,{"$f":"IF(QI12=\"\",0,IF(QJ12<=$B12,1,0))","v":1},null,{"$f":"IF(QK12=\"\",0,IF(QL12<=$B12,1,0))","v":1},null,{"$f":"IF(QM12=\"\",0,IF(QN12<=$B12,1,0))","v":1},null,{"$f":"IF(QO12=\"\",0,IF(QP12<=$B12,1,0))","v":1},null,{"$f":"IF(QQ12=\"\",0,IF(QR12<=$B12,1,0))","v":1},null,{"$f":"IF(QS12=\"\",0,IF(QT12<=$B12,1,0))","v":1},null,{"$f":"IF(QU12=\"\",0,IF(QV12<=$B12,1,0))","v":1},null,{"$f":"IF(QW12=\"\",0,IF(QX12<=$B12,1,0))","v":1},null,{"$f":"IF(QY12=\"\",0,IF(QZ12<=$B12,1,0))","v":1},null,{"$f":"IF(RA12=\"\",0,IF(RB12<=$B12,1,0))","v":1},null,{"$f":"IF(RC12=\"\",0,IF(RD12<=$B12,1,0))","v":1},null,{"$f":"IF(RE12=\"\",0,IF(RF12<=$B12,1,0))","v":1},null,{"$f":"IF(RG12=\"\",0,IF(RH12<=$B12,1,0))","v":1},null,{"$f":"IF(RI12=\"\",0,IF(RJ12<=$B12,1,0))","v":1},null,{"$f":"IF(RK12=\"\",0,IF(RL12<=$B12,1,0))","v":1},null,{"$f":"IF(RM12=\"\",0,IF(RN12<=$B12,1,0))","v":1},null,{"$f":"IF(RO12=\"\",0,IF(RP12<=$B12,1,0))","v":1},null,{"$f":"IF(RQ12=\"\",0,IF(RR12<=$B12,1,0))","v":1},null,{"$f":"IF(RS12=\"\",0,IF(RT12<=$B12,1,0))","v":1},null,{"$f":"IF(RU12=\"\",0,IF(RV12<=$B12,1,0))","v":1},null,{"$f":"IF(RW12=\"\",0,IF(RX12<=$B12,1,0))","v":1},null,{"$f":"IF(RY12=\"\",0,IF(RZ12<=$B12,1,0))","v":1},null,{"$f":"IF(SA12=\"\",0,IF(SB12<=$B12,1,0))","v":1},null,{"$f":"IF(SC12=\"\",0,IF(SD12<=$B12,1,0))","v":1},null,{"$f":"IF(SE12=\"\",0,IF(SF12<=$B12,1,0))","v":1},null,{"$f":"IF(SG12=\"\",0,IF(SH12<=$B12,1,0))","v":1},null,{"$f":"IF(SI12=\"\",0,IF(SJ12<=$B12,1,0))","v":1},null,{"$f":"IF(SK12=\"\",0,IF(SL12<=$B12,1,0))","v":1},null,{"$f":"IF(SM12=\"\",0,IF(SN12<=$B12,1,0))","v":1},null,{"$f":"IF(SO12=\"\",0,IF(SP12<=$B12,1,0))","v":1},null,{"$f":"IF(SQ12=\"\",0,IF(SR12<=$B12,1,0))","v":1},null,{"$f":"IF(SS12=\"\",0,IF(ST12<=$B12,1,0))","v":1},null,{"$f":"IF(SU12=\"\",0,IF(SV12<=$B12,1,0))","v":1},null,{"$f":"IF(SW12=\"\",0,IF(SX12<=$B12,1,0))","v":1},null,{"$f":"IF(SY12=\"\",0,IF(SZ12<=$B12,1,0))","v":1},null,{"$f":"IF(TA12=\"\",0,IF(TB12<=$B12,1,0))","v":1},null,{"$f":"IF(TC12=\"\",0,IF(TD12<=$B12,1,0))","v":1},null,{"$f":"IF(TE12=\"\",0,IF(TF12<=$B12,1,0))","v":1},null,{"$f":"IF(TG12=\"\",0,IF(TH12<=$B12,1,0))","v":1},null,{"$f":"IF(TI12=\"\",0,IF(TJ12<=$B12,1,0))","v":1},null,{"$f":"IF(TK12=\"\",0,IF(TL12<=$B12,1,0))","v":1},null,{"$f":"IF(TM12=\"\",0,IF(TN12<=$B12,1,0))","v":1},null,{"$f":"IF(TO12=\"\",0,IF(TP12<=$B12,1,0))","v":1},null,{"$f":"IF(TQ12=\"\",0,IF(TR12<=$B12,1,0))","v":1},null,{"$f":"IF(TS12=\"\",0,IF(TT12<=$B12,1,0))","v":1},null,{"$f":"IF(TU12=\"\",0,IF(TV12<=$B12,1,0))","v":1},null,{"$f":"IF(TW12=\"\",0,IF(TX12<=$B12,1,0))","v":1},null,{"$f":"IF(TY12=\"\",0,IF(TZ12<=$B12,1,0))","v":1},null,{"$f":"IF(UA12=\"\",0,IF(UB12<=$B12,1,0))","v":1},null,{"$f":"IF(UC12=\"\",0,IF(UD12<=$B12,1,0))","v":1},null,{"$f":"IF(UE12=\"\",0,IF(UF12<=$B12,1,0))","v":1},null,{"$f":"IF(UG12=\"\",0,IF(UH12<=$B12,1,0))","v":1},null,{"$f":"IF(UI12=\"\",0,IF(UJ12<=$B12,1,0))","v":1},null,{"$f":"IF(UK12=\"\",0,IF(UL12<=$B12,1,0))","v":1},null,{"$f":"IF(UM12=\"\",0,IF(UN12<=$B12,1,0))","v":1},null,{"$f":"IF(UO12=\"\",0,IF(UP12<=$B12,1,0))","v":1},null,{"$f":"IF(UQ12=\"\",0,IF(UR12<=$B12,1,0))","v":1},null,{"$f":"IF(US12=\"\",0,IF(UT12<=$B12,1,0))","v":1},null,{"$f":"IF(UU12=\"\",0,IF(UV12<=$B12,1,0))","v":1},null,{"$f":"IF(UW12=\"\",0,IF(UX12<=$B12,1,0))","v":1},null,{"$f":"IF(UY12=\"\",0,IF(UZ12<=$B12,1,0))","v":1},null,{"$f":"IF(VA12=\"\",0,IF(VB12<=$B12,1,0))","v":1},null,{"$f":"IF(VC12=\"\",0,IF(VD12<=$B12,1,0))","v":1},null,{"$f":"IF(VE12=\"\",0,IF(VF12<=$B12,1,0))","v":0},null,{"$f":"IF(VG12=\"\",0,IF(VH12<=$B12,1,0))","v":0},null,{"$f":"IF(VI12=\"\",0,IF(VJ12<=$B12,1,0))","v":0},null,{"$f":"IF(VK12=\"\",0,IF(VL12<=$B12,1,0))","v":1},null,{"$f":"IF(VM12=\"\",0,IF(VN12<=$B12,1,0))","v":1},null,{"$f":"IF(VO12=\"\",0,IF(VP12<=$B12,1,0))","v":1},null,{"$f":"IF(VQ12=\"\",0,IF(VR12<=$B12,1,0))","v":1},null,{"$f":"IF(VS12=\"\",0,IF(VT12<=$B12,1,0))","v":1},null,{"$f":"IF(VU12=\"\",0,IF(VV12<=$B12,1,0))","v":1},null,{"$f":"IF(VW12=\"\",0,IF(VX12<=$B12,1,0))","v":1},null,{"$f":"IF(VY12=\"\",0,IF(VZ12<=$B12,1,0))","v":1},null,{"$f":"IF(WA12=\"\",0,IF(WB12<=$B12,1,0))","v":1},null,{"$f":"IF(WC12=\"\",0,IF(WD12<=$B12,1,0))","v":1},null,{"$f":"IF(WE12=\"\",0,IF(WF12<=$B12,1,0))","v":1},null,{"$f":"IF(WG12=\"\",0,IF(WH12<=$B12,1,0))","v":1},null,{"$f":"IF(WI12=\"\",0,IF(WJ12<=$B12,1,0))","v":1},null,{"$f":"IF(WK12=\"\",0,IF(WL12<=$B12,1,0))","v":1},null,{"$f":"IF(WM12=\"\",0,IF(WN12<=$B12,1,0))","v":1},null,{"$f":"IF(WO12=\"\",0,IF(WP12<=$B12,1,0))","v":1},null,{"$f":"IF(WQ12=\"\",0,IF(WR12<=$B12,1,0))","v":1},null,{"$f":"IF(WS12=\"\",0,IF(WT12<=$B12,1,0))","v":1},null,{"$f":"IF(WU12=\"\",0,IF(WV12<=$B12,1,0))","v":1},null,{"$f":"IF(WW12=\"\",0,IF(WX12<=$B12,1,0))","v":1},null,{"$f":"IF(WY12=\"\",0,IF(WZ12<=$B12,1,0))","v":1},null,{"$f":"IF(XA12=\"\",0,IF(XB12<=$B12,1,0))","v":1},null,{"$f":"IF(XC12=\"\",0,IF(XD12<=$B12,1,0))","v":1},null,{"$f":"IF(XE12=\"\",0,IF(XF12<=$B12,1,0))","v":1},null,{"$f":"IF(XG12=\"\",0,IF(XH12<=$B12,1,0))","v":1},null,{"$f":"IF(XI12=\"\",0,IF(XJ12<=$B12,1,0))","v":1},null,{"$f":"IF(XK12=\"\",0,IF(XL12<=$B12,1,0))","v":1},null,{"$f":"IF(XM12=\"\",0,IF(XN12<=$B12,1,0))","v":1},null,{"$f":"IF(XO12=\"\",0,IF(XP12<=$B12,1,0))","v":1},null,{"$f":"IF(XQ12=\"\",0,IF(XR12<=$B12,1,0))","v":1},null,{"$f":"IF(XS12=\"\",0,IF(XT12<=$B12,1,0))","v":1},null,{"$f":"IF(XU12=\"\",0,IF(XV12<=$B12,1,0))","v":1},null,{"$f":"IF(XW12=\"\",0,IF(XX12<=$B12,1,0))","v":1}]
[null,null,null,{"$f":"SUM(D13:D15)","v":1},null,{"$f":"SUM(F13:F15)","v":1},null,{"$f":"SUM(H13:H15)","v":1},null,{"$f":"SUM(J13:J15)","v":1},null,{"$f":"SUM(L13:L15)","v":1},null,{"$f":"SUM(N13:N15)","v":1},null,{"$f":"SUM(P13:P15)","v":1},null,{"$f":"SUM(R13:R15)","v":1},null,{"$f":"SUM(T13:T15)","v":1},null,{"$f":"SUM(V13:V15)","v":1},null,{"$f":"SUM(X13:X15)","v":1},null,{"$f":"SUM(Z13:Z15)","v":1},null,{"$f":"SUM(AB13:AB15)","v":1},null,{"$f":"SUM(AD13:AD15)","v":1},null,{"$f":"SUM(AF13:AF15)","v":1},null,null,null,{"$f":"SUM(AJ13:AJ15)","v":1},null,{"$f":"SUM(AL13:AL15)","v":1},null,{"$f":"SUM(AN13:AN15)","v":1},null,{"$f":"SUM(AP13:AP15)","v":1},null,{"$f":"SUM(AR13:AR15)","v":1},null,{"$f":"SUM(AT13:AT15)","v":1},null,{"$f":"SUM(AV13:AV15)","v":1},null,{"$f":"SUM(AX13:AX15)","v":1},null,{"$f":"SUM(AZ13:AZ15)","v":1},null,{"$f":"SUM(BB13:BB15)","v":1},null,{"$f":"SUM(BD13:BD15)","v":1},null,{"$f":"SUM(BF13:BF15)","v":1},null,{"$f":"SUM(BH13:BH15)","v":1},null,{"$f":"SUM(BJ13:BJ15)","v":1},null,{"$f":"SUM(BL13:BL15)","v":1},null,{"$f":"SUM(BN13:BN15)","v":1},null,{"$f":"SUM(BP13:BP15)","v":1},null,{"$f":"SUM(BR13:BR15)","v":1},null,{"$f":"SUM(BT13:BT15)","v":1},null,{"$f":"SUM(BV13:BV15)","v":1},null,{"$f":"SUM(BX13:BX15)","v":1},null,{"$f":"SUM(BZ13:BZ15)","v":1},null,{"$f":"SUM(CB13:CB15)","v":1},null,{"$f":"SUM(CD13:CD15)","v":1},null,{"$f":"SUM(CF13:CF15)","v":1},null,{"$f":"SUM(CH13:CH15)","v":1},null,{"$f":"SUM(CJ13:CJ15)","v":1},null,{"$f":"SUM(CL13:CL15)","v":1},null,{"$f":"SUM(CN13:CN15)","v":1},null,{"$f":"SUM(CP13:CP15)","v":1},null,{"$f":"SUM(CR13:CR15)","v":1},null,{"$f":"SUM(CT13:CT15)","v":1},null,{"$f":"SUM(CV13:CV15)","v":1},null,{"$f":"SUM(CX13:CX15)","v":1},null,{"$f":"SUM(CZ13:CZ15)","v":1},null,{"$f":"SUM(DB13:DB15)","v":1},null,{"$f":"SUM(DD13:DD15)","v":1},null,{"$f":"SUM(DF13:DF15)","v":1},null,{"$f":"SUM(DH13:DH15)","v":1},null,{"$f":"SUM(DJ13:DJ15)","v":1},null,{"$f":"SUM(DL13:DL15)","v":1},null,{"$f":"SUM(DN13:DN15)","v":1},null,{"$f":"SUM(DP13:DP15)","v":1},null,{"$f":"SUM(DR13:DR15)","v":1},null,{"$f":"SUM(DT13:DT15)","v":1},null,{"$f":"SUM(DV13:DV15)","v":1},null,{"$f":"SUM(DX13:DX15)","v":1},null,{"$f":"SUM(DZ13:DZ15)","v":1},null,{"$f":"SUM(EB13:EB15)","v":1},null,{"$f":"SUM(ED13:ED15)","v":2},null,{"$f":"SUM(EF13:EF15)","v":1},null,{"$f":"SUM(EH13:EH15)","v":1},null,{"$f":"SUM(EJ13:EJ15)","v":1},null,{"$f":"SUM(EL13:EL15)","v":1},null,{"$f":"SUM(EN13:EN15)","v":1},null,{"$f":"SUM(EP13:EP15)","v":1},null,{"$f":"SUM(ER13:ER15)","v":1},null,{"$f":"SUM(ET13:ET15)","v":1},null,{"$f":"SUM(EV13:EV15)","v":1},null,{"$f":"SUM(EX13:EX15)","v":1},null,{"$f":"SUM(EZ13:EZ15)","v":1},null,{"$f":"SUM(FB13:FB15)","v":1},null,{"$f":"SUM(FD13:FD15)","v":1},null,{"$f":"SUM(FF13:FF15)","v":1},null,{"$f":"SUM(FH13:FH15)","v":1},null,{"$f":"SUM(FJ13:FJ15)","v":1},null,{"$f":"SUM(FL13:FL15)","v":1},null,{"$f":"SUM(FN13:FN15)","v":1},null,{"$f":"SUM(FP13:FP15)","v":1},null,{"$f":"SUM(FR13:FR15)","v":1},null,{"$f":"SUM(FT13:FT15)","v":1},null,{"$f":"SUM(FV13:FV15)","v":1},null,{"$f":"SUM(FX13:FX15)","v":1},null,{"$f":"SUM(FZ13:FZ15)","v":1},null,{"$f":"SUM(GB13:GB15)","v":1},null,{"$f":"SUM(GD13:GD15)","v":1},null,{"$f":"SUM(GF13:GF15)","v":1},null,{"$f":"SUM(GH13:GH15)","v":1},null,{"$f":"SUM(GJ13:GJ15)","v":1},null,{"$f":"SUM(GL13:GL15)","v":1},null,{"$f":"SUM(GN13:GN15)","v":1},null,{"$f":"SUM(GP13:GP15)","v":1},null,{"$f":"SUM(GR13:GR15)","v":1},null,{"$f":"SUM(GT13:GT15)","v":1},null,{"$f":"SUM(GV13:GV15)","v":1},null,{"$f":"SUM(GX13:GX15)","v":1},null,{"$f":"SUM(GZ13:GZ15)","v":1},null,{"$f":"SUM(HB13:HB15)","v":1},null,{"$f":"SUM(HD13:HD15)","v":1},null,{"$f":"SUM(HF13:HF15)","v":1},null,{"$f":"SUM(HH13:HH15)","v":1},null,{"$f":"SUM(HJ13:HJ15)","v":1},null,{"$f":"SUM(HL13:HL15)","v":1},null,{"$f":"SUM(HN13:HN15)","v":1},null,{"$f":"SUM(HP13:HP15)","v":1},null,{"$f":"SUM(HR13:HR15)","v":1},null,{"$f":"SUM(HT13:HT15)","v":1},null,{"$f":"SUM(HV13:HV15)","v":1},null,{"$f":"SUM(HX13:HX15)","v":1},null,{"$f":"SUM(HZ13:HZ15)","v":1},null,{"$f":"SUM(IB13:IB15)","v":1},null,{"$f":"SUM(ID13:ID15)","v":1},null,{"$f":"SUM(IF13:IF15)","v":1},null,{"$f":"SUM(IH13:IH15)","v":1},null,{"$f":"SUM(IJ13:IJ15)","v":1},null,{"$f":"SUM(IL13:IL15)","v":1},null,{"$f":"SUM(IN13:IN15)","v":1},null,{"$f":"SUM(IP13:IP15)","v":1},null,{"$f":"SUM(IR13:IR15)","v":1},null,{"$f":"SUM(IT13:IT15)","v":1},null,{"$f":"SUM(IV13:IV15)","v":1},null,{"$f":"SUM(IX13:IX15)","v":1},null,{"$f":"SUM(IZ13:IZ15)","v":1},null,{"$f":"SUM(JB13:JB15)","v":1},null,{"$f":"SUM(JD13:JD15)","v":1},null,{"$f":"SUM(JF13:JF15)","v":1},null,{"$f":"SUM(JH13:JH15)","v":1},null,{"$f":"SUM(JJ13:JJ15)","v":1},null,{"$f":"SUM(JL13:JL15)","v":1},null,{"$f":"SUM(JN13:JN15)","v":1},null,{"$f":"SUM(JP13:JP15)","v":1},null,{"$f":"SUM(JR13:JR15)","v":1},null,{"$f":"SUM(JT13:JT15)","v":1},null,{"$f":"SUM(JV13:JV15)","v":1},null,{"$f":"SUM(JX13:JX15)","v":1},null,{"$f":"SUM(JZ13:JZ15)","v":1},null,{"$f":"SUM(KB13:KB15)","v":1},null,{"$f":"SUM(KD13:KD15)","v":1},null,{"$f":"SUM(KF13:KF15)","v":1},null,{"$f":"SUM(KH13:KH15)","v":1},null,{"$f":"SUM(KJ13:KJ15)","v":1},null,{"$f":"SUM(KL13:KL15)","v":1},null,{"$f":"SUM(KN13:KN15)","v":1},null,{"$f":"SUM(KP13:KP15)","v":1},null,{"$f":"SUM(KR13:KR15)","v":1},null,{"$f":"SUM(KT13:KT15)","v":1},null,{"$f":"SUM(KV13:KV15)","v":1},null,{"$f":"SUM(KX13:KX15)","v":1},null,{"$f":"SUM(KZ13:KZ15)","v":1},null,{"$f":"SUM(LB13:LB15)","v":1},null,{"$f":"SUM(LD13:LD15)","v":1},null,{"$f":"SUM(LF13:LF15)","v":1},null,{"$f":"SUM(LH13:LH15)","v":1},null,{"$f":"SUM(LJ13:LJ15)","v":1},null,{"$f":"SUM(LL13:LL15)","v":1},null,{"$f":"SUM(LN13:LN15)","v":1},null,{"$f":"SUM(LP13:LP15)","v":1},null,{"$f":"SUM(LR13:LR15)","v":1},null,{"$f":"SUM(LT13:LT15)","v":1},null,{"$f":"SUM(LV13:LV15)","v":1},null,{"$f":"SUM(LX13:LX15)","v":1},null,{"$f":"SUM(LZ13:LZ15)","v":1},null,{"$f":"SUM(MB13:MB15)","v":1},null,{"$f":"SUM(MD13:MD15)","v":1},null,{"$f":"SUM(MF13:MF15)","v":1},null,{"$f":"SUM(MH13:MH15)","v":1},null,{"$f":"SUM(MJ13:MJ15)","v":1},null,{"$f":"SUM(ML13:ML15)","v":1},null,{"$f":"SUM(MN13:MN15)","v":1},null,{"$f":"SUM(MP13:MP15)","v":1},null,{"$f":"SUM(MR13:MR15)","v":1},null,{"$f":"SUM(MT13:MT15)","v":1},null,{"$f":"SUM(MV13:MV15)","v":1},null,{"$f":"SUM(MX13:MX15)","v":1},null,{"$f":"SUM(MZ13:MZ15)","v":1},null,{"$f":"SUM(NB13:NB15)","v":1},null,{"$f":"SUM(ND13:ND15)","v":1},null,{"$f":"SUM(NF13:NF15)","v":1},null,{"$f":"SUM(NH13:NH15)","v":1},null,{"$f":"SUM(NJ13:NJ15)","v":1},null,{"$f":"SUM(NL13:NL15)","v":1},null,{"$f":"SUM(NN13:NN15)","v":1},null,{"$f":"SUM(NP13:NP15)","v":1},null,{"$f":"SUM(NR13:NR15)","v":1},null,{"$f":"SUM(NT13:NT15)","v":1},null,{"$f":"SUM(NV13:NV15)","v":1},null,{"$f":"SUM(NX13:NX15)","v":1},null,{"$f":"SUM(NZ13:NZ15)","v":1},null,{"$f":"SUM(OB13:OB15)","v":1},null,{"$f":"SUM(OD13:OD15)","v":1},null,{"$f":"SUM(OF13:OF15)","v":1},null,{"$f":"SUM(OH13:OH15)","v":1},null,{"$f":"SUM(OJ13:OJ15)","v":1},null,{"$f":"SUM(OL13:OL15)","v":1},null,{"$f":"SUM(ON13:ON15)","v":1},null,{"$f":"SUM(OP13:OP15)","v":1},null,{"$f":"SUM(OR13:OR15)","v":1},null,{"$f":"SUM(OT13:OT15)","v":1},null,{"$f":"SUM(OV13:OV15)","v":1},null,{"$f":"SUM(OX13:OX15)","v":1},null,{"$f":"SUM(OZ13:OZ15)","v":1},null,{"$f":"SUM(PB13:PB15)","v":1},null,{"$f":"SUM(PD13:PD15)","v":1},null,{"$f":"SUM(PF13:PF15)","v":1},null,{"$f":"SUM(PH13:PH15)","v":1},null,{"$f":"SUM(PJ13:PJ15)","v":1},null,{"$f":"SUM(PL13:PL15)","v":1},null,{"$f":"SUM(PN13:PN15)","v":1},null,{"$f":"SUM(PP13:PP15)","v":1},null,{"$f":"SUM(PR13:PR15)","v":1},null,{"$f":"SUM(PT13:PT15)","v":1},null,{"$f":"SUM(PV13:PV15)","v":1},null,{"$f":"SUM(PX13:PX15)","v":1},null,{"$f":"SUM(PZ13:PZ15)","v":1},null,{"$f":"SUM(QB13:QB15)","v":1},null,{"$f":"SUM(QD13:QD15)","v":1},null,{"$f":"SUM(QF13:QF15)","v":1},null,{"$f":"SUM(QH13:QH15)","v":1},null,{"$f":"SUM(QJ13:QJ15)","v":1},null,{"$f":"SUM(QL13:QL15)","v":1},null,{"$f":"SUM(QN13:QN15)","v":1},null,{"$f":"SUM(QP13:QP15)","v":1},null,{"$f":"SUM(QR13:QR15)","v":1},null,{"$f":"SUM(QT13:QT15)","v":1},null,{"$f":"SUM(QV13:QV15)","v":1},null,{"$f":"SUM(QX13:QX15)","v":1},null,{"$f":"SUM(QZ13:QZ15)","v":1},null,{"$f":"SUM(RB13:RB15)","v":1},null,{"$f":"SUM(RD13:RD15)","v":1},null,{"$f":"SUM(RF13:RF15)","v":1},null,{"$f":"SUM(RH13:RH15)","v":1},null,{"$f":"SUM(RJ13:RJ15)","v":1},null,{"$f":"SUM(RL13:RL15)","v":1},null,{"$f":"SUM(RN13:RN15)","v":1},null,{"$f":"SUM(RP13:RP15)","v":1},null,{"$f":"SUM(RR13:RR15)","v":1},null,{"$f":"SUM(RT13:RT15)","v":1},null,{"$f":"SUM(RV13:RV15)","v":1},null,{"$f":"SUM(RX13:RX15)","v":1},null,{"$f":"SUM(RZ13:RZ15)","v":1},null,{"$f":"SUM(SB13:SB15)","v":1},null,{"$f":"SUM(SD13:SD15)","v":1},null,{"$f":"SUM(SF13:SF15)","v":1},null,{"$f":"SUM(SH13:SH15)","v":1},null,{"$f":"SUM(SJ13:SJ15)","v":1},null,{"$f":"SUM(SL13:SL15)","v":1},null,{"$f":"SUM(SN13:SN15)","v":1},null,{"$f":"SUM(SP13:SP15)","v":1},null,{"$f":"SUM(SR13:SR15)","v":1},null,{"$f":"SUM(ST13:ST15)","v":1},null,{"$f":"SUM(SV13:SV15)","v":1},null,{"$f":"SUM(SX13:SX15)","v":1},null,{"$f":"SUM(SZ13:SZ15)","v":1},null,{"$f":"SUM(TB13:TB15)","v":1},null,{"$f":"SUM(TD13:TD15)","v":1},null,{"$f":"SUM(TF13:TF15)","v":1},null,{"$f":"SUM(TH13:TH15)","v":1},null,{"$f":"SUM(TJ13:TJ15)","v":1},null,{"$f":"SUM(TL13:TL15)","v":1},null,{"$f":"SUM(TN13:TN15)","v":1},null,{"$f":"SUM(TP13:TP15)","v":1},null,{"$f":"SUM(TR13:TR15)","v":1},null,{"$f":"SUM(TT13:TT15)","v":1},null,{"$f":"SUM(TV13:TV15)","v":1},null,{"$f":"SUM(TX13:TX15)","v":1},null,{"$f":"SUM(TZ13:TZ15)","v":1},null,{"$f":"SUM(UB13:UB15)","v":1},null,{"$f":"SUM(UD13:UD15)","v":1},null,{"$f":"SUM(UF13:UF15)","v":1},null,{"$f":"SUM(UH13:UH15)","v":1},null,{"$f":"SUM(UJ13:UJ15)","v":1},null,{"$f":"SUM(UL13:UL15)","v":1},null,{"$f":"SUM(UN13:UN15)","v":1},null,{"$f":"SUM(UP13:UP15)","v":1},null,{"$f":"SUM(UR13:UR15)","v":1},null,{"$f":"SUM(UT13:UT15)","v":1},null,{"$f":"SUM(UV13:UV15)","v":1},null,{"$f":"SUM(UX13:UX15)","v":1},null,{"$f":"SUM(UZ13:UZ15)","v":1},null,{"$f":"SUM(VB13:VB15)","v":1},null,{"$f":"SUM(VD13:VD15)","v":1},null,{"$f":"SUM(VF13:VF15)","v":1},null,{"$f":"SUM(VH13:VH15)","v":1},null,{"$f":"SUM(VJ13:VJ15)","v":1},null,{"$f":"SUM(VL13:VL15)","v":1},null,{"$f":"SUM(VN13:VN15)","v":1},null,{"$f":"SUM(VP13:VP15)","v":1},null,{"$f":"SUM(VR13:VR15)","v":1},null,{"$f":"SUM(VT13:VT15)","v":1},null,{"$f":"SUM(VV13:VV15)","v":1},null,{"$f":"SUM(VX13:VX15)","v":1},null,{"$f":"SUM(VZ13:VZ15)","v":1},null,{"$f":"SUM(WB13:WB15)","v":1},null,{"$f":"SUM(WD13:WD15)","v":1},null,{"$f":"SUM(WF13:WF15)","v":1},null,{"$f":"SUM(WH13:WH15)","v":1},null,{"$f":"SUM(WJ13:WJ15)","v":1},null,{"$f":"SUM(WL13:WL15)","v":1},null,{"$f":"SUM(WN13:WN15)","v":1},null,{"$f":"SUM(WP13:WP15)","v":1},null,{"$f":"SUM(WR13:WR15)","v":1},null,{"$f":"SUM(WT13:WT15)","v":1},null,{"$f":"SUM(WV13:WV15)","v":1},null,{"$f":"SUM(WX13:WX15)","v":1},null,{"$f":"SUM(WZ13:WZ15)","v":1},null,{"$f":"SUM(XB13:XB15)","v":1},null,{"$f":"SUM(XD13:XD15)","v":1},null,{"$f":"SUM(XF13:XF15)","v":1},null,{"$f":"SUM(XH13:XH15)","v":1},null,{"$f":"SUM(XJ13:XJ15)","v":1},null,{"$f":"SUM(XL13:XL15)","v":1},null,{"$f":"SUM(XN13:XN15)","v":1},null,{"$f":"SUM(XP13:XP15)","v":1},null,{"$f":"SUM(XR13:XR15)","v":1},null,{"$f":"SUM(XT13:XT15)","v":1},null,{"$f":"SUM(XV13:XV15)","v":1},null,{"$f":"SUM(XX13:XX15)","v":1}]

{"sheet":"Services Délégués","index":9,"n_rows":5,"n_cols":30,"rows_kept":5,"cut":false,"hidden":false,"merged":[[2,20,2,21],[2,22,2,23],[1,26,2,27],[1,28,2,29],[0,0,0,21],[1,0,1,5],[1,6,1,17],[2,0,2,1],[2,2,2,3],[2,4,2,5],[2,6,2,7],[2,8,2,9],[2,10,2,11],[2,12,2,13],[2,14,2,15],[2,16,2,17],[2,18,2,19],[1,18,1,25],[2,24,2,25]]}
["Retour à l'accueil"]
["EAU",null,null,null,null,null,"ASSAINISSEMENT",null,null,null,null,null,null,null,null,null,null,null,"SERVICES MARCHANDS",null,null,null,null,null,null,null,"PANNEAUX PUBLICITAIRES",null,"TOTAL"]
["AEV",null,"FPM",null,"PEA",null,"Entretien des voies urbaines",null,"Eclairage public",null,"Collecte et traitement des déchets",null,"Evacuation des eaux usées",null,"Gestion des cimétieres",null,"Gestion des espaces verts",null,"Gestion des marchés",null,"Gestion des abattoirs",null,"Promotion du tourisme",null,"Gestions des gares routieres"]
["PREVUES","DELEGUEES","PREVUES","DELEGUEES","PREVUES","DELEGUEES","PREVUS","DELEGUES","PREVUS","DELEGUES","PREVUS","DELEGUES","PREVUS","DELEGUES","PREVUS","DELEGUES","PREVUS","DELEGUES","PREVUS","DELEGUES","PREVUS","DELEGUES","PREVUS","DELEGUES","PREVUS","DELEGUES","PREVUS","DELEGUES","PREVUS","DELEGUES"]
[null,null,null,null,null,null,null,null,null,null,null,null,null,null,null,null,null,null,20,0,0,0,0,0,6,0,3,3,{"$f":"SUM(A5,C5,E5,G5,I5,K5,M5,O5,Q5,S5,U5,W5,Y5,AA5)","v":29},{"$f":"SUM(B5,D5,F5,H5,J5,L5,N5,P5,R5,T5,V5,X5,Z5,AB5)","v":3}]

{"sheet":"Autres données","index":10,"n_rows":37,"n_cols":4,"rows_kept":37,"cut":false,"hidden":false,"merged":[[0,0,0,3],[1,0,1,2],[18,0,18,1],[19,0,19,1],[26,0,26,1],[2,0,3,1],[4,0,5,1],[6,0,7,1],[8,0,9,1],[14,0,17,1],[10,0,13,0],[10,1,12,1],[13,1,13,2],[27,0,27,1],[31,0,32,1],[33,0,34,1],[35,0,36,1],[20,0,21,1],[22,0,23,1],[24,0,25,1],[28,0,30,1]]}
["Retour à l'accueil"]
["Données à collecter",null,null,"Valeurs"]
["Fonctionalité des services de la mairie",null,"Nombre de services prévus.",27]
[null,null,"Nombre de services fonctionnels",22]
["Manuel de procédure",null,"Existence du manuel de procédure","OUI"]
[null,null,"Manuel de procédure actualisé.","NON"]
["Evaluation du personnel",null,"Nombre de personnes évalué",342]
[null,null,"Effectif du personnel",342]
["Adequation profil/poste",null,"Nombre de postes occupés dans la commune",69]
[null,null,"Nombre d'agents dont le profil correspond au poste occupé",28]
["Données Foncieres","Commission de Gestion foncière (COGEF)","Existence de la COGEF","OUI"]
[null,null,"Nombre d'Attestation de  Détention Coutumiere (ADC) demandé",0]
[null,null,"Nombre d'Attestation de  Détention Coutumiere (ADC) traité",0]
[null,"Nombre de contentieux fonciers impliquant la commune",null,31]
["Système d'information ",null,"Existence d’un système de classement et d’archivage","NON"]
[null,null,"Existence d’une personne en charge du classement des archivages","OUI"]
[null,null,"Existence d’un local dédié à l’archivage","OUI"]
[null,null,"Existence de documents archivés.","NON"]
["Nombre de délégations",null,"Nombre de délégations de signature pris.",6]
["Attributions  de pouvoir",null,"Nombre d'attributions  de pouvoir pris."]
["Séances de reddition de comptes",null,"Nombre   de séances tenues",1]
[null,null,"Nombre de séances prévues.",2]
["Activités spécifiques en faveur des femmes ",null,"Nombre  d’activités spécifiques réalisées en faveur des femmes ",2]
[null,null,"Nombre d’activités réalisées dans le PTA",2]
["Informations sur les prestations de la commune",null,"Existence d’un lieu publique dédié à l'informations sur les prestations de la commune","OUI"]
[null,null,"Existence d'une personne en charge de l'information","OUI"]
["SDAC en cours de validité",null,"Existence  ou non d'un SDAC ","NON"]
["PDC en cours de validité",null,"Existence ou non d’un PDC","OUI"]
["Suivi évaluation des PTA/PAI/PAD",null,"Nombre de séances de suivi évaluation des PTA"]
[null,null,"Nombre de séances de suivi évaluation des PAI",1]
[null,null,"Nombre de séances de suivi évaluation des PAD"]
["Infrastructures économiques et marchandes",null,"Nombre réalisées en année 2019",116]
[null,null,"Nombre réalisées en année 2018",138]
["TBS",null,"Existence  d’un TBS actualisé ","NON"]
[null,null,"Date d’actualisation"]
["Coopération décentralisée",null,"Nombre  d’accord actif"]
[null,null,"Nombre d’activités réalisées provenants de ces accords "]

{"sheet":"Récapitulatif","index":11,"n_rows":93,"n_cols":6,"rows_kept":93,"cut":false,"hidden":true,"merged":[[0,0,0,1],[1,0,1,1],[2,0,2,1],[3,0,3,1],[4,0,4,1],[5,0,5,1],[6,0,6,1],[7,0,7,1],[8,0,8,1],[9,0,9,1],[10,0,10,1],[11,0,11,1],[12,0,12,1],[13,0,13,1],[14,0,14,1],[15,0,15,1],[16,0,16,1],[17,0,17,1],[18,0,18,1],[19,0,19,1],[20,0,20,1],[21,0,21,1],[22,0,22,1],[23,0,23,1],[24,0,24,1],[25,0,25,1],[26,0,26,1],[27,0,27,1],[28,0,28,1],[29,0,29,1],[30,0,30,1],[31,0,31,1],[32,0,32,1],[33,0,33,1],[34,0,34,1],[38,0,38,1],[39,0,39,1],[40,0,40,1],[41,0,41,1],[42,0,42,1],[43,0,43,1],[44,0,44,1],[45,0,45,1],[46,0,46,1],[47,0,47,1],[48,0,48,1],[49,0,49,1],[50,0,50,1],[51,0,51,1],[52,0,52,1],[53,0,53,1],[54,0,54,1],[55,0,55,1],[56,0,56,1],[57,0,57,1],[64,0,64,1],[65,0,65,1],[66,0,66,1],[67,0,67,1],[58,0,58,1],[59,0,59,1],[60,0,60,1],[61,0,61,1],[62,0,62,1],[35,0,37,0],[78,0,78,1],[81,0,81,1],[82,0,82,1],[83,0,83,1],[73,0,73,1],[74,0,74,1],[75,0,75,1],[76,0,76,1],[77,0,77,1],[68,0,68,1],[69,0,69,1],[70,0,70,1],[71,0,71,1],[72,0,72,1],[63,0,63,1],[91,0,91,1],[92,0,92,1],[79,0,79,1],[80,0,80,1],[85,0,85,1],[88,0,88,1],[90,0,90,1],[86,0,86,1],[87,0,87,1],[89,0,89,1],[84,0,84,1]]}
["Données à traiter",null,"Valeurs"]
["Nombre de sessions ordinaires tenues",null,{"$f":"COUNTA(CC!C6:C9)","v":4}]
["Nombre de services prévus.",null,{"$f":"'Autres données'!D3","v":27}]
["Nombre de services existant doté en personnel.",null,{"$f":"'Autres données'!D4","v":22}]
["Nombre d’élus du conseil communal",null,{"$f":"CC!D4","v":37}]
["Nombre de conseillers présents à chaque conseil communal",null,{"$f":"SUMIF(CC!C6:C9,\"<>\",CC!B6:B9)","v":134}]
["Existence du manuel de procédure actualisé.",null,{"$f":"IF(OR('Autres données'!D5=\"NON\",'Autres données'!D5=\"\"),0,IF('Autres données'!D6=\"OUI\",1,0.5))","v":0.5}]
["Nombre de fiches d’évaluation du personnel évalué dans l’année.",null,{"$f":"'Autres données'!D7","v":342}]
["Nombre de personnes à évaluer.",null,{"$f":"'Autres données'!D8","v":342}]
["Nombre de commissions permanentes existantes.",null,{"$f":"CP!C18","v":13}]
["Nombre de sessions des commissions permamentes",null,{"$f":"SUM(CP!D18,CP!G18,CP!J18,CP!M18,CP!P18,CP!V18,CP!Y18,CP!AB18,CP!AE18,CP!AH18,CP!AK18)","v":0}]
["Nombre présents commission permanente",null,{"$f":"SUM(CP!D19,CP!G19,CP!J19,CP!M19,CP!P19,CP!V19,CP!Y19,CP!AB19,CP!AE19,CP!AH19,CP!AK19)","v":0}]
["Nombre de propositions formulées par les commissions permanentes",null,{"$f":"SUM(CP!E19,CP!H19,CP!K19,CP!N19,CP!Q19,CP!T19,CP!W19,CP!Z19,CP!AC19,CP!AF19,CP!AI19,CP!AL19)","v":0}]
["Nombre de propositions formulées par les commissions permanentes réalisées.",null,{"$f":"SUM(CP!F19,CP!I19,CP!L19,CP!O19,CP!R19,CP!U19,CP!X19,CP!AA19,CP!AD19,CP!AG19,CP!AJ19,CP!AM19)","v":0}]
["Nombre de postes occupés",null,{"$f":"'Autres données'!D9","v":69}]
["Nombre de postes occupés correspondant au profil recherché",null,{"$f":"'Autres données'!D10","v":28}]
["Existence ou non d’un système de documentation et d’archivage",null,{"$f":"IF('Autres données'!D15=\"OUI\",1,0)","v":0}]
["Existence ou non d’une personne en charge de la documentation et d’archivage",null,{"$f":"IF('Autres données'!D16=\"OUI\",1,0)","v":1}]
["Existence ou non d’un local dédié à la documentation et d’archivage",null,{"$f":"IF('Autres données'!D17=\"OUI\",1,0)","v":1}]
["Existence ou non de document archivés.",null,{"$f":"IF('Autres données'!D18=\"OUI\",1,0)","v":0}]
["Nombre de services publics susceptibles d’être délégués",null,{"$f":"'Services Délégués'!AC5","v":29}]
["Nombre de services publics délégués dans l’année",null,{"$f":"'Services Délégués'!AD5","v":3}]
["Nombre total de rapports produits dans l’année",null,{"$f":"COUNTIF(CC!F6:F9,\"=OUI\")","v":4}]
["Nombre total de rapports à produire dans l’année.",null,{"$f":"C2","v":4},"nombre de session dans l'année =4"]
["Nombre de réunions de la municipalité ",null,{"$f":"CC!D3","v":6}]
["Nombre de réunions prévues",null,12,"limité à 12"]
["Nombre total de sessions de conseils d’arrondissement tenues au cours de l’année",null,{"$f":"SUM(CA!B3:B50)","v":0},"somme dans CA"]
["Nombre d’arrondissements",null,9]
["Nombre total de réunions de conseils de village tenues au cours de l’année",null,{"$f":"SUM(CV!C5:C100)","v":0},"somme d&ns CV"]
["Nombre de villages",null,151]
["Nombre de documents ou d’arrêtés  portant délégation de signature pris.",null,{"$f":"'Autres données'!D19","v":6}]
["Nombre de document ou arrêtés portant délégation de pouvoir pris.",null,{"$f":"'Autres données'!D20","v":0}]
["Montant du budget prévisionnel",null,{"$f":"Budget!A5","v":6644821608}]
["Montant du Budget Consommé",null,{"$f":"E37+C39","v":3834612278}]
["Recette fiscales previsionnelles",null,{"$f":"Budget!B5","v":2023176000}]
["Dépenses d'investissement","Ressources propres",{"$f":"Budget!D5","v":447787784}]
[null,"Investissement provenant de la coopération décentralisée",{"$f":"Budget!E5","v":0},null,{"$f":"SUM(C36:C38)","v":1621117492}]
[null,"Autres ressources",{"$f":"Budget!F5","v":1173329708}]
["Dépenses totales de fonctionnement",null,{"$f":"Budget!G5","v":2213494786}]
["Dépenses d'entretien des équipements et ouvrages",null,{"$f":"Budget!H5","v":320973775}]
["Montant des ressources propres de l'année n-1",null,{"$f":"Budget!K5","v":3836648774}]
["Montant des ressources propres de l'année n",null,{"$f":"Budget!L5","v":3894668134}]
["Recettes fiscales recouvrées",null,{"$f":"Budget!I5","v":2293454478}]
["Montant des cotisations versées à échéance",null,{"$f":"Budget!M5","v":3000000}]
["Montant des cotisations dues à échéance",null,{"$f":"Budget!N5","v":5000000}]
["Nombre de marchés conclus dans l’année",null,{"$f":"Marchés!E5","v":416}]
[{"$f":"Marchés!A3","v":"Plan de passation des marchés publics publiés"},null,{"$f":"IF(Marchés!E3=\"OUI\",1,0)","v":1}]
[{"$f":"Marchés!A4:D4","v":"Nombre de marchés publics passés hors plan de passation des marchés "},null,{"$f":"Marchés!E4","v":0},{"$f":"IF(Marchés!E4=\"\",0,IF(Marchés!E4=0,1,0))","v":1}]
["Nombre de marchés conclus dans l’année et ayant respecté les procédures.",null,{"$f":"Marchés!E6","v":416}]
["Délai moyen de passation des marchés publics communaux",null,{"$f":"IF(C46=0,0,D50/C46)","v":0.77644230769230771},{"$f":"SUM(Marchés!$D$16:$AFK$16)","v":323}]
["Nombre de fois où les relevés des délibérations affichés ",null,{"$f":"COUNTA(CC!E6:E9)","v":4}]
["Délai d’affichage",null,{"$f":"SUM(CC!I6:I9)/C2","v":1},"8 jours maxi aprs la fin de la session"]
["Nombre de séances de reddition de comptes",null,{"$f":"'Autres données'!D21","v":1}]
["Nombre de séances de reddition de comptes prévus.",null,{"$f":"'Autres données'!D22","v":2}]
["Nombre d’actions spécifiques réalisées en faveur des femmes",null,{"$f":"'Autres données'!D23","v":2}]
["Nombre d’actions spécifiques réalisées dans le PTA",null,{"$f":"'Autres données'!D24","v":2}]
[{"$f":"'Autres données'!C25","v":"Existence d’un lieu publique dédié à l'informations sur les prestations de la commune"},null,{"$f":"IF('Autres données'!D25=\"OUI\",1,0)","v":1}]
[{"$f":"'Autres données'!C26","v":"Existence d'une personne en charge de l'information"},null,{"$f":"IF('Autres données'!D26=\"OUI\",1,0)","v":1}]
["Nombre de cadres de concertation.",null,{"$f":"COUNTA('Cadres de Concertation'!F6:L6)","v":0},{"$f":"IF(C59<=0,0,IF(C59>3,1,C59/4))","v":0}]
["Nombre moyen de réunions du cadre de concertation tenu",null,{"$f":"SUM('Cadres de Concertation'!F6:L6)/C59","v":{"$error":"#DIV/0!"}},{"$f":"IF(C60<=0.5,0,IF(C60<1.5,0.25,IF(C60<2.5,0.5,IF(C60<4,0.75,1))))","v":{"$error":"#DIV/0!"}}]
["Existence ou non d’un SDAC.",null,{"$f":"IF('Autres données'!D27=\"OUI\",1,0)","v":0}]
["Existence ou non d’un PDC",null,{"$f":"IF('Autres données'!D28=\"OUI\",1,0)","v":1}]
["Montant PAI prévision",null,{"$f":"Budget!C5","v":8902914261}]
["Montant PAI réalisé",null,{"$f":"Budget!J5","v":889660927}]
["Nombre de séances de suivi évaluation des PTA/PAI/PAD",null,{"$f":"SUM('Autres données'!D29:D31)","v":1}]
["Nombre d’infrastructures économiques et marchandes réalisées en année n",null,{"$f":"'Autres données'!D32","v":116}]
["Nombre d’infrastructures économiques et marchandes réalisées en année n-1",null,{"$f":"'Autres données'!D33","v":138}]
["Nombre d'EPC demandé (village)",null,{"$f":"SUM(CV!D5:D191)","v":0},null,null,"somme"]
["Nombre d'EPC réalisé (Village)",null,{"$f":"SUM(CV!E5:E191)","v":0}]
["Nombre de ADC demandé (Commune-Autre données)",null,{"$f":"'Autres données'!D12","v":0}]
["Nombre de ADC réalisé (Commune-Autre données)",null,{"$f":"'Autres données'!D13","v":0}]
["Existence ou inexistence d’un tableau de bord social actualisé ",null,{"$f":"IF('Autres données'!D34=\"OUI\",1,0)","v":0}]
["Date d’actualisation du tableau de bord social",null,{"$f":"'Autres données'!D35","v":"00:00:00"}]
["Existence d'un tableau de bord",null,{"$f":"'Autres données'!D34","v":"NON"}]
["Nombre  d’ accord de coopération décentralisée.",null,{"$f":"IF('Autres données'!D36<1,0,IF('Autres données'!D36=1,0.5,1))","v":0}]
["Nombre d’activités des accords de coopération décentralisées réalisées.",null,{"$f":"IF('Autres données'!D37<1,0,IF('Autres données'!D37<3,0.5,1))","v":0}]
["Nombre de conflits fonciers impliquant la commune",null,{"$f":"IF('Autres données'!D14=\"\",\"\",'Autres données'!D14)","v":31},{"$f":"IF(C77=\"\",0,IF(C77=0,1,IF(C77<=3,0.75,IF(C77<=8,0.5,IF(C77<=15,0.25,0)))))","v":0}]
["Nombre de participation du maire ou de son représentant au CDCC au cours de l’année",null,{"$f":"COUNTIF(Tutelle!B5:B6,\">0\")","v":2},"feuille tutelle (compter le nombre de lignes 5 ou 6 rempli"]
["Nombre de CDCC tenus dans l’année.",null,{"$f":"COUNTA(Tutelle!C5:C6)","v":0},"fixer à 2"]
["Nombre total de présence du maire ou de ses adjoints au CDCC",null,{"$f":"SUMIF(Tutelle!C5:C6,\"<>\",Tutelle!B5:B6)","v":0}]
["Nombre total attendu (Maire et ses adjoints) pour toutes les sessions",null,{"$f":"C79*Tutelle!C3","v":0}]
["Nombre d’actes communaux conformes en une année",null,{"$f":"Tutelle!D8","v":0}]
["Nombre d’actes communaux soumis à la tutelle en un an",null,{"$f":"Tutelle!D9","v":0}]
["Le budget est transmis ou pas.",null,{"$f":"IF(Tutelle!H2=\"TRANSMIS\",1,0)","v":1}]
["Délai de transmission du budget après adoption par le conseil communal",null,{"$f":"IF(Budget!Q5=\"\",0,IF(Budget!Q5<=DATE(Acceuil!P12,3,31),1,0))","v":0}]
["Délai d'approbation du budget par la tutelle",null,{"$f":"IF(OR(Tutelle!H4=\"\",Tutelle!H5=\"\"),0,IF(Tutelle!H5<=EDATE(Tutelle!H4,1),1,0))","v":1},"si<1mois, 1, 0 sinon"]
["Le compte administratif est  transmis ou pas.",null,{"$f":"IF(Tutelle!H6=\"TRANSMIS\",1,0)","v":1}]
["Délai de transmission du compte administratif  après adoption par le conseil communal",null,{"$f":"IF(Tutelle!H7=\"\",0,IF(Tutelle!H7<=DATE(Acceuil!P12+1,6,30),1,0))","v":1}]
["Délai d'approbation du compte administratif  par la tutelle",null,{"$f":"IF(OR(Tutelle!H8=\"\",Tutelle!H9=\"\"),0,IF(Tutelle!H9<=EDATE(Tutelle!H8,1),1,0))","v":0}]
["Nombre de réunions du cadre de concertation  prévu (Mairie + SDE)",null,{"$f":"'Cadres de Concertation'!C5","v":0}]
["Nombre de réunions du cadre de concertation  tenu (Mairie + SDE)",null,{"$f":"COUNTA('Cadres de Concertation'!C7:C18)","v":0},null,{"$f":"C91/C90","v":{"$error":"#DIV/0!"}},{"$f":"C92/C93","v":{"$error":"#DIV/0!"}}]
["Nombre total des membres présents (Mairie + SDE)",null,{"$f":"SUMIF('Cadres de Concertation'!C7:C18,\"<>\",'Cadres de Concertation'!B7:B18)","v":0}]
["Nombre total des membres attendus (Mairie + SDE)",null,{"$f":"'Cadres de Concertation'!C4*Récapitulatif!C91","v":0}]

{"sheet":"Indicateurs","index":12,"n_rows":45,"n_cols":4,"rows_kept":45,"cut":false,"hidden":true,"merged":[[0,0,14,0],[15,0,25,0],[26,0,30,0],[31,0,39,0],[40,0,44,0]]}
["D1",1,"Taux de realisation des sessions ordinaires du conseil communal",{"$f":"Récapitulatif!C2/4","v":1}]
[null,2,"Taux de services fonctionnels",{"$f":"Récapitulatif!C4/Récapitulatif!C3","v":0.81481481481481477}]
[null,3,"Taux de participation des élus aux conseils communaux",{"$f":"Récapitulatif!C6/(Récapitulatif!C5*Récapitulatif!C2)","v":0.90540540540540537}]
[null,4,"Existance d'un manuel de procedure à jour",{"$f":"Récapitulatif!C7","v":0.5}]
[null,5,"Taux de personnes évaluées",{"$f":"Récapitulatif!C8/Récapitulatif!C9","v":1}]
[null,6,"Taux de commissions permanentes fonctionnelles",{"$f":"((Récapitulatif!C11/Récapitulatif!C10)+(Récapitulatif!C12/CP!AP18)+(Récapitulatif!C14/Récapitulatif!C13))/3","v":{"$error":"#DIV/0!"}}]
[null,7,"Taux d'adéquation profil/poste",{"$f":"Récapitulatif!C16/Récapitulatif!C15","v":0.40579710144927539}]
[null,8,"Fonctionalité du système de classement et d'archivage",{"$f":"SUM(Récapitulatif!C17:C20)/4","v":0.5}]
[null,9,"Taux de services publics locaux en gestion déléguée",{"$f":"Récapitulatif!C22/Récapitulatif!C21","v":0.10344827586206896}]
[null,10,"Taux de realisation des rapports d'activités du maire",{"$f":"Récapitulatif!C23/Récapitulatif!C24","v":1}]
[null,11,"Taux de tenu des reunions de municipalité",{"$f":"Récapitulatif!C25/Récapitulatif!C26","v":0.5}]
[null,12,"Taux moyen de tenue des sessions du conseil d'arrondissement",{"$f":"Récapitulatif!C27/Récapitulatif!C28","v":0}]
[null,13,"Taux moyen de tenue des sessions du conseil de villages",{"$f":"Récapitulatif!C29/Récapitulatif!C30","v":0}]
[null,14,"Nombre de délégation de signature du maire aux adjoints",{"$f":"Récapitulatif!C31","v":6}]
[null,15,"Nombre de délégation de pouvoir éffectué par le maire",{"$f":"Récapitulatif!C32","v":0}]
["D2",1,"Taux d'éxecution du budget communal",{"$f":"Récapitulatif!C34/Récapitulatif!C33","v":0.57708280285257585}]
[null,2,"Taux d'autofinancement des Investissements",{"$f":"Récapitulatif!C36/Récapitulatif!E37","v":0.2762216719082814}]
[null,3,"Part des Investissements dans les dépenses totales de la commune",{"$f":"Récapitulatif!E37/Récapitulatif!C34","v":0.42275916689170939}]
[null,4,"Part des dépenses d'entretien des équipements et ouvrages dans les depenses de fonctionnement",{"$f":"Récapitulatif!C40/Récapitulatif!C39","v":0.14500769418121412}]
[null,5,"Adoption du budget dans les délais",{"$f":"IF(Tutelle!H3=\"\",0,IF(Tutelle!H3<DATE(Acceuil!P12,1,1),1,0))","v":1}]
[null,6,"Respect du délai de vote du compte administratif",{"$f":"IF(Tutelle!H7=\"\",0,IF(Tutelle!H7<=DATE(Acceuil!P12,6,30),1,0))","v":1}]
[null,7,"Taux d'accroissement des ressources propres",{"$f":"(Récapitulatif!C42-Récapitulatif!C41)/Récapitulatif!C41","v":1.5122405885360827E-2}]
[null,8,"Taux de recouvrement fiscal",{"$f":"Récapitulatif!C43/Récapitulatif!C35","v":1.1335911843556863}]
[null,9,"délai moyen de passation des marchés publics communaux",{"$f":"Récapitulatif!C50/Récapitulatif!C46","v":1.8664478550295858E-3}]
[null,10,"Existance des plans de passation des marchés validés et publiés",{"$f":"(Récapitulatif!C47+Récapitulatif!D48)/2","v":1}]
[null,11,"Ratio des marchés publics ayant respecté les procédures",{"$f":"Récapitulatif!C49/Récapitulatif!C46","v":1}]
["D3",1,"Affichage des relevés des décisions du Conseil Communal dans les délai",{"$f":"((Récapitulatif!C51/Récapitulatif!C2)+Récapitulatif!C52)/2","v":1}]
[null,2,"Taux de réalisation des seances de reddition de compte",{"$f":"Récapitulatif!C53/Récapitulatif!C54","v":0.5}]
[null,3,"Nombre d'actions spécifiques en faveur des femmes au cours de l'année",{"$f":"Récapitulatif!C55/Récapitulatif!C56","v":1}]
[null,4,"Existance d'un mecanisme d'information du public par rapport aux prestations de la commune",{"$f":"(Récapitulatif!C57+Récapitulatif!C58)/2","v":1}]
[null,5,"Nombre de cadre de concertation fonctionnel",{"$f":"(Récapitulatif!D59+Récapitulatif!D60)/2","v":{"$error":"#DIV/0!"}}]
["D4",1,"Existance d'un SDAC",{"$f":"Récapitulatif!C61","v":0}]
[null,2,"Existance d'un PDC",{"$f":"(Récapitulatif!C62+(Récapitulatif!C64/Récapitulatif!C63))/2","v":0.54996459029697942}]
[null,3,"Nombre de reunions de suivi-évaluation du PTA/PAI/PAD",{"$f":"Récapitulatif!C65","v":1}]
[null,4,"Taux d'accroissement des infrastructures économiques et marchandes",{"$f":"(Récapitulatif!C66-Récapitulatif!C67)/Récapitulatif!C67","v":-0.15942028985507245}]
[null,5,"Fonctionalité des organes de gestion fonciere aux niveaux communal et infra communal",{"$f":"((Récapitulatif!C69/Récapitulatif!C68)+(Récapitulatif!C71/Récapitulatif!C70))/2","v":{"$error":"#DIV/0!"}}]
[null,6,"Existance d'un tableau de bord social actualisé",{"$f":"Récapitulatif!C72","v":0}]
[null,7,"Nombre d'accord de cooperation decentralisée mise en œuvre ",{"$f":"(Récapitulatif!C75+Récapitulatif!C76)/2","v":0}]
[null,8,"Taux de paiement des cotisations de la commune à l'intercommunalité",{"$f":"IF(Récapitulatif!C45=0,0,Récapitulatif!C44/Récapitulatif!C45)","v":0.6}]
[null,9,"Nombre de contentieux fonciers impliquant la Mairie",{"$f":"Récapitulatif!D77","v":0}]
["D5",1,"Nombre de participations au CDCC",{"$f":"((Récapitulatif!C78/Récapitulatif!C79)+(Récapitulatif!C80/Récapitulatif!C81))/2","v":{"$error":"#DIV/0!"}}]
[null,2,"Taux de conformité des actes communaux",{"$f":"IF(Récapitulatif!C83=0,0,Récapitulatif!C82/Récapitulatif!C83)","v":0}]
[null,3,"Transmission du budget dans les délais",{"$f":"SUM(Récapitulatif!C84:C86)/3","v":0.66666666666666663}]
[null,4,"Transmission du compte administratif dans les délais",{"$f":"SUM(Récapitulatif!C87:C89)/3","v":0.66666666666666663}]
[null,5,"Animation d'un cadre de concertation entre le maire et les services déconcentrés communaux",{"$f":"(Récapitulatif!E91+Récapitulatif!F91)/2","v":{"$error":"#DIV/0!"}}]